Workbook

Sheet Main
B10: 2022-10-18
B12: Sheet No. | C12: Template Name | D12: Summary
B13: 1 | C13: Future Intra | D13: For Intraday trading in F&O segment
B14: 2 | C14: Cash Intra | D14: For Intraday trading in cash market segment
B15: 3 | C15: Mid-cap Intra | D15: For Intraday trading in Mid-cap stocks
B16: 4 | C16: Bulk Deals | D16: Reveals Bulk Deals carried on NSE & BSE
B17: 5 | C17: Call Tracker
K27: `

Sheet Future Intra
M5: Back to Main Page
A6: FOR INTRA DAY TRADING | L6: =Main!B10 -> 2022-10-18
A9: Sr.no | B9: Sector | C9: Scrip | D9: Expiry Date | E9: CLOSE RATE | F9: Pivot Point | G9: Supports | J9: Resistances
E10: Point | F10: Point | G10: S1 | H10: S2 | I10: S3 | J10: R1 | K10: R2 | L10: R3 | M10: HIGH | N10: LOW | O10: OI | P10: % Change in OI
A11: 1 | B11: Index | C11: NIFTY | D11: 2022-10-27 | E11: 17300.30 | F11: 17241.43 | G11: 17158.87 | H11: 17017.43 | I11: 16934.87 | J11: 17382.87 | K11: 17465.43 | L11: 17606.87 | M11: 17324 | N11: 17100 | O11: 14885200 | P11: 2.65%
A12: 2 | B12: Index | C12: BANKNIFTY | D12: 2022-10-27 | E12: 39975.85 | F12: 39748.23 | G12: 39451.47 | H12: 38927.08 | I12: 38630.32 | J12: 40272.62 | K12: 40569.38 | L12: 41093.77 | M12: 40045 | N12: 39223.85 | O12: 2161800 | P12: 1.69%
A13: 3 | B13: Index | C13: FINNIFTY | D13: 2022-10-25 | E13: 17924.30 | F13: 17847.17 | G13: 17749.43 | H13: 17574.57 | I13: 17476.83 | J13: 18022.03 | K13: 18119.77 | L13: 18294.63 | M13: 17944.9 | N13: 17672.3 | O13: 8320 | P13: 6.67%
A14: 4 | B14: Index | C14: MIDCPNIFTY | D14: 2022-10-25 | E14: 7300.00 | F14: 2433.33 | G14: 4866.67 | H14: 2433.33 | I14: 4866.67 | J14: 4866.67 | K14: 2433.33 | L14: 4866.67 | M14: 0 | N14: 0 | O14: 375 | P14: 0.00%
A15: 5 | B15: Chemical | C15: AARTIIND | D15: 2022-10-27 | E15: 791.15 | F15: 790.85 | G15: 771.70 | H15: 752.25 | I15: 733.10 | J15: 810.30 | K15: 829.45 | L15: 848.90 | M15: 810 | N15: 771.4 | O15: 2764200 | P15: -20.18%
A16: 6 | B16: Capital_Goods | C16: ABB | D16: 2022-10-27 | E16: 3207.25 | F16: 3201.28 | G16: 3161.57 | H16: 3115.88 | I16: 3076.17 | J16: 3246.97 | K16: 3286.68 | L16: 3332.37 | M16: 3241 | N16: 3155.6 | O16: 1220750 | P16: 4.23%
A17: 7 | B17: Pharma | C17: ABBOTINDIA | D17: 2022-10-27 | E17: 18146.25 | F17: 18214.12 | G17: 18008.33 | H17: 17870.42 | I17: 17664.63 | J17: 18352.03 | K17: 18557.82 | L17: 18695.73 | M17: 18419.9 | N17: 18076.2 | O17: 55880 | P17: 2.80%
A18: 8 | B18: Others | C18: ABCAPITAL | D18: 2022-10-27 | E18: 110.55 | F18: 109.92 | G18: 108.78 | H18: 107.02 | I18: 105.88 | J18: 111.68 | K18: 112.82 | L18: 114.58 | M18: 111.05 | N18: 108.15 | O18: 24229800 | P18: 3.65%
A19: 9 | B19: Textile | C19: ABFRL | D19: 2022-10-27 | E19: 331.80 | F19: 330.55 | G19: 327.75 | H19: 323.70 | I19: 320.90 | J19: 334.60 | K19: 337.40 | L19: 341.45 | M19: 333.35 | N19: 326.5 | O19: 7628400 | P19: 1.17%
A20: 10 | B20: Cement | C20: ACC | D20: 2022-10-27 | E20: 2270.30 | F20: 2255.70 | G20: 2221.60 | H20: 2172.90 | I20: 2138.80 | J20: 2304.40 | K20: 2338.50 | L20: 2387.20 | M20: 2289.8 | N20: 2207 | O20: 4883750 | P20: 4.65%
A21: 11 | B21: Others | C21: ADANIENT | D21: 2022-10-27 | E21: 3223.50 | F21: 3202.32 | G21: 3159.63 | H21: 3095.77 | I21: 3053.08 | J21: 3266.18 | K21: 3308.87 | L21: 3372.73 | M21: 3245 | N21: 3138.45 | O21: 15072500 | P21: -0.34%
A22: 12 | B22: Others | C22: ADANIPORTS | D22: 2022-10-27 | E22: 787.25 | F22: 783.82 | G22: 775.28 | H22: 763.32 | I22: 754.78 | J22: 795.78 | K22: 804.32 | L22: 816.28 | M22: 792.35 | N22: 771.85 | O22: 71217500 | P22: 0.18%
A23: 13 | B23: Pharma | C23: ALKEM | D23: 2022-10-27 | E23: 3138.50 | F23: 3129.55 | G23: 3100.15 | H23: 3061.80 | I23: 3032.40 | J23: 3167.90 | K23: 3197.30 | L23: 3235.65 | M23: 3158.95 | N23: 3091.2 | O23: 351000 | P23: 2.93%
A24: 14 | B24: Automobile | C24: AMARAJABAT | D24: 2022-10-27 | E24: 489.90 | F24: 489.00 | G24: 485.30 | H24: 480.70 | I24: 477.00 | J24: 493.60 | K24: 497.30 | L24: 501.90 | M24: 492.7 | N24: 484.4 | O24: 7269000 | P24: -0.60%
A25: 15 | B25: Cement | C25: AMBUJACEM | D25: 2022-10-27 | E25: 521.75 | F25: 514.78 | G25: 505.27 | H25: 488.78 | I25: 479.27 | J25: 531.27 | K25: 540.78 | L25: 557.27 | M25: 524.3 | N25: 498.3 | O25: 62757000 | P25: 0.78%
A26: 16 | B26: Others | C26: APOLLOHOSP | D26: 2022-10-27 | E26: 4290.75 | F26: 4273.82 | G26: 4238.93 | H26: 4187.12 | I26: 4152.23 | J26: 4325.63 | K26: 4360.52 | L26: 4412.33 | M26: 4308.7 | N26: 4222 | O26: 1579500 | P26: 0.24%
A27: 17 | B27: Automobile | C27: APOLLOTYRE | D27: 2022-10-27 | E27: 277.30 | F27: 274.65 | G27: 271.00 | H27: 264.70 | I27: 261.05 | J27: 280.95 | K27: 284.60 | L27: 290.90 | M27: 278.3 | N27: 268.35 | O27: 13930000 | P27: 1.45%
A28: 18 | B28: Automobile | C28: ASHOKLEY | D28: 2022-10-27 | E28: 148.60 | F28: 147.52 | G28: 146.08 | H28: 143.57 | I28: 142.13 | J28: 150.03 | K28: 151.47 | L28: 153.98 | M28: 148.95 | N28: 145 | O28: 56645000 | P28: -1.43%
A29: 19 | B29: FMCG | C29: ASIANPAINT | D29: 2022-10-27 | E29: 3207.95 | F29: 3204.13 | G29: 3180.47 | H29: 3152.98 | I29: 3129.32 | J29: 3231.62 | K29: 3255.28 | L29: 3282.77 | M29: 3227.8 | N29: 3176.65 | O29: 5708600 | P29: -0.64%
A30: 20 | B30: Others | C30: ASTRAL | D30: 2022-10-27 | E30: 2157.20 | F30: 2140.48 | G30: 2113.07 | H30: 2068.93 | I30: 2041.52 | J30: 2184.62 | K30: 2212.03 | L30: 2256.17 | M30: 2167.9 | N30: 2096.35 | O30: 1357950 | P30: 1.71%
A31: 21 | B31: Others | C31: ATUL | D31: 2022-10-27 | E31: 8767.60 | F31: 8749.40 | G31: 8688.25 | H31: 8608.90 | I31: 8547.75 | J31: 8828.75 | K31: 8889.90 | L31: 8969.25 | M31: 8810.55 | N31: 8670.05 | O31: 161025 | P31: 0.28%
A32: 22 | B32: Banking | C32: AUBANK | D32: 2022-10-27 | E32: 611.85 | F32: 607.48 | G32: 600.77 | H32: 589.68 | I32: 582.97 | J32: 618.57 | K32: 625.28 | L32: 636.37 | M32: 614.2 | N32: 596.4 | O32: 6526000 | P32: 2.26%
A33: 23 | B33: Pharma | C33: AUROPHARMA | D33: 2022-10-27 | E33: 520.15 | F33: 519.75 | G33: 513.65 | H33: 507.15 | I33: 501.05 | J33: 526.25 | K33: 532.35 | L33: 538.85 | M33: 525.85 | N33: 513.25 | O33: 14486000 | P33: -1.78%
A34: 24 | B34: Banking | C34: AXISBANK | D34: 2022-10-27 | E34: 815.00 | F34: 810.22 | G34: 802.48 | H34: 789.97 | I34: 782.23 | J34: 822.73 | K34: 830.47 | L34: 842.98 | M34: 817.95 | N34: 797.7 | O34: 44778000 | P34: -2.05%
A35: 25 | B35: Automobile | C35: BAJAJ-AUTO | D35: 2022-10-27 | E35: 3637.25 | F35: 3629.63 | G35: 3587.62 | H35: 3537.98 | I35: 3495.97 | J35: 3679.27 | K35: 3721.28 | L35: 3770.92 | M35: 3671.65 | N35: 3580 | O35: 2593250 | P35: -9.79%
A36: 26 | B36: Finance | C36: BAJAJFINSV | D36: 2022-10-27 | E36: 1720.05 | F36: 1706.75 | G36: 1688.45 | H36: 1656.85 | I36: 1638.55 | J36: 1738.35 | K36: 1756.65 | L36: 1788.25 | M36: 1725.05 | N36: 1675.15 | O36: 6548000 | P36: -2.46%
A37: 27 | B37: Finance | C37: BAJFINANCE | D37: 2022-10-27 | E37: 7375.60 | F37: 7329.65 | G37: 7269.35 | H37: 7163.10 | I37: 7102.80 | J37: 7435.90 | K37: 7496.20 | L37: 7602.45 | M37: 7389.95 | N37: 7223.4 | O37: 4419000 | P37: -1.44%
A38: 28 | B38: Automobile | C38: BALKRISIND | D38: 2022-10-27 | E38: 1915.10 | F38: 1917.45 | G38: 1904.40 | H38: 1893.70 | I38: 1880.65 | J38: 1928.15 | K38: 1941.20 | L38: 1951.90 | M38: 1930.5 | N38: 1906.75 | O38: 2239200 | P38: -0.53%
A39: 29 | B39: Others | C39: BALRAMCHIN | D39: 2022-10-27 | E39: 351.15 | F39: 350.38 | G39: 345.77 | H39: 340.38 | I39: 335.77 | J39: 355.77 | K39: 360.38 | L39: 365.77 | M39: 355 | N39: 345 | O39: 7392000 | P39: 1.43%
A40: 30 | B40: Banking | C40: BANDHANBNK | D40: 2022-10-27 | E40: 269.60 | F40: 268.33 | G40: 265.57 | H40: 261.53 | I40: 258.77 | J40: 272.37 | K40: 275.13 | L40: 279.17 | M40: 271.1 | N40: 264.3 | O40: 25522200 | P40: 1.88%
A41: 31 | B41: Banking | C41: BANKBARODA | D41: 2022-10-27 | E41: 136.65 | F41: 134.57 | G41: 131.98 | H41: 127.32 | I41: 124.73 | J41: 139.23 | K41: 141.82 | L41: 146.48 | M41: 137.15 | N41: 129.9 | O41: 105300000 | P41: 7.78%
A42: 32 | B42: FMCG | C42: BATAINDIA | D42: 2022-10-27 | E42: 1840.20 | F42: 1816.60 | G42: 1788.70 | H42: 1737.20 | I42: 1709.30 | J42: 1868.10 | K42: 1896.00 | L42: 1947.50 | M42: 1844.5 | N42: 1765.1 | O42: 1697575 | P42: -3.23%
A43: 33 | B43: Capital_Goods | C43: BEL | D43: 2022-10-27 | E43: 102.25 | F43: 101.78 | G43: 100.62 | H43: 98.98 | I43: 97.82 | J43: 103.42 | K43: 104.58 | L43: 106.22 | M43: 102.95 | N43: 100.15 | O43: 81202200 | P43: 1.84%
A44: 34 | B44: FMCG | C44: BERGEPAINT | D44: 2022-10-27 | E44: 613.65 | F44: 610.92 | G44: 607.18 | H44: 600.72 | I44: 596.98 | J44: 617.38 | K44: 621.12 | L44: 627.58 | M44: 614.65 | N44: 604.45 | O44: 7172000 | P44: -1.41%
A45: 35 | B45: Automobile | C45: BHARATFORG | D45: 2022-10-27 | E45: 773.45 | F45: 764.15 | G45: 752.10 | H45: 730.75 | I45: 718.70 | J45: 785.50 | K45: 797.55 | L45: 818.90 | M45: 776.2 | N45: 742.8 | O45: 7024000 | P45: 1.37%
A46: 36 | B46: Telecom | C46: BHARTIARTL | D46: 2022-10-27 | E46: 767.10 | F46: 766.47 | G46: 760.63 | H46: 754.17 | I46: 748.33 | J46: 772.93 | K46: 778.77 | L46: 785.23 | M46: 772.3 | N46: 760 | O46: 40649550 | P46: -0.19%
A47: 37 | B47: Capital_Goods | C47: BHEL | D47: 2022-10-27 | E47: 63.15 | F47: 62.25 | G47: 61.20 | H47: 59.25 | I47: 58.20 | J47: 64.20 | K47: 65.25 | L47: 67.20 | M47: 63.3 | N47: 60.3 | O47: 135849000 | P47: 2.52%
A48: 38 | B48: Pharma | C48: BIOCON | D48: 2022-10-27 | E48: 264.65 | F48: 263.23 | G48: 259.97 | H48: 255.28 | I48: 252.02 | J48: 267.92 | K48: 271.18 | L48: 275.87 | M48: 266.5 | N48: 258.55 | O48: 26341900 | P48: 3.18%
A49: 39 | B49: Automobile | C49: BOSCHLTD | D49: 2022-10-27 | E49: 15623.45 | F49: 15562.17 | G49: 15456.38 | H49: 15289.32 | I49: 15183.53 | J49: 15729.23 | K49: 15835.02 | L49: 16002.08 | M49: 15667.95 | N49: 15395.1 | O49: 192950 | P49: 0.92%
A50: 40 | B50: Oil_Gas | C50: BPCL | D50: 2022-10-27 | E50: 296.85 | F50: 296.03 | G50: 292.62 | H50: 288.38 | I50: 284.97 | J50: 300.27 | K50: 303.68 | L50: 307.92 | M50: 299.45 | N50: 291.8 | O50: 19276200 | P50: 2.32%
A51: 41 | B51: FMCG | C51: BRITANNIA | D51: 2022-10-27 | E51: 3762.20 | F51: 3757.35 | G51: 3738.45 | H51: 3714.70 | I51: 3695.80 | J51: 3781.10 | K51: 3800.00 | L51: 3823.75 | M51: 3776.25 | N51: 3733.6 | O51: 1756800 | P51: 2.70%
A52: 42 | B52: Technology | C52: BSOFT | D52: 2022-10-27 | E52: 282.35 | F52: 282.15 | G52: 279.70 | H52: 277.05 | I52: 274.60 | J52: 284.80 | K52: 287.25 | L52: 289.90 | M52: 284.6 | N52: 279.5 | O52: 10177700 | P52: 0.09%
A53: 43 | B53: Banking | C53: CANBK | D53: 2022-10-27 | E53: 238.25 | F53: 233.12 | G53: 227.13 | H53: 216.02 | I53: 210.03 | J53: 244.23 | K53: 250.22 | L53: 261.33 | M53: 239.1 | N53: 222 | O53: 42376500 | P53: 7.88%
A54: 44 | B54: Finance | C54: CANFINHOME | D54: 2022-10-27 | E54: 502.25 | F54: 508.45 | G54: 492.10 | H54: 481.95 | I54: 465.60 | J54: 518.60 | K54: 534.95 | L54: 545.10 | M54: 524.8 | N54: 498.3 | O54: 7795125 | P54: 11.13%
A55: 45 | B55: Others | C55: CHAMBLFERT | D55: 2022-10-27 | E55: 328.35 | F55: 326.88 | G55: 323.47 | H55: 318.58 | I55: 315.17 | J55: 331.77 | K55: 335.18 | L55: 340.07 | M55: 330.3 | N55: 322 | O55: 6237000 | P55: 0.58%
A56: 46 | B56: Finance | C56: CHOLAFIN | D56: 2022-10-27 | E56: 733.25 | F56: 729.82 | G56: 720.43 | H56: 707.62 | I56: 698.23 | J56: 742.63 | K56: 752.02 | L56: 764.83 | M56: 739.2 | N56: 717 | O56: 6437500 | P56: 2.90%
A57: 47 | B57: Pharma | C57: CIPLA | D57: 2022-10-27 | E57: 1112.20 | F57: 1110.20 | G57: 1104.35 | H57: 1096.50 | I57: 1090.65 | J57: 1118.05 | K57: 1123.90 | L57: 1131.75 | M57: 1116.05 | N57: 1102.35 | O57: 8015800 | P57: -0.34%
A58: 48 | B58: Others | C58: COALINDIA | D58: 2022-10-27 | E58: 237.75 | F58: 236.35 | G58: 234.45 | H58: 231.15 | I58: 229.25 | J58: 239.65 | K58: 241.55 | L58: 244.85 | M58: 238.25 | N58: 233.05 | O58: 30991800 | P58: -0.54%
A59: 49 | B59: Technology | C59: COFORGE | D59: 2022-10-27 | E59: 3685.50 | F59: 3652.88 | G59: 3608.57 | H59: 3531.63 | I59: 3487.32 | J59: 3729.82 | K59: 3774.13 | L59: 3851.07 | M59: 3697.2 | N59: 3575.95 | O59: 982500 | P59: 3.66%
A60: 50 | B60: FMCG | C60: COLPAL | D60: 2022-10-27 | E60: 1576.20 | F60: 1574.18 | G60: 1553.27 | H60: 1530.33 | I60: 1509.42 | J60: 1597.12 | K60: 1618.03 | L60: 1640.97 | M60: 1595.1 | N60: 1551.25 | O60: 2307200 | P60: 4.17%
A61: 51 | B61: Others | C61: CONCOR | D61: 2022-10-27 | E61: 712.55 | F61: 704.97 | G61: 694.93 | H61: 677.32 | I61: 667.28 | J61: 722.58 | K61: 732.62 | L61: 750.23 | M61: 715 | N61: 687.35 | O61: 6640000 | P61: 1.58%
A62: 52 | B62: Others | C62: COROMANDEL | D62: 2022-10-27 | E62: 970.30 | F62: 967.88 | G62: 962.42 | H62: 954.53 | I62: 949.07 | J62: 975.77 | K62: 981.23 | L62: 989.12 | M62: 973.35 | N62: 960 | O62: 1225700 | P62: 7.56%
A63: 53 | B63: Capital_Goods | C63: CROMPTON | D63: 2022-10-27 | E63: 382.45 | F63: 381.63 | G63: 377.82 | H63: 373.18 | I63: 369.37 | J63: 386.27 | K63: 390.08 | L63: 394.72 | M63: 385.45 | N63: 377 | O63: 6394500 | P63: 3.47%
A64: 54 | B64: Banking | C64: CUB | D64: 2022-10-27 | E64: 191.15 | F64: 188.95 | G64: 186.05 | H64: 180.95 | I64: 178.05 | J64: 194.05 | K64: 196.95 | L64: 202.05 | M64: 191.85 | N64: 183.85 | O64: 10030000 | P64: 30.60%
A65: 55 | B65: Capital_Goods | C65: CUMMINSIND | D65: 2022-10-27 | E65: 1189.65 | F65: 1190.03 | G65: 1178.07 | H65: 1166.48 | I65: 1154.52 | J65: 1201.62 | K65: 1213.58 | L65: 1225.17 | M65: 1202 | N65: 1178.45 | O65: 3031200 | P65: -0.32%
A66: 56 | B66: FMCG | C66: DABUR | D66: 2022-10-27 | E66: 531.50 | F66: 531.47 | G66: 527.93 | H66: 524.37 | I66: 520.83 | J66: 535.03 | K66: 538.57 | L66: 542.13 | M66: 535 | N66: 527.9 | O66: 12890000 | P66: -0.16%
A67: 57 | B67: Cement | C67: DALBHARAT | D67: 2022-10-27 | E67: 1512.95 | F67: 1507.45 | G67: 1482.90 | H67: 1452.85 | I67: 1428.30 | J67: 1537.50 | K67: 1562.05 | L67: 1592.10 | M67: 1532 | N67: 1477.4 | O67: 1356000 | P67: -0.22%
A68: 58 | B68: Chemical | C68: DEEPAKNTR | D68: 2022-10-27 | E68: 2254.60 | F68: 2241.13 | G68: 2218.47 | H68: 2182.33 | I68: 2159.67 | J68: 2277.27 | K68: 2299.93 | L68: 2336.07 | M68: 2263.8 | N68: 2205 | O68: 1875500 | P68: 2.84%
A69: 59 | B69: Others | C69: DELTACORP | D69: 2022-10-27 | E69: 215.80 | F69: 213.62 | G69: 210.38 | H69: 204.97 | I69: 201.73 | J69: 219.03 | K69: 222.27 | L69: 227.68 | M69: 216.85 | N69: 208.2 | O69: 18588600 | P69: -2.57%
A70: 60 | B70: Pharma | C70: DIVISLAB | D70: 2022-10-27 | E70: 3581.15 | F70: 3582.75 | G70: 3556.85 | H70: 3532.55 | I70: 3506.65 | J70: 3607.05 | K70: 3632.95 | L70: 3657.25 | M70: 3608.65 | N70: 3558.45 | O70: 2451600 | P70: -0.25%
A71: 61 | B71: Others | C71: DIXON | D71: 2022-10-27 | E71: 4265.85 | F71: 4236.18 | G71: 4194.42 | H71: 4122.98 | I71: 4081.22 | J71: 4307.62 | K71: 4349.38 | L71: 4420.82 | M71: 4277.95 | N71: 4164.75 | O71: 609875 | P71: -3.06%
A72: 62 | B72: Realty | C72: DLF | D72: 2022-10-27 | E72: 359.55 | F72: 357.63 | G72: 353.32 | H72: 347.08 | I72: 342.77 | J72: 363.87 | K72: 368.18 | L72: 374.42 | M72: 361.95 | N72: 351.4 | O72: 45929400 | P72: -0.66%
A73: 63 | B73: Pharma | C73: DRREDDY | D73: 2022-10-27 | E73: 4324.80 | F73: 4323.28 | G73: 4291.57 | H73: 4258.33 | I73: 4226.62 | J73: 4356.52 | K73: 4388.23 | L73: 4421.47 | M73: 4355 | N73: 4290.05 | O73: 1696625 | P73: 1.00%
A74: 64 | B74: Automobile | C74: EICHERMOT | D74: 2022-10-27 | E74: 3513.80 | F74: 3505.20 | G74: 3483.60 | H74: 3453.40 | I74: 3431.80 | J74: 3535.40 | K74: 3557.00 | L74: 3587.20 | M74: 3526.8 | N74: 3475 | O74: 3418800 | P74: -2.31%
A75: 65 | B75: Automobile | C75: ESCORTS | D75: 2022-10-27 | E75: 1975.20 | F75: 1968.90 | G75: 1952.35 | H75: 1929.50 | I75: 1912.95 | J75: 1991.75 | K75: 2008.30 | L75: 2031.15 | M75: 1985.45 | N75: 1946.05 | O75: 1208350 | P75: -0.27%
A76: 66 | B76: Automobile | C76: EXIDEIND | D76: 2022-10-27 | E76: 155.00 | F76: 154.62 | G76: 153.53 | H76: 152.07 | I76: 150.98 | J76: 156.08 | K76: 157.17 | L76: 158.63 | M76: 155.7 | N76: 153.15 | O76: 26467200 | P76: 0.29%
A77: 67 | B77: Banking | C77: FEDERALBNK | D77: 2022-10-27 | E77: 131.65 | F77: 131.17 | G77: 129.73 | H77: 127.82 | I77: 126.38 | J77: 133.08 | K77: 134.52 | L77: 136.43 | M77: 132.6 | N77: 129.25 | O77: 105360000 | P77: 0.22%
A78: 68 | B78: Technology | C78: FSL | D78: 2022-10-27 | E78: 105.20 | F78: 104.47 | G78: 103.23 | H78: 101.27 | I78: 100.03 | J78: 106.43 | K78: 107.67 | L78: 109.63 | M78: 105.7 | N78: 102.5 | O78: 16806400 | P78: -1.70%
A79: 69 | B79: Oil_Gas | C79: GAIL | D79: 2022-10-27 | E79: 85.30 | F79: 85.15 | G79: 84.50 | H79: 83.70 | I79: 83.05 | J79: 85.95 | K79: 86.60 | L79: 87.40 | M79: 85.8 | N79: 84.35 | O79: 62348100 | P79: 2.61%
A80: 70 | B80: Pharma | C80: GLENMARK | D80: 2022-10-27 | E80: 394.70 | F80: 392.70 | G80: 388.90 | H80: 383.10 | I80: 379.30 | J80: 398.50 | K80: 402.30 | L80: 408.10 | M80: 396.5 | N80: 386.9 | O80: 8208700 | P80: 1.03%
A81: 71 | B81: Infrastructure | C81: GMRINFRA | D81: 2022-10-27 | E81: 34.80 | F81: 34.67 | G81: 34.23 | H81: 33.67 | I81: 33.23 | J81: 35.23 | K81: 35.67 | L81: 36.23 | M81: 35.1 | N81: 34.1 | O81: 129735000 | P81: -2.16%
A82: 72 | B82: Others | C82: GNFC | D82: 2022-10-27 | E82: 710.80 | F82: 708.55 | G82: 699.50 | H82: 688.20 | I82: 679.15 | J82: 719.85 | K82: 728.90 | L82: 740.20 | M82: 717.6 | N82: 697.25 | O82: 6381700 | P82: 10.99%
A83: 73 | B83: FMCG | C83: GODREJCP | D83: 2022-10-27 | E83: 835.80 | F83: 834.48 | G83: 828.42 | H83: 821.03 | I83: 814.97 | J83: 841.87 | K83: 847.93 | L83: 855.32 | M83: 840.55 | N83: 827.1 | O83: 6509000 | P83: -0.97%
A84: 74 | B84: Realty | C84: GODREJPROP | D84: 2022-10-27 | E84: 1187.85 | F84: 1177.67 | G84: 1161.53 | H84: 1135.22 | I84: 1119.08 | J84: 1203.98 | K84: 1220.12 | L84: 1246.43 | M84: 1193.8 | N84: 1151.35 | O84: 4634175 | P84: -0.90%
A85: 75 | B85: Pharma | C85: GRANULES | D85: 2022-10-27 | E85: 351.25 | F85: 347.95 | G85: 343.40 | H85: 335.55 | I85: 331.00 | J85: 355.80 | K85: 360.35 | L85: 368.20 | M85: 352.5 | N85: 340.1 | O85: 8766000 | P85: 0.90%
A86: 76 | B86: Cement | C86: GRASIM | D86: 2022-10-27 | E86: 1696.65 | F86: 1693.72 | G86: 1679.93 | H86: 1663.22 | I86: 1649.43 | J86: 1710.43 | K86: 1724.22 | L86: 1740.93 | M86: 1707.5 | N86: 1677 | O86: 7086050 | P86: 1.10%
A87: 77 | B87: Oil_Gas | C87: GSPL | D87: 2022-10-27 | E87: 221.10 | F87: 221.40 | G87: 219.30 | H87: 217.50 | I87: 215.40 | J87: 223.20 | K87: 225.30 | L87: 227.10 | M87: 223.5 | N87: 219.6 | O87: 5385000 | P87: -0.14%
A88: 78 | B88: Oil_Gas | C88: GUJGASLTD | D88: 2022-10-27 | E88: 469.10 | F88: 469.27 | G88: 462.53 | H88: 455.97 | I88: 449.23 | J88: 475.83 | K88: 482.57 | L88: 489.13 | M88: 476 | N88: 462.7 | O88: 7665000 | P88: 1.44%
A89: 79 | B89: Others | C89: HAL | D89: 2022-10-27 | E89: 2374.15 | F89: 2371.65 | G89: 2348.30 | H89: 2322.45 | I89: 2299.10 | J89: 2397.50 | K89: 2420.85 | L89: 2446.70 | M89: 2395 | N89: 2345.8 | O89: 4055075 | P89: 7.29%
A90: 80 | B90: Capital_Goods | C90: HAVELLS | D90: 2022-10-27 | E90: 1237.10 | F90: 1244.55 | G90: 1217.15 | H90: 1197.20 | I90: 1169.80 | J90: 1264.50 | K90: 1291.90 | L90: 1311.85 | M90: 1271.95 | N90: 1224.6 | O90: 4238500 | P90: 1.57%
A91: 81 | B91: Technology | C91: HCLTECH | D91: 2022-10-27 | E91: 985.30 | F91: 988.27 | G91: 979.03 | H91: 972.77 | I91: 963.53 | J91: 994.53 | K91: 1003.77 | L91: 1010.03 | M91: 997.5 | N91: 982 | O91: 18529000 | P91: -1.28%
A92: 82 | B92: Finance | C92: HDFC | D92: 2022-10-27 | E92: 2348.45 | F92: 2347.65 | G92: 2322.00 | H92: 2295.55 | I92: 2269.90 | J92: 2374.10 | K92: 2399.75 | L92: 2426.20 | M92: 2373.3 | N92: 2321.2 | O92: 18304500 | P92: 2.41%
A93: 83 | B93: Finance | C93: HDFCAMC | D93: 2022-10-27 | E93: 1914.60 | F93: 1906.23 | G93: 1890.57 | H93: 1866.53 | I93: 1850.87 | J93: 1930.27 | K93: 1945.93 | L93: 1969.97 | M93: 1921.9 | N93: 1882.2 | O93: 2594100 | P93: 1.11%
A94: 84 | B94: Banking | C94: HDFCBANK | D94: 2022-10-27 | E94: 1448.20 | F94: 1446.88 | G94: 1432.87 | H94: 1417.53 | I94: 1403.52 | J94: 1462.22 | K94: 1476.23 | L94: 1491.57 | M94: 1460.9 | N94: 1431.55 | O94: 64656900 | P94: 0.49%
A95: 85 | B95: Finance | C95: HDFCLIFE | D95: 2022-10-27 | E95: 524.75 | F95: 523.97 | G95: 521.13 | H95: 517.52 | I95: 514.68 | J95: 527.58 | K95: 530.42 | L95: 534.03 | M95: 526.8 | N95: 520.35 | O95: 22833800 | P95: -0.32%
A96: 86 | B96: Automobile | C96: HEROMOTOCO | D96: 2022-10-27 | E96: 2554.30 | F96: 2551.28 | G96: 2537.12 | H96: 2519.93 | I96: 2505.77 | J96: 2568.47 | K96: 2582.63 | L96: 2599.82 | M96: 2565.45 | N96: 2534.1 | O96: 2988300 | P96: -3.58%
A97: 87 | B97: Metals | C97: HINDALCO | D97: 2022-10-27 | E97: 389.50 | F97: 391.08 | G97: 385.42 | H97: 381.33 | I97: 375.67 | J97: 395.17 | K97: 400.83 | L97: 404.92 | M97: 396.75 | N97: 387 | O97: 31034175 | P97: 3.64%
A98: 88 | B98: Metals | C98: HINDCOPPER | D98: 2022-10-27 | E98: 107.15 | F98: 107.00 | G98: 105.50 | H98: 103.85 | I98: 102.35 | J98: 108.65 | K98: 110.15 | L98: 111.80 | M98: 108.5 | N98: 105.35 | O98: 18361000 | P98: 2.15%
A99: 89 | B99: Oil_Gas | C99: HINDPETRO | D99: 2022-10-27 | E99: 202.70 | F99: 203.28 | G99: 200.92 | H99: 199.13 | I99: 196.77 | J99: 205.07 | K99: 207.43 | L99: 209.22 | M99: 205.65 | N99: 201.5 | O99: 21726900 | P99: 0.85%
A100: 90 | B100: FMCG | C100: HINDUNILVR | D100: 2022-10-27 | E100: 2593.05 | F100: 2591.28 | G100: 2571.77 | H100: 2550.48 | I100: 2530.97 | J100: 2612.57 | K100: 2632.08 | L100: 2653.37 | M100: 2610.8 | N100: 2570 | O100: 8149500 | P100: -1.91%
A101: 91 | B101: Others | C101: HONAUT | D101: 2022-10-27 | E101: 38456.05 | F101: 38339.00 | G101: 38028.45 | H101: 37600.85 | I101: 37290.30 | J101: 38766.60 | K101: 39077.15 | L101: 39504.75 | M101: 38649.55 | N101: 37911.4 | O101: 19635 | P101: -0.30%
A102: 92 | B102: Finance | C102: IBULHSGFIN | D102: 2022-10-27 | E102: 125.85 | F102: 126.50 | G102: 124.80 | H102: 123.75 | I102: 122.05 | J102: 127.55 | K102: 129.25 | L102: 130.30 | M102: 128.2 | N102: 125.45 | O102: 45716000 | P102: -1.30%
A103: 93 | B103: Banking | C103: ICICIBANK | D103: 2022-10-27 | E103: 885.75 | F103: 880.73 | G103: 873.97 | H103: 862.18 | I103: 855.42 | J103: 892.52 | K103: 899.28 | L103: 911.07 | M103: 887.5 | N103: 868.95 | O103: 74291250 | P103: -0.46%
A104: 94 | B104: Finance | C104: ICICIGI | D104: 2022-10-27 | E104: 1130.90 | F104: 1129.07 | G104: 1120.73 | H104: 1110.57 | I104: 1102.23 | J104: 1139.23 | K104: 1147.57 | L104: 1157.73 | M104: 1137.4 | N104: 1118.9 | O104: 5477825 | P104: 1.10%
A105: 95 | B105: Finance | C105: ICICIPRULI | D105: 2022-10-27 | E105: 511.80 | F105: 510.97 | G105: 505.83 | H105: 499.87 | I105: 494.73 | J105: 516.93 | K105: 522.07 | L105: 528.03 | M105: 516.1 | N105: 505 | O105: 7021500 | P105: 2.47%
A106: 96 | B106: Telecom | C106: IDEA | D106: 2022-10-27 | E106: 8.45 | F106: 8.45 | G106: 8.35 | H106: 8.25 | I106: 8.15 | J106: 8.55 | K106: 8.65 | L106: 8.75 | M106: 8.55 | N106: 8.35 | O106: 560980000 | P106: 0.40%
A107: 97 | B107: Finance | C107: IDFC | D107: 2022-10-27 | E107: 77.60 | F107: 77.15 | G107: 76.10 | H107: 74.60 | I107: 73.55 | J107: 78.65 | K107: 79.70 | L107: 81.20 | M107: 78.2 | N107: 75.65 | O107: 128060000 | P107: 0.72%
A108: 98 | B108: Banking | C108: IDFCFIRSTB | D108: 2022-10-27 | E108: 55.90 | F108: 55.28 | G108: 54.52 | H108: 53.13 | I108: 52.37 | J108: 56.67 | K108: 57.43 | L108: 58.82 | M108: 56.05 | N108: 53.9 | O108: 186900000 | P108: -1.13%
A109: 99 | B109: Others | C109: IEX | D109: 2022-10-27 | E109: 139.40 | F109: 139.07 | G109: 137.13 | H109: 134.87 | I109: 132.93 | J109: 141.33 | K109: 143.27 | L109: 145.53 | M109: 141 | N109: 136.8 | O109: 53130000 | P109: 0.83%
A110: 100 | B110: Oil_Gas | C110: IGL | D110: 2022-10-27 | E110: 378.45 | F110: 380.00 | G110: 372.50 | H110: 366.55 | I110: 359.05 | J110: 385.95 | K110: 393.45 | L110: 399.40 | M110: 387.5 | N110: 374.05 | O110: 14427875 | P110: 3.86%
A111: 101 | B111: Infrastructure | C111: INDHOTEL | D111: 2022-10-27 | E111: 318.60 | F111: 314.52 | G111: 310.13 | H111: 301.67 | I111: 297.28 | J111: 322.98 | K111: 327.37 | L111: 335.83 | M111: 318.9 | N111: 306.05 | O111: 30526980 | P111: 3.17%
A112: 102 | B112: Cement | C112: INDIACEM | D112: 2022-10-27 | E112: 234.25 | F112: 231.80 | G112: 227.80 | H112: 221.35 | I112: 217.35 | J112: 238.25 | K112: 242.25 | L112: 248.70 | M112: 235.8 | N112: 225.35 | O112: 16196500 | P112: -6.29%
A113: 103 | B113: Others | C113: INDIAMART | D113: 2022-10-27 | E113: 4349.15 | F113: 4312.25 | G113: 4244.55 | H113: 4139.95 | I113: 4072.25 | J113: 4416.85 | K113: 4484.55 | L113: 4589.15 | M113: 4379.95 | N113: 4207.65 | O113: 316950 | P113: 11.98%
A114: 104 | B114: Others | C114: INDIGO | D114: 2022-10-27 | E114: 1746.75 | F114: 1745.08 | G114: 1731.67 | H114: 1716.58 | I114: 1703.17 | J114: 1760.17 | K114: 1773.58 | L114: 1788.67 | M114: 1758.5 | N114: 1730 | O114: 4089600 | P114: 1.31%
A115: 105 | B115: Banking | C115: INDUSINDBK | D115: 2022-10-27 | E115: 1203.10 | F115: 1192.25 | G115: 1177.90 | H115: 1152.70 | I115: 1138.35 | J115: 1217.45 | K115: 1231.80 | L115: 1257.00 | M115: 1206.6 | N115: 1167.05 | O115: 23788800 | P115: 3.25%
A116: 106 | B116: Telecom | C116: INDUSTOWER | D116: 2022-10-27 | E116: 188.80 | F116: 188.82 | G116: 187.73 | H116: 186.67 | I116: 185.58 | J116: 189.88 | K116: 190.97 | L116: 192.03 | M116: 189.9 | N116: 187.75 | O116: 17066000 | P116: 2.35%
A117: 107 | B117: Technology | C117: INFY | D117: 2022-10-27 | E117: 1476.95 | F117: 1473.55 | G117: 1464.15 | H117: 1451.35 | I117: 1441.95 | J117: 1486.35 | K117: 1495.75 | L117: 1508.55 | M117: 1482.95 | N117: 1460.75 | O117: 39399000 | P117: -5.75%
A118: 108 | B118: Technology | C118: INTELLECT | D118: 2022-10-27 | E118: 524.30 | F118: 524.77 | G118: 518.98 | H118: 513.67 | I118: 507.88 | J118: 530.08 | K118: 535.87 | L118: 541.18 | M118: 530.55 | N118: 519.45 | O118: 1803000 | P118: 1.22%
A119: 109 | B119: Oil_Gas | C119: IOC | D119: 2022-10-27 | E119: 66.35 | F119: 66.23 | G119: 65.67 | H119: 64.98 | I119: 64.42 | J119: 66.92 | K119: 67.48 | L119: 68.17 | M119: 66.8 | N119: 65.55 | O119: 103603500 | P119: 1.49%
A120: 110 | B120: Pharma | C120: IPCALAB | D120: 2022-10-27 | E120: 893.15 | F120: 891.68 | G120: 883.67 | H120: 874.18 | I120: 866.17 | J120: 901.17 | K120: 909.18 | L120: 918.67 | M120: 899.7 | N120: 882.2 | O120: 1409850 | P120: -0.96%
A121: 111 | B121: Others | C121: IRCTC | D121: 2022-10-27 | E121: 723.35 | F121: 718.55 | G121: 712.80 | H121: 702.25 | I121: 696.50 | J121: 729.10 | K121: 734.85 | L121: 745.40 | M121: 724.3 | N121: 708 | O121: 15430625 | P121: 2.57%
A122: 112 | B122: FMCG | C122: ITC | D122: 2022-10-27 | E122: 332.95 | F122: 332.92 | G122: 330.48 | H122: 328.02 | I122: 325.58 | J122: 335.38 | K122: 337.82 | L122: 340.28 | M122: 335.35 | N122: 330.45 | O122: 77539200 | P122: 0.33%
A123: 113 | B123: Metals | C123: JINDALSTEL | D123: 2022-10-27 | E123: 439.70 | F123: 436.93 | G123: 431.92 | H123: 424.13 | I123: 419.12 | J123: 444.72 | K123: 449.73 | L123: 457.52 | M123: 441.95 | N123: 429.15 | O123: 28091250 | P123: 1.52%
A124: 114 | B124: Cement | C124: JKCEMENT | D124: 2022-10-27 | E124: 2499.00 | F124: 2476.23 | G124: 2442.12 | H124: 2385.23 | I124: 2351.12 | J124: 2533.12 | K124: 2567.23 | L124: 2624.12 | M124: 2510.35 | N124: 2419.35 | O124: 460750 | P124: 1.77%
A125: 115 | B125: Metals | C125: JSWSTEEL | D125: 2022-10-27 | E125: 633.95 | F125: 632.00 | G125: 626.60 | H125: 619.25 | I125: 613.85 | J125: 639.35 | K125: 644.75 | L125: 652.10 | M125: 637.4 | N125: 624.65 | O125: 27457650 | P125: 0.75%
A126: 116 | B126: Others | C126: JUBLFOOD | D126: 2022-10-27 | E126: 598.55 | F126: 594.80 | G126: 588.85 | H126: 579.15 | I126: 573.20 | J126: 604.50 | K126: 610.45 | L126: 620.15 | M126: 600.75 | N126: 585.1 | O126: 11153750 | P126: 0.38%
A127: 117 | B127: Banking | C127: KOTAKBANK | D127: 2022-10-27 | E127: 1858.75 | F127: 1849.62 | G127: 1835.23 | H127: 1811.72 | I127: 1797.33 | J127: 1873.13 | K127: 1887.52 | L127: 1911.03 | M127: 1864 | N127: 1826.1 | O127: 23472000 | P127: -0.49%
A128: 118 | B128: Finance | C128: L&TFH | D128: 2022-10-27 | E128: 77.70 | F128: 77.02 | G128: 75.98 | H128: 74.27 | I128: 73.23 | J128: 78.73 | K128: 79.77 | L128: 81.48 | M128: 78.05 | N128: 75.3 | O128: 53660012 | P128: 0.57%
A129: 119 | B129: Others | C129: LALPATHLAB | D129: 2022-10-27 | E129: 2392.40 | F129: 2380.22 | G129: 2352.43 | H129: 2312.47 | I129: 2284.68 | J129: 2420.18 | K129: 2447.97 | L129: 2487.93 | M129: 2408 | N129: 2340.25 | O129: 1219000 | P129: -1.22%
A130: 120 | B130: Pharma | C130: LAURUSLABS | D130: 2022-10-27 | E130: 514.40 | F130: 516.45 | G130: 509.55 | H130: 504.70 | I130: 497.80 | J130: 521.30 | K130: 528.20 | L130: 533.05 | M130: 523.35 | N130: 511.6 | O130: 6161400 | P130: 0.90%
A131: 121 | B131: Finance | C131: LICHSGFIN | D131: 2022-10-27 | E131: 408.40 | F131: 406.12 | G131: 402.83 | H131: 397.27 | I131: 393.98 | J131: 411.68 | K131: 414.97 | L131: 420.53 | M131: 409.4 | N131: 400.55 | O131: 10952000 | P131: -1.35%
A132: 122 | B132: Capital_Goods | C132: LT | D132: 2022-10-27 | E132: 1889.15 | F132: 1897.85 | G132: 1875.30 | H132: 1861.45 | I132: 1838.90 | J132: 1911.70 | K132: 1934.25 | L132: 1948.10 | M132: 1920.4 | N132: 1884 | O132: 8890200 | P132: 1.45%
A133: 123 | B133: Technology | C133: LTI | D133: 2022-10-27 | E133: 4651.05 | F133: 4643.10 | G133: 4592.00 | H133: 4532.95 | I133: 4481.85 | J133: 4702.15 | K133: 4753.25 | L133: 4812.30 | M133: 4694.2 | N133: 4584.05 | O133: 1386450 | P133: -3.19%
A134: 124 | B134: Technology | C134: LTTS | D134: 2022-10-27 | E134: 3568.65 | F134: 3556.45 | G134: 3509.00 | H134: 3449.35 | I134: 3401.90 | J134: 3616.10 | K134: 3663.55 | L134: 3723.20 | M134: 3603.9 | N134: 3496.8 | O134: 1022200 | P134: 5.91%
A135: 125 | B135: Pharma | C135: LUPIN | D135: 2022-10-27 | E135: 692.75 | F135: 692.23 | G135: 686.97 | H135: 681.18 | I135: 675.92 | J135: 698.02 | K135: 703.28 | L135: 709.07 | M135: 697.5 | N135: 686.45 | O135: 7580300 | P135: -0.62%
A136: 126 | B136: Automobile | C136: M&M | D136: 2022-10-27 | E136: 1233.45 | F136: 1224.05 | G136: 1209.30 | H136: 1185.15 | I136: 1170.40 | J136: 1248.20 | K136: 1262.95 | L136: 1287.10 | M136: 1238.8 | N136: 1199.9 | O136: 11602500 | P136: -2.93%
A137: 127 | B137: Finance | C137: M&MFIN | D137: 2022-10-27 | E137: 210.45 | F137: 209.25 | G137: 207.30 | H137: 204.15 | I137: 202.20 | J137: 212.40 | K137: 214.35 | L137: 217.50 | M137: 211.2 | N137: 206.1 | O137: 19892000 | P137: 6.44%
A138: 128 | B138: Finance | C138: MANAPPURAM | D138: 2022-10-27 | E138: 102.70 | F138: 101.87 | G138: 100.83 | H138: 98.97 | I138: 97.93 | J138: 103.73 | K138: 104.77 | L138: 106.63 | M138: 102.9 | N138: 100 | O138: 28776000 | P138: 2.92%
A139: 129 | B139: FMCG | C139: MARICO | D139: 2022-10-27 | E139: 514.95 | F139: 513.83 | G139: 511.47 | H139: 507.98 | I139: 505.62 | J139: 517.32 | K139: 519.68 | L139: 523.17 | M139: 516.2 | N139: 510.35 | O139: 9547200 | P139: -1.18%
A140: 130 | B140: Automobile | C140: MARUTI | D140: 2022-10-27 | E140: 8732.65 | F140: 8689.22 | G140: 8618.43 | H140: 8504.22 | I140: 8433.43 | J140: 8803.43 | K140: 8874.22 | L140: 8988.43 | M140: 8760 | N140: 8575 | O140: 3131800 | P140: -3.45%
A141: 131 | B141: FMCG | C141: MCDOWELL-N | D141: 2022-10-27 | E141: 827.75 | F141: 826.30 | G141: 821.45 | H141: 815.15 | I141: 810.30 | J141: 832.60 | K141: 837.45 | L141: 843.75 | M141: 831.15 | N141: 820 | O141: 19414375 | P141: -0.40%
A142: 132 | B142: Others | C142: MCX | D142: 2022-10-27 | E142: 1305.20 | F142: 1308.63 | G142: 1294.62 | H142: 1284.03 | I142: 1270.02 | J142: 1319.22 | K142: 1333.23 | L142: 1343.82 | M142: 1322.65 | N142: 1298.05 | O142: 2246000 | P142: -0.62%
A143: 133 | B143: Pharma | C143: METROPOLIS | D143: 2022-10-27 | E143: 1542.05 | F143: 1546.48 | G143: 1524.97 | H143: 1507.88 | I143: 1486.37 | J143: 1563.57 | K143: 1585.08 | L143: 1602.17 | M143: 1568 | N143: 1529.4 | O143: 720000 | P143: 4.17%
A144: 134 | B144: Finance | C144: MFSL | D144: 2022-10-27 | E144: 715.50 | F144: 719.90 | G144: 703.60 | H144: 691.70 | I144: 675.40 | J144: 731.80 | K144: 748.10 | L144: 760.00 | M144: 736.2 | N144: 708 | O144: 2315300 | P144: -4.40%
A145: 135 | B145: Oil_Gas | C145: MGL | D145: 2022-10-27 | E145: 796.75 | F145: 802.15 | G145: 787.15 | H145: 777.55 | I145: 762.55 | J145: 811.75 | K145: 826.75 | L145: 836.35 | M145: 817.15 | N145: 792.55 | O145: 3408800 | P145: 3.98%
A146: 136 | B146: Technology | C146: MINDTREE | D146: 2022-10-27 | E146: 3342.55 | F146: 3342.45 | G146: 3302.60 | H146: 3262.65 | I146: 3222.80 | J146: 3382.40 | K146: 3422.25 | L146: 3462.20 | M146: 3382.3 | N146: 3302.5 | O146: 2640200 | P146: 2.18%
A147: 137 | B147: Automobile | C147: MOTHERSON | D147: 2022-10-27 | E147: 69.30 | F147: 69.22 | G147: 68.68 | H147: 68.07 | I147: 67.53 | J147: 69.83 | K147: 70.37 | L147: 70.98 | M147: 69.75 | N147: 68.6 | O147: 73602000 | P147: 2.33%
A148: 138 | B148: Technology | C148: MPHASIS | D148: 2022-10-27 | E148: 2107.10 | F148: 2104.13 | G148: 2091.77 | H148: 2076.43 | I148: 2064.07 | J148: 2119.47 | K148: 2131.83 | L148: 2147.17 | M148: 2116.5 | N148: 2088.8 | O148: 2228800 | P148: 2.98%
A149: 139 | B149: Automobile | C149: MRF | D149: 2022-10-27 | E149: 82412.75 | F149: 81990.95 | G149: 81141.90 | H149: 79871.05 | I149: 79022.00 | J149: 83261.80 | K149: 84110.85 | L149: 85381.70 | M149: 82840 | N149: 80720.1 | O149: 56490 | P149: -0.63%
A150: 140 | B150: Finance | C150: MUTHOOTFIN | D150: 2022-10-27 | E150: 1022.20 | F150: 1017.07 | G150: 1009.13 | H150: 996.07 | I150: 988.13 | J150: 1030.13 | K150: 1038.07 | L150: 1051.13 | M150: 1025 | N150: 1004 | O150: 8137500 | P150: 3.30%
A151: 141 | B151: Metals | C151: NATIONALUM | D151: 2022-10-27 | E151: 69.00 | F151: 69.13 | G151: 68.47 | H151: 67.93 | I151: 67.27 | J151: 69.67 | K151: 70.33 | L151: 70.87 | M151: 69.8 | N151: 68.6 | O151: 76364000 | P151: 6.22%
A152: 142 | B152: Others | C152: NAUKRI | D152: 2022-10-27 | E152: 3801.60 | F152: 3784.77 | G152: 3745.53 | H152: 3689.47 | I152: 3650.23 | J152: 3840.83 | K152: 3880.07 | L152: 3936.13 | M152: 3824 | N152: 3728.7 | O152: 1800375 | P152: 0.45%
A153: 143 | B153: Chemical | C153: NAVINFLUOR | D153: 2022-10-27 | E153: 4426.05 | F153: 4487.28 | G153: 4345.87 | H153: 4265.68 | I153: 4124.27 | J153: 4567.47 | K153: 4708.88 | L153: 4789.07 | M153: 4628.7 | N153: 4407.1 | O153: 615600 | P153: 3.79%
A154: 144 | B154: FMCG | C154: NESTLEIND | D154: 2022-10-27 | E154: 18949.25 | F154: 18947.33 | G154: 18807.72 | H154: 18666.18 | I154: 18526.57 | J154: 19088.87 | K154: 19228.48 | L154: 19370.02 | M154: 19086.95 | N154: 18805.8 | O154: 244440 | P154: 4.12%
A155: 145 | B155: Metals | C155: NMDC | D155: 2022-10-27 | E155: 133.40 | F155: 132.63 | G155: 131.12 | H155: 128.83 | I155: 127.32 | J155: 134.92 | K155: 136.43 | L155: 138.72 | M155: 134.15 | N155: 130.35 | O155: 51640250 | P155: -1.65%
A156: 146 | B156: Power | C156: NTPC | D156: 2022-10-27 | E156: 168.45 | F156: 167.13 | G156: 165.37 | H156: 162.28 | I156: 160.52 | J156: 170.22 | K156: 171.98 | L156: 175.07 | M156: 168.9 | N156: 164.05 | O156: 64107900 | P156: 2.11%
A157: 147 | B157: Realty | C157: OBEROIRLTY | D157: 2022-10-27 | E157: 857.65 | F157: 861.00 | G157: 830.65 | H157: 803.65 | I157: 773.30 | J157: 888.00 | K157: 918.35 | L157: 945.35 | M157: 891.35 | N157: 834 | O157: 6365100 | P157: 5.76%
A158: 148 | B158: Technology | C158: OFSS | D158: 2022-10-27 | E158: 2948.80 | F158: 2945.77 | G158: 2931.63 | H158: 2914.47 | I158: 2900.33 | J158: 2962.93 | K158: 2977.07 | L158: 2994.23 | M158: 2959.9 | N158: 2928.6 | O158: 541200 | P158: 1.65%
A159: 149 | B159: Oil_Gas | C159: ONGC | D159: 2022-10-27 | E159: 127.85 | F159: 127.37 | G159: 126.38 | H159: 124.92 | I159: 123.93 | J159: 128.83 | K159: 129.82 | L159: 131.28 | M159: 128.35 | N159: 125.9 | O159: 42977550 | P159: -1.95%
A160: 150 | B160: Textile | C160: PAGEIND | D160: 2022-10-27 | E160: 51338.00 | F160: 50995.82 | G160: 50506.98 | H160: 49675.97 | I160: 49187.13 | J160: 51826.83 | K160: 52315.67 | L160: 53146.68 | M160: 51484.65 | N160: 50164.8 | O160: 79320 | P160: -1.47%
A161: 151 | B161: Pharma | C161: PEL | D161: 2022-10-27 | E161: 805.75 | F161: 801.98 | G161: 790.27 | H161: 774.78 | I161: 763.07 | J161: 817.47 | K161: 829.18 | L161: 844.67 | M161: 813.7 | N161: 786.5 | O161: 5359475 | P161: 0.98%
A162: 152 | B162: Technology | C162: PERSISTENT | D162: 2022-10-27 | E162: 3626.65 | F162: 3628.87 | G162: 3588.78 | H162: 3550.92 | I162: 3510.83 | J162: 3666.73 | K162: 3706.82 | L162: 3744.68 | M162: 3668.95 | N162: 3591 | O162: 618600 | P162: 6.92%
A163: 153 | B163: Oil_Gas | C163: PETRONET | D163: 2022-10-27 | E163: 201.20 | F163: 201.05 | G163: 199.85 | H163: 198.50 | I163: 197.30 | J163: 202.40 | K163: 203.60 | L163: 204.95 | M163: 202.25 | N163: 199.7 | O163: 14244000 | P163: 1.60%
A164: 154 | B164: Finance | C164: PFC | D164: 2022-10-27 | E164: 102.25 | F164: 101.87 | G164: 101.33 | H164: 100.42 | I164: 99.88 | J164: 102.78 | K164: 103.32 | L164: 104.23 | M164: 102.4 | N164: 100.95 | O164: 65372800 | P164: 1.91%
A165: 155 | B165: FMCG | C165: PIDILITIND | D165: 2022-10-27 | E165: 2698.60 | F165: 2682.88 | G165: 2649.82 | H165: 2601.03 | I165: 2567.97 | J165: 2731.67 | K165: 2764.73 | L165: 2813.52 | M165: 2715.95 | N165: 2634.1 | O165: 2841500 | P165: 4.00%
A166: 156 | B166: Chemical | C166: PIIND | D166: 2022-10-27 | E166: 3061.35 | F166: 3057.80 | G166: 3016.55 | H166: 2971.75 | I166: 2930.50 | J166: 3102.60 | K166: 3143.85 | L166: 3188.65 | M166: 3099.05 | N166: 3013 | O166: 1731500 | P166: -0.50%
A167: 157 | B167: Banking | C167: PNB | D167: 2022-10-27 | E167: 37.05 | F167: 36.62 | G167: 35.98 | H167: 34.92 | I167: 34.28 | J167: 37.68 | K167: 38.32 | L167: 39.38 | M167: 37.25 | N167: 35.55 | O167: 271728000 | P167: 1.15%
A168: 158 | B168: Others | C168: POLYCAB | D168: 2022-10-27 | E168: 2612.75 | F168: 2590.95 | G168: 2561.90 | H168: 2511.05 | I168: 2482.00 | J168: 2641.80 | K168: 2670.85 | L168: 2721.70 | M168: 2620 | N168: 2540.1 | O168: 1073400 | P168: 1.47%
A169: 159 | B169: Power | C169: POWERGRID | D169: 2022-10-27 | E169: 212.60 | F169: 213.12 | G169: 211.03 | H169: 209.47 | I169: 207.38 | J169: 214.68 | K169: 216.77 | L169: 218.33 | M169: 215.2 | N169: 211.55 | O169: 47044800 | P169: -0.54%
A170: 160 | B170: Media | C170: PVR | D170: 2022-10-27 | E170: 1689.70 | F170: 1694.27 | G170: 1659.53 | H170: 1629.37 | I170: 1594.63 | J170: 1724.43 | K170: 1759.17 | L170: 1789.33 | M170: 1729 | N170: 1664.1 | O170: 3554738 | P170: 4.20%
A171: 161 | B171: Others | C171: RAIN | D171: 2022-10-27 | E171: 166.85 | F171: 165.35 | G171: 163.60 | H171: 160.35 | I171: 158.60 | J171: 168.60 | K171: 170.35 | L171: 173.60 | M171: 167.1 | N171: 162.1 | O171: 11574500 | P171: 2.07%
A172: 162 | B172: Cement | C172: RAMCOCEM | D172: 2022-10-27 | E172: 705.15 | F172: 699.77 | G172: 689.53 | H172: 673.92 | I172: 663.68 | J172: 715.38 | K172: 725.62 | L172: 741.23 | M172: 710 | N172: 684.15 | O172: 4298450 | P172: 0.58%
A173: 163 | B173: Banking | C173: RBLBANK | D173: 2022-10-27 | E173: 127.50 | F173: 126.22 | G173: 124.38 | H173: 121.27 | I173: 119.43 | J173: 129.33 | K173: 131.17 | L173: 134.28 | M173: 128.05 | N173: 123.1 | O173: 47080000 | P173: 1.37%
A174: 164 | B174: Power | C174: RECLTD | D174: 2022-10-27 | E174: 92.00 | F174: 91.78 | G174: 91.27 | H174: 90.53 | I174: 90.02 | J174: 92.52 | K174: 93.03 | L174: 93.77 | M174: 92.3 | N174: 91.05 | O174: 48200000 | P174: 2.14%
A175: 165 | B175: Oil_Gas | C175: RELIANCE | D175: 2022-10-27 | E175: 2410.40 | F175: 2392.70 | G175: 2368.70 | H175: 2327.00 | I175: 2303.00 | J175: 2434.40 | K175: 2458.40 | L175: 2500.10 | M175: 2416.7 | N175: 2351 | O175: 35636250 | P175: -1.16%
A176: 166 | B176: Metals | C176: SAIL | D176: 2022-10-27 | E176: 78.40 | F176: 77.72 | G176: 76.93 | H176: 75.47 | I176: 74.68 | J176: 79.18 | K176: 79.97 | L176: 81.43 | M176: 78.5 | N176: 76.25 | O176: 101232000 | P176: 3.05%
A177: 167 | B177: Banking | C177: SBICARD | D177: 2022-10-27 | E177: 858.65 | F177: 850.57 | G177: 840.13 | H177: 821.62 | I177: 811.18 | J177: 869.08 | K177: 879.52 | L177: 898.03 | M177: 861 | N177: 832.05 | O177: 5417600 | P177: -0.47%
A178: 168 | B178: Finance | C178: SBILIFE | D178: 2022-10-27 | E178: 1193.30 | F178: 1188.73 | G178: 1175.57 | H178: 1157.83 | I178: 1144.67 | J178: 1206.47 | K178: 1219.63 | L178: 1237.37 | M178: 1201.9 | N178: 1171 | O178: 6475500 | P178: 7.16%
A179: 169 | B179: Banking | C179: SBIN | D179: 2022-10-27 | E179: 544.80 | F179: 537.43 | G179: 529.37 | H179: 513.93 | I179: 505.87 | J179: 552.87 | K179: 560.93 | L179: 576.37 | M179: 545.5 | N179: 522 | O179: 54667500 | P179: -0.52%
A180: 170 | B180: Cement | C180: SHREECEM | D180: 2022-10-27 | E180: 20686.55 | F180: 20588.85 | G180: 20077.70 | H180: 19468.85 | I180: 18957.70 | J180: 21197.70 | K180: 21708.85 | L180: 22317.70 | M180: 21100 | N180: 19980 | O180: 406900 | P180: 13.15%
A181: 171 | B181: Capital_Goods | C181: SIEMENS | D181: 2022-10-27 | E181: 2750.70 | F181: 2746.40 | G181: 2731.00 | H181: 2711.30 | I181: 2695.90 | J181: 2766.10 | K181: 2781.50 | L181: 2801.20 | M181: 2761.8 | N181: 2726.7 | O181: 1685200 | P181: -1.84%
A182: 172 | B182: Textile | C182: SRF | D182: 2022-10-27 | E182: 2558.95 | F182: 2541.43 | G182: 2503.62 | H182: 2448.28 | I182: 2410.47 | J182: 2596.77 | K182: 2634.58 | L182: 2689.92 | M182: 2579.25 | N182: 2486.1 | O182: 3718500 | P182: -1.55%
A183: 173 | B183: Finance | C183: SRTRANSFIN | D183: 2022-10-27 | E183: 1191.10 | F183: 1183.30 | G183: 1171.30 | H183: 1151.50 | I183: 1139.50 | J183: 1203.10 | K183: 1215.10 | L183: 1234.90 | M183: 1195.3 | N183: 1163.5 | O183: 4326000 | P183: -0.50%
A184: 174 | B184: Pharma | C184: SUNPHARMA | D184: 2022-10-27 | E184: 979.85 | F184: 979.68 | G184: 974.57 | H184: 969.28 | I184: 964.17 | J184: 984.97 | K184: 990.08 | L184: 995.37 | M184: 984.8 | N184: 974.4 | O184: 21394800 | P184: -1.77%
A185: 175 | B185: Media | C185: SUNTV | D185: 2022-10-27 | E185: 531.90 | F185: 532.92 | G185: 527.83 | H185: 523.77 | I185: 518.68 | J185: 536.98 | K185: 542.07 | L185: 546.13 | M185: 538 | N185: 528.85 | O185: 10063500 | P185: -0.90%
A186: 176 | B186: Pharma | C186: SYNGENE | D186: 2022-10-27 | E186: 538.40 | F186: 542.62 | G186: 532.23 | H186: 526.07 | I186: 515.68 | J186: 548.78 | K186: 559.17 | L186: 565.33 | M186: 553 | N186: 536.45 | O186: 2711000 | P186: 19.53%
A187: 177 | B187: Chemical | C187: TATACHEM | D187: 2022-10-27 | E187: 1165.55 | F187: 1156.03 | G187: 1140.22 | H187: 1114.88 | I187: 1099.07 | J187: 1181.37 | K187: 1197.18 | L187: 1222.52 | M187: 1171.85 | N187: 1130.7 | O187: 8170000 | P187: 4.93%
A188: 178 | B188: Telecom | C188: TATACOMM | D188: 2022-10-27 | E188: 1198.20 | F188: 1190.98 | G188: 1174.07 | H188: 1149.93 | I188: 1133.02 | J188: 1215.12 | K188: 1232.03 | L188: 1256.17 | M188: 1207.9 | N188: 1166.85 | O188: 2689500 | P188: 3.18%
A189: 179 | B189: FMCG | C189: TATACONSUM | D189: 2022-10-27 | E189: 765.35 | F189: 765.02 | G189: 758.03 | H189: 750.72 | I189: 743.73 | J189: 772.33 | K189: 779.32 | L189: 786.63 | M189: 772 | N189: 757.7 | O189: 9194400 | P189: 1.20%
A190: 180 | B190: Automobile | C190: TATAMOTORS | D190: 2022-10-27 | E190: 396.55 | F190: 395.48 | G190: 392.22 | H190: 387.88 | I190: 384.62 | J190: 399.82 | K190: 403.08 | L190: 407.42 | M190: 398.75 | N190: 391.15 | O190: 83292675 | P190: -0.49%
A191: 181 | B191: Power | C191: TATAPOWER | D191: 2022-10-27 | E191: 218.45 | F191: 217.13 | G191: 215.52 | H191: 212.58 | I191: 210.97 | J191: 220.07 | K191: 221.68 | L191: 224.62 | M191: 218.75 | N191: 214.2 | O191: 101179125 | P191: 0.55%
A192: 182 | B192: Metals | C192: TATASTEEL | D192: 2022-10-27 | E192: 99.50 | F192: 99.37 | G192: 98.18 | H192: 96.87 | I192: 95.68 | J192: 100.68 | K192: 101.87 | L192: 103.18 | M192: 100.55 | N192: 98.05 | O192: 228199500 | P192: -0.01%
A193: 183 | B193: Technology | C193: TCS | D193: 2022-10-27 | E193: 3113.25 | F193: 3104.35 | G193: 3080.30 | H193: 3047.35 | I193: 3023.30 | J193: 3137.30 | K193: 3161.35 | L193: 3194.30 | M193: 3128.4 | N193: 3071.4 | O193: 12411900 | P193: -3.23%
A194: 184 | B194: Technology | C194: TECHM | D194: 2022-10-27 | E194: 1025.00 | F194: 1021.40 | G194: 1012.80 | H194: 1000.60 | I194: 992.00 | J194: 1033.60 | K194: 1042.20 | L194: 1054.40 | M194: 1030 | N194: 1009.2 | O194: 15829800 | P194: 0.97%
A195: 185 | B195: FMCG | C195: TITAN | D195: 2022-10-27 | E195: 2631.60 | F195: 2625.73 | G195: 2611.32 | H195: 2591.03 | I195: 2576.62 | J195: 2646.02 | K195: 2660.43 | L195: 2680.72 | M195: 2640.15 | N195: 2605.45 | O195: 5074875 | P195: -1.66%
A196: 186 | B196: Pharma | C196: TORNTPHARM | D196: 2022-10-27 | E196: 1586.55 | F196: 1592.00 | G196: 1578.10 | H196: 1569.65 | I196: 1555.75 | J196: 1600.45 | K196: 1614.35 | L196: 1622.80 | M196: 1605.9 | N196: 1583.55 | O196: 1736000 | P196: 0.20%
A197: 187 | B197: Power | C197: TORNTPOWER | D197: 2022-10-27 | E197: 482.85 | F197: 481.12 | G197: 477.78 | H197: 472.72 | I197: 469.38 | J197: 486.18 | K197: 489.52 | L197: 494.58 | M197: 484.45 | N197: 476.05 | O197: 3874500 | P197: 0.86%
A198: 188 | B198: Others | C198: TRENT | D198: 2022-10-27 | E198: 1378.30 | F198: 1375.48 | G198: 1359.97 | H198: 1341.63 | I198: 1326.12 | J198: 1393.82 | K198: 1409.33 | L198: 1427.67 | M198: 1391 | N198: 1357.15 | O198: 4544300 | P198: 0.45%
A199: 189 | B199: Automobile | C199: TVSMOTOR | D199: 2022-10-27 | E199: 1078.50 | F199: 1075.75 | G199: 1064.00 | H199: 1049.50 | I199: 1037.75 | J199: 1090.25 | K199: 1102.00 | L199: 1116.50 | M199: 1087.5 | N199: 1061.25 | O199: 5979400 | P199: -0.54%
A200: 190 | B200: FMCG | C200: UBL | D200: 2022-10-27 | E200: 1671.60 | F200: 1664.10 | G200: 1649.25 | H200: 1626.90 | I200: 1612.05 | J200: 1686.45 | K200: 1701.30 | L200: 1723.65 | M200: 1678.95 | N200: 1641.75 | O200: 1126800 | P200: 0.14%
A201: 191 | B201: Cement | C201: ULTRACEMCO | D201: 2022-10-27 | E201: 6286.55 | F201: 6223.97 | G201: 6150.48 | H201: 6014.42 | I201: 5940.93 | J201: 6360.03 | K201: 6433.52 | L201: 6569.58 | M201: 6297.45 | N201: 6087.9 | O201: 1983200 | P201: 4.76%
A202: 192 | B202: Chemical | C202: UPL | D202: 2022-10-27 | E202: 678.05 | F202: 677.95 | G202: 671.90 | H202: 665.75 | I202: 659.70 | J202: 684.10 | K202: 690.15 | L202: 696.30 | M202: 684 | N202: 671.8 | O202: 24836500 | P202: -1.86%
A203: 193 | B203: Metals | C203: VEDL | D203: 2022-10-27 | E203: 280.45 | F203: 281.27 | G203: 276.63 | H203: 272.82 | I203: 268.18 | J203: 285.08 | K203: 289.72 | L203: 293.53 | M203: 285.9 | N203: 277.45 | O203: 32106700 | P203: 4.27%
A204: 194 | B204: Capital_Goods | C204: VOLTAS | D204: 2022-10-27 | E204: 871.40 | F204: 868.95 | G204: 860.85 | H204: 850.30 | I204: 842.20 | J204: 879.50 | K204: 887.60 | L204: 898.15 | M204: 877.05 | N204: 858.4 | O204: 4057500 | P204: -0.29%
A205: 195 | B205: Capital_Goods | C205: WHIRLPOOL | D205: 2022-10-27 | E205: 1559.80 | F205: 1561.35 | G205: 1545.25 | H205: 1530.70 | I205: 1514.60 | J205: 1575.90 | K205: 1592.00 | L205: 1606.55 | M205: 1577.45 | N205: 1546.8 | O205: 697200 | P205: 3.05%
A206: 196 | B206: Technology | C206: WIPRO | D206: 2022-10-27 | E206: 376.30 | F206: 375.90 | G206: 372.60 | H206: 368.90 | I206: 365.60 | J206: 379.60 | K206: 382.90 | L206: 386.60 | M206: 379.2 | N206: 372.2 | O206: 48194000 | P206: -2.32%
... 17 more rows

Sheet Cash Intra
M5: Back to Main Page
A6: FOR INTRA DAY TRADING | K6: =Main!B10 -> 2022-10-18
A8: Sr.no | C8: CLOSE RATE | D8: Pivot Point | E8: Supports | H8: Resistances
E9: S1 | F9: S2 | G9: S3 | H9: R1 | I9: R2 | J9: R3 | K9: HIGH | L9: LOW | M9: Total Trade Quanity in Lakhs
A10: 1 | B10: Nifty 50 | C10: 17311.80 | D10: 17246.30 | E10: 17164.05 | F10: 17016.30 | G10: 16934.05 | H10: 17394.05 | I10: 17476.30 | J10: 17624.05 | K10: 17328.55 | L10: 17098.55
A11: 2 | B11: Nifty Bank | C11: 39920.45 | D11: 39680.62 | E11: 39386.53 | F11: 38852.62 | G11: 38558.53 | H11: 40214.53 | I11: 40508.62 | J11: 41042.53 | K11: 39974.70 | L11: 39146.70
A12: 3 | B12: Nifty CPSE | C12: 2668.20 | D12: 2655.95 | E12: 2639.00 | F12: 2609.80 | G12: 2592.85 | H12: 2685.15 | I12: 2702.10 | J12: 2731.30 | K12: 2672.90 | L12: 2626.75
A13: 4 | B13: Nifty Infra | C13: 4944.85 | D13: 4923.43 | E13: 4895.12 | F13: 4845.38 | G13: 4817.07 | H13: 4973.17 | I13: 5001.48 | J13: 5051.22 | K13: 4951.75 | L13: 4873.70
A14: 5 | B14: Nifty IT | C14: 28019.10 | D14: 27982.22 | E14: 27835.58 | F14: 27652.07 | G14: 27505.43 | H14: 28165.73 | I14: 28312.37 | J14: 28495.88 | K14: 28128.85 | L14: 27798.70
A15: 6 | B15: Nifty PSE | C15: 4062.30 | D15: 4045.43 | E15: 4021.92 | F15: 3981.53 | G15: 3958.02 | H15: 4085.82 | I15: 4109.33 | J15: 4149.72 | K15: 4068.95 | L15: 4005.05
A16: 7 | B16: Nifty Midcap 50 | C16: 8385.05 | D16: 8343.20 | E16: 8290.10 | F16: 8195.15 | G16: 8142.05 | H16: 8438.15 | I16: 8491.25 | J16: 8586.20 | K16: 8396.30 | L16: 8248.25
A17: 8 | B17: ABB | C17: 3196.55 | D17: 3193.87 | E17: 3155.98 | F17: 3115.42 | G17: 3077.53 | H17: 3234.43 | I17: 3272.32 | J17: 3312.88 | K17: 3231.75 | L17: 3153.3 | M17: 3.03859
A18: 9 | B18: ACC | C18: 2270.1 | D18: 2253.48 | E18: 2221.92 | F18: 2173.73 | G18: 2142.17 | H18: 2301.67 | I18: 2333.23 | J18: 2381.42 | K18: 2285.05 | L18: 2205.3 | M18: 15.1237
A19: 10 | B19: AUBANK | C19: 615.75 | D19: 609.87 | E19: 601.73 | F19: 587.72 | G19: 579.58 | H19: 623.88 | I19: 632.02 | J19: 646.03 | K19: 618 | L19: 595.85 | M19: 18.06133
A20: 11 | B20: ABBOTINDIA | C20: 18085.4 | D20: 18148.47 | E20: 17936.93 | F20: 17788.47 | G20: 17576.93 | H20: 18296.93 | I20: 18508.47 | J20: 18656.93 | K20: 18360 | L20: 18000 | M20: 0.08136
A21: 12 | B21: ADANIENT | C21: 3212.6 | D21: 3194.57 | E21: 3154.13 | F21: 3095.67 | G21: 3055.23 | H21: 3253.03 | I21: 3293.47 | J21: 3351.93 | K21: 3235 | L21: 3136.1 | M21: 19.85298
A22: 13 | B22: ADANIGREEN | C22: 2154.45 | D22: 2129.15 | E22: 2060.30 | F22: 1966.15 | G22: 1897.30 | H22: 2223.30 | I22: 2292.15 | J22: 2386.30 | K22: 2198 | L22: 2035 | M22: 29.10329
A23: 14 | B23: ADANIPORTS | C23: 786.2 | D23: 782.60 | E23: 775.25 | F23: 764.30 | G23: 756.95 | H23: 793.55 | I23: 800.90 | J23: 811.85 | K23: 789.95 | L23: 771.65 | M23: 46.0287
A24: 15 | B24: ATGL | C24: 3099.3 | D24: 3070.10 | E24: 3005.20 | F24: 2911.10 | G24: 2846.20 | H24: 3164.20 | I24: 3229.10 | J24: 3323.20 | K24: 3135 | L24: 2976 | M24: 1.93751
A25: 16 | B25: ADANITRANS | C25: 3074.35 | D25: 3047.80 | E25: 2998.90 | F25: 2923.45 | G25: 2874.55 | H25: 3123.25 | I25: 3172.15 | J25: 3247.60 | K25: 3096.7 | L25: 2972.35 | M25: 3.69563
A26: 17 | B26: AWL | C26: 661.25 | D26: 657.98 | E26: 639.47 | F26: 617.68 | G26: 599.17 | H26: 679.77 | I26: 698.28 | J26: 720.07 | K26: 676.5 | L26: 636.2 | M26: 52.69766
A27: 18 | B27: ABCAPITAL | C27: 110.4 | D27: 109.83 | E27: 108.67 | F27: 106.93 | G27: 105.77 | H27: 111.57 | I27: 112.73 | J27: 114.47 | K27: 111 | L27: 108.1 | M27: 15.1629
A28: 19 | B28: ABFRL | C28: 331.85 | D28: 330.48 | E28: 327.62 | F28: 323.38 | G28: 320.52 | H28: 334.72 | I28: 337.58 | J28: 341.82 | K28: 333.35 | L28: 326.25 | M28: 8.96203
A29: 20 | B29: ALKEM | C29: 3122.4 | D29: 3119.77 | E29: 3086.23 | F29: 3050.07 | G29: 3016.53 | H29: 3155.93 | I29: 3189.47 | J29: 3225.63 | K29: 3153.3 | L29: 3083.6 | M29: 0.44816
A30: 21 | B30: AMBUJACEM | C30: 520.55 | D30: 513.57 | E30: 504.43 | F30: 488.32 | G30: 479.18 | H30: 529.68 | I30: 538.82 | J30: 554.93 | K30: 522.7 | L30: 497.45 | M30: 96.2667
A31: 22 | B31: APOLLOHOSP | C31: 4290.85 | D31: 4270.82 | E31: 4241.08 | F31: 4191.32 | G31: 4161.58 | H31: 4320.58 | I31: 4350.32 | J31: 4400.08 | K31: 4300.55 | L31: 4221.05 | M31: 2.54734
A32: 23 | B32: ASHOKLEY | C32: 148.05 | D32: 147.23 | E32: 145.87 | F32: 143.68 | G32: 142.32 | H32: 149.42 | I32: 150.78 | J32: 152.97 | K32: 148.6 | L32: 145.05 | M32: 87.44843
A33: 24 | B33: ASIANPAINT | C33: 3197.6 | D33: 3195.23 | E33: 3172.47 | F33: 3147.33 | G33: 3124.57 | H33: 3220.37 | I33: 3243.13 | J33: 3268.27 | K33: 3218 | L33: 3170.1 | M33: 10.67773
A34: 25 | B34: ASTRAL | C34: 2148.35 | D34: 2133.78 | E34: 2107.57 | F34: 2066.78 | G34: 2040.57 | H34: 2174.57 | I34: 2200.78 | J34: 2241.57 | K34: 2160 | L34: 2093 | M34: 2.73269
A35: 26 | B35: AUROPHARMA | C35: 519.85 | D35: 518.67 | E35: 511.43 | F35: 503.02 | G35: 495.78 | H35: 527.08 | I35: 534.32 | J35: 542.73 | K35: 525.9 | L35: 510.25 | M35: 11.15302
A36: 27 | B36: DMART | C36: 4153.45 | D36: 4200.48 | E36: 4093.02 | F36: 4032.58 | G36: 3925.12 | H36: 4260.92 | I36: 4368.38 | J36: 4428.82 | K36: 4307.95 | L36: 4140.05 | M36: 9.50223
A37: 28 | B37: AXISBANK | C37: 814.15 | D37: 809.42 | E37: 801.83 | F37: 789.52 | G37: 781.93 | H37: 821.73 | I37: 829.32 | J37: 841.63 | K37: 817 | L37: 797.1 | M37: 94.63827
A38: 29 | B38: BAJAJ-AUTO | C38: 3629 | D38: 3627.27 | E38: 3579.73 | F38: 3530.47 | G38: 3482.93 | H38: 3676.53 | I38: 3724.07 | J38: 3773.33 | K38: 3674.8 | L38: 3578 | M38: 9.21084
A39: 30 | B39: BAJFINANCE | C39: 7355.2 | D39: 7314.83 | E39: 7257.37 | F39: 7159.53 | G39: 7102.07 | H39: 7412.67 | I39: 7470.13 | J39: 7567.97 | K39: 7372.3 | L39: 7217 | M39: 6.17401
A40: 31 | B40: BAJAJFINSV | C40: 1719.25 | D40: 1706.08 | E40: 1687.17 | F40: 1655.08 | G40: 1636.17 | H40: 1738.17 | I40: 1757.08 | J40: 1789.17 | K40: 1725 | L40: 1674 | M40: 15.5141
A41: 32 | B41: BAJAJHLDNG | C41: 6611.65 | D41: 6622.73 | E41: 6560.47 | F41: 6509.28 | G41: 6447.02 | H41: 6673.92 | I41: 6736.18 | J41: 6787.37 | K41: 6685 | L41: 6571.55 | M41: 0.83643
A42: 33 | B42: BALKRISIND | C42: 1908.15 | D42: 1909.57 | E42: 1895.13 | F42: 1882.12 | G42: 1867.68 | H42: 1922.58 | I42: 1937.02 | J42: 1950.03 | K42: 1924 | L42: 1896.55 | M42: 0.93937
A43: 34 | B43: BANDHANBNK | C43: 268.7 | D43: 267.67 | E43: 265.08 | F43: 261.47 | G43: 258.88 | H43: 271.28 | I43: 273.87 | J43: 277.48 | K43: 270.25 | L43: 264.05 | M43: 39.53612
A44: 35 | B44: BANKBARODA | C44: 136.15 | D44: 134.17 | E44: 131.58 | F44: 127.02 | G44: 124.43 | H44: 138.73 | I44: 141.32 | J44: 145.88 | K44: 136.75 | L44: 129.6 | M44: 294.22436
A45: 36 | B45: BANKINDIA | C45: 46.9 | D45: 46.77 | E45: 46.33 | F45: 45.77 | G45: 45.33 | H45: 47.33 | I45: 47.77 | J45: 48.33 | K45: 47.2 | L45: 46.2 | M45: 30.43504
A46: 37 | B46: BATAINDIA | C46: 1840.1 | D46: 1816.27 | E46: 1787.88 | F46: 1735.67 | G46: 1707.28 | H46: 1868.48 | I46: 1896.87 | J46: 1949.08 | K46: 1844.65 | L46: 1764.05 | M46: 3.91653
A47: 38 | B47: BERGEPAINT | C47: 613.75 | D47: 610.75 | E47: 606.50 | F47: 599.25 | G47: 595.00 | H47: 618.00 | I47: 622.25 | J47: 629.50 | K47: 615 | L47: 603.5 | M47: 5.71176
A48: 39 | B48: BEL | C48: 101.8 | D48: 101.50 | E48: 100.25 | F48: 98.70 | G48: 97.45 | H48: 103.05 | I48: 104.30 | J48: 105.85 | K48: 102.75 | L48: 99.95 | M48: 99.43468
A49: 40 | B49: BHARATFORG | C49: 772.8 | D49: 763.63 | E49: 751.27 | F49: 729.73 | G49: 717.37 | H49: 785.17 | I49: 797.53 | J49: 819.07 | K49: 776 | L49: 742.1 | M49: 17.68267
A50: 41 | B50: BHEL | C50: 62.95 | D50: 62.15 | E50: 61.15 | F50: 59.35 | G50: 58.35 | H50: 63.95 | I50: 64.95 | J50: 66.75 | K50: 63.15 | L50: 60.35 | M50: 205.35097
A51: 42 | B51: BPCL | C51: 296.55 | D51: 295.82 | E51: 292.28 | F51: 288.02 | G51: 284.48 | H51: 300.08 | I51: 303.62 | J51: 307.88 | K51: 299.35 | L51: 291.55 | M51: 26.72321
A52: 43 | B52: BHARTIARTL | C52: 766 | D52: 765.62 | E52: 760.23 | F52: 754.47 | G52: 749.08 | H52: 771.38 | I52: 776.77 | J52: 782.53 | K52: 771 | L52: 759.85 | M52: 45.66333
A53: 44 | B53: BIOCON | C53: 263.7 | D53: 262.52 | E53: 259.43 | F53: 255.17 | G53: 252.08 | H53: 266.78 | I53: 269.87 | J53: 274.13 | K53: 265.6 | L53: 258.25 | M53: 26.32881
A54: 45 | B54: BOSCHLTD | C54: 15568.65 | D54: 15534.48 | E54: 15434.27 | F54: 15299.88 | G54: 15199.67 | H54: 15668.87 | I54: 15769.08 | J54: 15903.47 | K54: 15634.7 | L54: 15400.1 | M54: 0.16787
A55: 46 | B55: BRITANNIA | C55: 3777.7 | D55: 3777.38 | E55: 3752.87 | F55: 3728.03 | G55: 3703.52 | H55: 3802.22 | I55: 3826.73 | J55: 3851.57 | K55: 3801.9 | L55: 3752.55 | M55: 0.93315
A56: 47 | B56: CANBK | C56: 237.4 | D56: 232.92 | E56: 227.48 | F56: 217.57 | G56: 212.13 | H56: 242.83 | I56: 248.27 | J56: 258.18 | K56: 238.35 | L56: 223 | M56: 173.0404
A57: 48 | B57: CHOLAFIN | C57: 732.35 | D57: 727.10 | E57: 719.95 | F57: 707.55 | G57: 700.40 | H57: 739.50 | I57: 746.65 | J57: 759.05 | K57: 734.25 | L57: 714.7 | M57: 9.96499
A58: 49 | B58: CIPLA | C58: 1108.15 | D58: 1106.67 | E58: 1100.28 | F58: 1092.42 | G58: 1086.03 | H58: 1114.53 | I58: 1120.92 | J58: 1128.78 | K58: 1113.05 | L58: 1098.8 | M58: 10.76392
A59: 50 | B59: CLEAN | C59: 1602.65 | D59: 1604.88 | E59: 1579.77 | F59: 1556.88 | G59: 1531.77 | H59: 1627.77 | I59: 1652.88 | J59: 1675.77 | K59: 1630 | L59: 1582 | M59: 0.82732
A60: 51 | B60: COALINDIA | C60: 238 | D60: 236.48 | E60: 234.42 | F60: 230.83 | G60: 228.77 | H60: 240.07 | I60: 242.13 | J60: 245.72 | K60: 238.55 | L60: 232.9 | M60: 56.23812
A61: 52 | B61: COFORGE | C61: 3763.1 | D61: 3743.72 | E61: 3703.43 | F61: 3643.77 | G61: 3603.48 | H61: 3803.38 | I61: 3843.67 | J61: 3903.33 | K61: 3784 | L61: 3684.05 | M61: 2.27894
A62: 53 | B62: COLPAL | C62: 1570.3 | D62: 1569.02 | E62: 1548.83 | F62: 1527.37 | G62: 1507.18 | H62: 1590.48 | I62: 1610.67 | J62: 1632.13 | K62: 1589.2 | L62: 1547.55 | M62: 1.28056
A63: 54 | B63: CONCOR | C63: 712.75 | D63: 704.70 | E63: 694.75 | F63: 676.75 | G63: 666.80 | H63: 722.70 | I63: 732.65 | J63: 750.65 | K63: 714.65 | L63: 686.7 | M63: 11.14583
A64: 55 | B64: COROMANDEL | C64: 967 | D64: 965.23 | E64: 959.97 | F64: 952.93 | G64: 947.67 | H64: 972.27 | I64: 977.53 | J64: 984.57 | K64: 970.5 | L64: 958.2 | M64: 4.39603
A65: 56 | B65: CROMPTON | C65: 382.45 | D65: 381.45 | E65: 377.90 | F65: 373.35 | G65: 369.80 | H65: 386.00 | I65: 389.55 | J65: 394.10 | K65: 385 | L65: 376.9 | M65: 9.25984
A66: 57 | B66: CUMMINSIND | C66: 1185.9 | D66: 1188.68 | E66: 1175.02 | F66: 1164.13 | G66: 1150.47 | H66: 1199.57 | I66: 1213.23 | J66: 1224.12 | K66: 1202.35 | L66: 1177.8 | M66: 2.06062
A67: 58 | B67: DLF | C67: 359.4 | D67: 357.57 | E67: 353.33 | F67: 347.27 | G67: 343.03 | H67: 363.63 | I67: 367.87 | J67: 373.93 | K67: 361.8 | L67: 351.5 | M67: 43.11369
A68: 59 | B68: DABUR | C68: 529.95 | D68: 530.48 | E68: 526.47 | F68: 522.98 | G68: 518.97 | H68: 533.97 | I68: 537.98 | J68: 541.47 | K68: 534.5 | L68: 527 | M68: 7.57924
A69: 60 | B69: DALBHARAT | C69: 1509.1 | D69: 1505.05 | E69: 1480.10 | F69: 1451.10 | G69: 1426.15 | H69: 1534.05 | I69: 1559.00 | J69: 1588.00 | K69: 1530 | L69: 1476.05 | M69: 1.3727
A70: 61 | B70: DEEPAKNTR | C70: 2255.75 | D70: 2241.77 | E70: 2219.53 | F70: 2183.32 | G70: 2161.08 | H70: 2277.98 | I70: 2300.22 | J70: 2336.43 | K70: 2264 | L70: 2205.55 | M70: 6.02882
A71: 62 | B71: DELHIVERY | C71: 548.95 | D71: 548.82 | E71: 533.23 | F71: 517.52 | G71: 501.93 | H71: 564.53 | I71: 580.12 | J71: 595.83 | K71: 564.4 | L71: 533.1 | M71: 12.16159
A72: 63 | B72: DIVISLAB | C72: 3578.55 | D72: 3577.12 | E72: 3551.43 | F72: 3524.32 | G72: 3498.63 | H72: 3604.23 | I72: 3629.92 | J72: 3657.03 | K72: 3602.8 | L72: 3550 | M72: 2.11512
A73: 64 | B73: DIXON | C73: 4280.55 | D73: 4250.42 | E73: 4215.68 | F73: 4150.82 | G73: 4116.08 | H73: 4315.28 | I73: 4350.02 | J73: 4414.88 | K73: 4285.15 | L73: 4185.55 | M73: 1.12819
A74: 65 | B74: LALPATHLAB | C74: 2397.6 | D74: 2382.52 | E74: 2356.08 | F74: 2314.57 | G74: 2288.13 | H74: 2424.03 | I74: 2450.47 | J74: 2491.98 | K74: 2408.95 | L74: 2341 | M74: 1.25306
A75: 66 | B75: DRREDDY | C75: 4335.2 | D75: 4330.57 | E75: 4287.13 | F75: 4239.07 | G75: 4195.63 | H75: 4378.63 | I75: 4422.07 | J75: 4470.13 | K75: 4374 | L75: 4282.5 | M75: 2.1014
A76: 67 | B76: EICHERMOT | C76: 3514.7 | D76: 3501.67 | E76: 3478.33 | F76: 3441.97 | G76: 3418.63 | H76: 3538.03 | I76: 3561.37 | J76: 3597.73 | K76: 3525 | L76: 3465.3 | M76: 4.92114
A77: 68 | B77: EMAMILTD | C77: 462.55 | D77: 465.13 | E77: 458.42 | F77: 454.28 | G77: 447.57 | H77: 469.27 | I77: 475.98 | J77: 480.12 | K77: 471.85 | L77: 461 | M77: 0.82943
A78: 69 | B78: ESCORTS | C78: 1968.6 | D78: 1964.75 | E78: 1949.60 | F78: 1930.60 | G78: 1915.45 | H78: 1983.75 | I78: 1998.90 | J78: 2017.90 | K78: 1979.9 | L78: 1945.75 | M78: 2.55346
A79: 70 | B79: NYKAA | C79: 1160.5 | D79: 1173.07 | E79: 1138.43 | F79: 1116.37 | G79: 1081.73 | H79: 1195.13 | I79: 1229.77 | J79: 1251.83 | K79: 1207.7 | L79: 1151 | M79: 7.23829
A80: 71 | B80: FEDERALBNK | C80: 131.5 | D80: 131.10 | E80: 129.50 | F80: 127.50 | G80: 125.90 | H80: 133.10 | I80: 134.70 | J80: 136.70 | K80: 132.7 | L80: 129.1 | M80: 348.12065
A81: 72 | B81: FORTIS | C81: 272.1 | D81: 272.72 | E81: 269.88 | F81: 267.67 | G81: 264.83 | H81: 274.93 | I81: 277.77 | J81: 279.98 | K81: 275.55 | L81: 270.5 | M81: 2.7917
A82: 73 | B82: GAIL | C82: 85.05 | D82: 85.02 | E82: 84.38 | F82: 83.72 | G82: 83.08 | H82: 85.68 | I82: 86.32 | J82: 86.98 | K82: 85.65 | L82: 84.35 | M82: 93.73705
A83: 74 | B83: GLAND | C83: 2157 | D83: 2154.02 | E83: 2133.03 | F83: 2109.07 | G83: 2088.08 | H83: 2177.98 | I83: 2198.97 | J83: 2222.93 | K83: 2175 | L83: 2130.05 | M83: 5.33622
A84: 75 | B84: GODREJCP | C84: 833.6 | D84: 831.97 | E84: 825.93 | F84: 818.27 | G84: 812.23 | H84: 839.63 | I84: 845.67 | J84: 853.33 | K84: 838 | L84: 824.3 | M84: 4.65893
A85: 76 | B85: GODREJPROP | C85: 1186.95 | D85: 1176.45 | E85: 1162.00 | F85: 1137.05 | G85: 1122.60 | H85: 1201.40 | I85: 1215.85 | J85: 1240.80 | K85: 1190.9 | L85: 1151.5 | M85: 4.79423
A86: 77 | B86: GRASIM | C86: 1691.15 | D86: 1691.80 | E86: 1674.60 | F86: 1658.05 | G86: 1640.85 | H86: 1708.35 | I86: 1725.55 | J86: 1742.10 | K86: 1709 | L86: 1675.25 | M86: 7.08434
A87: 78 | B87: GUJGASLTD | C87: 469.45 | D87: 469.45 | E87: 463.90 | F87: 458.35 | G87: 452.80 | H87: 475.00 | I87: 480.55 | J87: 486.10 | K87: 475 | L87: 463.9 | M87: 5.7332
A88: 79 | B88: GSPL | C88: 220.35 | D88: 220.68 | E88: 218.37 | F88: 216.38 | G88: 214.07 | H88: 222.67 | I88: 224.98 | J88: 226.97 | K88: 223 | L88: 218.7 | M88: 5.52652
A89: 80 | B89: HCLTECH | C89: 994.6 | D89: 997.50 | E89: 988.20 | F89: 981.80 | G89: 972.50 | H89: 1003.90 | I89: 1013.20 | J89: 1019.60 | K89: 1006.8 | L89: 991.1 | M89: 21.3617
A90: 81 | B90: HDFCAMC | C90: 1914.35 | D90: 1909.05 | E90: 1895.50 | F90: 1876.65 | G90: 1863.10 | H90: 1927.90 | I90: 1941.45 | J90: 1960.30 | K90: 1922.6 | L90: 1890.2 | M90: 1.28076
A91: 82 | B91: HDFCBANK | C91: 1446.55 | D91: 1443.72 | E91: 1429.83 | F91: 1413.12 | G91: 1399.23 | H91: 1460.43 | I91: 1474.32 | J91: 1491.03 | K91: 1457.6 | L91: 1427 | M91: 92.0525
A92: 83 | B92: HDFCLIFE | C92: 523.75 | D92: 522.75 | E92: 519.60 | F92: 515.45 | G92: 512.30 | H92: 526.90 | I92: 530.05 | J92: 534.20 | K92: 525.9 | L92: 518.6 | M92: 14.86039
A93: 84 | B93: HAVELLS | C93: 1232 | D93: 1240.72 | E93: 1214.43 | F93: 1196.87 | G93: 1170.58 | H93: 1258.28 | I93: 1284.57 | J93: 1302.13 | K93: 1267 | L93: 1223.15 | M93: 8.68754
A94: 85 | B94: HEROMOTOCO | C94: 2553.7 | D94: 2548.42 | E94: 2526.83 | F94: 2499.97 | G94: 2478.38 | H94: 2575.28 | I94: 2596.87 | J94: 2623.73 | K94: 2570 | L94: 2521.55 | M94: 2.57635
A95: 86 | B95: HINDALCO | C95: 388.3 | D95: 390.17 | E95: 384.43 | F95: 380.57 | G95: 374.83 | H95: 394.03 | I95: 399.77 | J95: 403.63 | K95: 395.9 | L95: 386.3 | M95: 89.66396
A96: 87 | B96: HAL | C96: 2363.95 | D96: 2361.32 | E96: 2335.68 | F96: 2307.42 | G96: 2281.78 | H96: 2389.58 | I96: 2415.22 | J96: 2443.48 | K96: 2386.95 | L96: 2333.05 | M96: 8.48611
A97: 88 | B97: HINDPETRO | C97: 202.25 | D97: 202.92 | E97: 200.18 | F97: 198.12 | G97: 195.38 | H97: 204.98 | I97: 207.72 | J97: 209.78 | K97: 205.65 | L97: 200.85 | M97: 40.93876
A98: 89 | B98: HINDUNILVR | C98: 2590.55 | D98: 2589.50 | E98: 2569.05 | F98: 2547.55 | G98: 2527.10 | H98: 2611.00 | I98: 2631.45 | J98: 2652.95 | K98: 2609.95 | L98: 2568 | M98: 7.78918
A99: 90 | B99: HINDZINC | C99: 276.9 | D99: 279.35 | E99: 273.55 | F99: 270.20 | G99: 264.40 | H99: 282.70 | I99: 288.50 | J99: 291.85 | K99: 285.15 | L99: 276 | M99: 3.73337
A100: 91 | B100: HONAUT | C100: 38448.6 | D100: 38339.33 | E100: 37909.22 | F100: 37369.83 | G100: 36939.72 | H100: 38878.72 | I100: 39308.83 | J100: 39848.22 | K100: 38769.45 | L100: 37799.95 | M100: 0.02566
A101: 92 | B101: HDFC | C101: 2349.25 | D101: 2346.25 | E101: 2325.50 | F101: 2301.75 | G101: 2281.00 | H101: 2370.00 | I101: 2390.75 | J101: 2414.50 | K101: 2367 | L101: 2322.5 | M101: 35.13903
A102: 93 | B102: ICICIBANK | C102: 885.2 | D102: 880.42 | E102: 873.33 | F102: 861.47 | G102: 854.38 | H102: 892.28 | I102: 899.37 | J102: 911.23 | K102: 887.5 | L102: 868.55 | M102: 89.36947
A103: 94 | B103: ICICIGI | C103: 1132.35 | D103: 1129.48 | E103: 1121.47 | F103: 1110.58 | G103: 1102.57 | H103: 1140.37 | I103: 1148.38 | J103: 1159.27 | K103: 1137.5 | L103: 1118.6 | M103: 9.15437
A104: 95 | B104: ICICIPRULI | C104: 509.7 | D104: 509.55 | E104: 503.15 | F104: 496.60 | G104: 490.20 | H104: 516.10 | I104: 522.50 | J104: 529.05 | K104: 515.95 | L104: 503 | M104: 12.56193
A105: 96 | B105: ISEC | C105: 520.6 | D105: 515.03 | E105: 506.57 | F105: 492.53 | G105: 484.07 | H105: 529.07 | I105: 537.53 | J105: 551.57 | K105: 523.5 | L105: 501 | M105: 2.23813
A106: 97 | B106: IDFCFIRSTB | C106: 55.75 | D106: 55.17 | E106: 54.38 | F106: 53.02 | G106: 52.23 | H106: 56.53 | I106: 57.32 | J106: 58.68 | K106: 55.95 | L106: 53.8 | M106: 435.26119
A107: 98 | B107: ITC | C107: 332.25 | D107: 332.20 | E107: 329.65 | F107: 327.05 | G107: 324.50 | H107: 334.80 | I107: 337.35 | J107: 339.95 | K107: 334.75 | L107: 329.6 | M107: 69.29063
A108: 99 | B108: INDIAMART | C108: 4373 | D108: 4354.67 | E108: 4284.33 | F108: 4195.67 | G108: 4125.33 | H108: 4443.33 | I108: 4513.67 | J108: 4602.33 | K108: 4425 | L108: 4266 | M108: 0.71625
A109: 100 | B109: INDIANB | C109: 204.45 | D109: 200.70 | E109: 195.40 | F109: 186.35 | G109: 181.05 | H109: 209.75 | I109: 215.05 | J109: 224.10 | K109: 206 | L109: 191.65 | M109: 29.63275
A110: 101 | B110: IEX | C110: 139.05 | D110: 138.82 | E110: 137.03 | F110: 135.02 | G110: 133.23 | H110: 140.83 | I110: 142.62 | J110: 144.63 | K110: 140.6 | L110: 136.8 | M110: 40.33592
A111: 102 | B111: INDHOTEL | C111: 318.25 | D111: 314.07 | E111: 309.18 | F111: 300.12 | G111: 295.23 | H111: 323.13 | I111: 328.02 | J111: 337.08 | K111: 318.95 | L111: 305 | M111: 61.95992
A112: 103 | B112: IOC | C112: 66.05 | D112: 66.10 | E112: 65.50 | F112: 64.95 | G112: 64.35 | H112: 66.65 | I112: 67.25 | J112: 67.80 | K112: 66.7 | L112: 65.55 | M112: 108.41451
A113: 104 | B113: IRCTC | C113: 728 | D113: 723.38 | E113: 716.97 | F113: 705.93 | G113: 699.52 | H113: 734.42 | I113: 740.83 | J113: 751.87 | K113: 729.8 | L113: 712.35 | M113: 13.8781
A114: 105 | B114: IGL | C114: 378.25 | D114: 379.75 | E114: 372.50 | F114: 366.75 | G114: 359.50 | H114: 385.50 | I114: 392.75 | J114: 398.50 | K114: 387 | L114: 374 | M114: 25.68741
A115: 106 | B115: INDUSTOWER | C115: 188.55 | D115: 188.95 | E115: 187.40 | F115: 186.25 | G115: 184.70 | H115: 190.10 | I115: 191.65 | J115: 192.80 | K115: 190.5 | L115: 187.8 | M115: 10.7727
A116: 107 | B116: INDUSINDBK | C116: 1199.65 | D116: 1189.15 | E116: 1174.50 | F116: 1149.35 | G116: 1134.70 | H116: 1214.30 | I116: 1228.95 | J116: 1254.10 | K116: 1203.8 | L116: 1164 | M116: 34.19791
A117: 108 | B117: NAUKRI | C117: 3789.5 | D117: 3773.83 | E117: 3735.67 | F117: 3681.83 | G117: 3643.67 | H117: 3827.67 | I117: 3865.83 | J117: 3919.67 | K117: 3812 | L117: 3720 | M117: 1.78904
A118: 109 | B118: INFY | C118: 1489.95 | D118: 1486.82 | E118: 1478.63 | F118: 1467.32 | G118: 1459.13 | H118: 1498.13 | I118: 1506.32 | J118: 1517.63 | K118: 1495 | L118: 1475.5 | M118: 42.86396
A119: 110 | B119: INDIGO | C119: 1745 | D119: 1743.08 | E119: 1729.92 | F119: 1714.83 | G119: 1701.67 | H119: 1758.17 | I119: 1771.33 | J119: 1786.42 | K119: 1756.25 | L119: 1728 | M119: 4.80719
A120: 111 | B120: IPCALAB | C120: 893.05 | D120: 891.02 | E120: 883.03 | F120: 873.02 | G120: 865.03 | H120: 901.03 | I120: 909.02 | J120: 919.03 | K120: 899 | L120: 881 | M120: 0.90495
A121: 112 | B121: JSWENERGY | C121: 324.35 | D121: 321.53 | E121: 314.57 | F121: 304.78 | G121: 297.82 | H121: 331.32 | I121: 338.28 | J121: 348.07 | K121: 328.5 | L121: 311.75 | M121: 13.16773
A122: 113 | B122: JSWSTEEL | C122: 631.45 | D122: 630.57 | E122: 624.88 | F122: 618.32 | G122: 612.63 | H122: 637.13 | I122: 642.82 | J122: 649.38 | K122: 636.25 | L122: 624 | M122: 22.81559
A123: 114 | B123: JINDALSTEL | C123: 439.75 | D123: 436.60 | E123: 432.15 | F123: 424.55 | G123: 420.10 | H123: 444.20 | I123: 448.65 | J123: 456.25 | K123: 441.05 | L123: 429 | M123: 31.51261
A124: 115 | B124: JUBLFOOD | C124: 596.3 | D124: 593.67 | E124: 588.63 | F124: 580.97 | G124: 575.93 | H124: 601.33 | I124: 606.37 | J124: 614.03 | K124: 598.7 | L124: 586 | M124: 18.28274
A125: 116 | B125: KOTAKBANK | C125: 1858.15 | D125: 1846.87 | E125: 1831.53 | F125: 1804.92 | G125: 1789.58 | H125: 1873.48 | I125: 1888.82 | J125: 1915.43 | K125: 1862.2 | L125: 1820.25 | M125: 11.04283
A126: 117 | B126: L&TFH | C126: 77.35 | D126: 76.88 | E126: 75.97 | F126: 74.58 | G126: 73.67 | H126: 78.27 | I126: 79.18 | J126: 80.57 | K126: 77.8 | L126: 75.5 | M126: 36.57075
A127: 118 | B127: LTTS | C127: 3586.35 | D127: 3577.80 | E127: 3535.60 | F127: 3484.85 | G127: 3442.65 | H127: 3628.55 | I127: 3670.75 | J127: 3721.50 | K127: 3620 | L127: 3527.05 | M127: 1.71311
A128: 119 | B128: LICHSGFIN | C128: 408.3 | D128: 405.92 | E128: 402.58 | F128: 396.87 | G128: 393.53 | H128: 411.63 | I128: 414.97 | J128: 420.68 | K128: 409.25 | L128: 400.2 | M128: 12.96003
A129: 120 | B129: LTI | C129: 4641.85 | D129: 4635.93 | E129: 4581.92 | F129: 4521.98 | G129: 4467.97 | H129: 4695.87 | I129: 4749.88 | J129: 4809.82 | K129: 4689.95 | L129: 4576 | M129: 2.9086
A130: 121 | B130: LT | C130: 1883.2 | D130: 1891.87 | E130: 1869.73 | F130: 1856.27 | G130: 1834.13 | H130: 1905.33 | I130: 1927.47 | J130: 1940.93 | K130: 1914 | L130: 1878.4 | M130: 25.88147
A131: 122 | B131: LAURUSLABS | C131: 512.85 | D131: 515.65 | E131: 508.40 | F131: 503.95 | G131: 496.70 | H131: 520.10 | I131: 527.35 | J131: 531.80 | K131: 522.9 | L131: 511.2 | M131: 6.99576
A132: 123 | B132: LICI | C132: 608.75 | D132: 610.10 | E132: 606.65 | F132: 604.55 | G132: 601.10 | H132: 612.20 | I132: 615.65 | J132: 617.75 | K132: 613.55 | L132: 608 | M132: 7.72169
A133: 124 | B133: LINDEINDIA | C133: 3133.4 | D133: 3139.18 | E133: 3119.47 | F133: 3105.53 | G133: 3085.82 | H133: 3153.12 | I133: 3172.83 | J133: 3186.77 | K133: 3158.9 | L133: 3125.25 | M133: 0.7027
A134: 125 | B134: LUPIN | C134: 690.65 | D134: 690.83 | E134: 685.92 | F134: 681.18 | G134: 676.27 | H134: 695.57 | I134: 700.48 | J134: 705.22 | K134: 695.75 | L134: 686.1 | M134: 4.41511
A135: 126 | B135: MRF | C135: 82267.95 | D135: 81899.35 | E135: 81157.65 | F135: 80047.35 | G135: 79305.65 | H135: 83009.65 | I135: 83751.35 | J135: 84861.65 | K135: 82641.05 | L135: 80789.05 | M135: 0.08749
A136: 127 | B136: M&MFIN | C136: 211.45 | D136: 210.00 | E136: 208.05 | F136: 204.65 | G136: 202.70 | H136: 213.40 | I136: 215.35 | J136: 218.75 | K136: 211.95 | L136: 206.6 | M136: 27.72978
A137: 128 | B137: M&M | C137: 1230 | D137: 1221.75 | E137: 1204.75 | F137: 1179.50 | G137: 1162.50 | H137: 1247.00 | I137: 1264.00 | J137: 1289.25 | K137: 1238.75 | L137: 1196.5 | M137: 21.58727
A138: 129 | B138: MARICO | C138: 513.95 | D138: 513.45 | E138: 510.50 | F138: 507.05 | G138: 504.10 | H138: 516.90 | I138: 519.85 | J138: 523.30 | K138: 516.4 | L138: 510 | M138: 10.54028
A139: 130 | B139: MARUTI | C139: 8723.8 | D139: 8680.18 | E139: 8610.67 | F139: 8497.53 | G139: 8428.02 | H139: 8793.32 | I139: 8862.83 | J139: 8975.97 | K139: 8749.7 | L139: 8567.05 | M139: 3.04671
A140: 131 | B140: MFSL | C140: 713.7 | D140: 718.13 | E140: 701.57 | F140: 689.43 | G140: 672.87 | H140: 730.27 | I140: 746.83 | J140: 758.97 | K140: 734.7 | L140: 706 | M140: 26.32953
A141: 132 | B141: MAXHEALTH | C141: 419.5 | D141: 423.83 | E141: 412.67 | F141: 405.83 | G141: 394.67 | H141: 430.67 | I141: 441.83 | J141: 448.67 | K141: 435 | L141: 417 | M141: 11.66622
A142: 133 | B142: MSUMI | C142: 88.65 | D142: 88.67 | E142: 88.13 | F142: 87.62 | G142: 87.08 | H142: 89.18 | I142: 89.72 | J142: 90.23 | K142: 89.2 | L142: 88.15 | M142: 8.14677
A143: 134 | B143: MPHASIS | C143: 2100.95 | D143: 2098.38 | E143: 2084.77 | F143: 2068.58 | G143: 2054.97 | H143: 2114.57 | I143: 2128.18 | J143: 2144.37 | K143: 2112 | L143: 2082.2 | M143: 3.21142
A144: 135 | B144: MUTHOOTFIN | C144: 1022.05 | D144: 1019.48 | E144: 1010.02 | F144: 997.98 | G144: 988.52 | H144: 1031.52 | I144: 1040.98 | J144: 1053.02 | K144: 1028.95 | L144: 1007.45 | M144: 4.62639
A145: 136 | B145: NTPC | C145: 168.45 | D145: 167.17 | E145: 165.28 | F145: 162.12 | G145: 160.23 | H145: 170.33 | I145: 172.22 | J145: 175.38 | K145: 169.05 | L145: 164 | M145: 134.26449
A146: 137 | B146: NATIONALUM | C146: 68.7 | D146: 69.03 | E146: 68.12 | F146: 67.53 | G146: 66.62 | H146: 69.62 | I146: 70.53 | J146: 71.12 | K146: 69.95 | L146: 68.45 | M146: 142.77417
A147: 138 | B147: NAVINFLUOR | C147: 4419.95 | D147: 4474.02 | E147: 4342.73 | F147: 4265.52 | G147: 4134.23 | H147: 4551.23 | I147: 4682.52 | J147: 4759.73 | K147: 4605.3 | L147: 4396.8 | M147: 1.77719
A148: 139 | B148: NESTLEIND | C148: 18920.15 | D148: 18924.12 | E148: 18788.23 | F148: 18656.32 | G148: 18520.43 | H148: 19056.03 | I148: 19191.92 | J148: 19323.83 | K148: 19060 | L148: 18792.2 | M148: 0.17425
A149: 140 | B149: NAM-INDIA | C149: 271.7 | D149: 272.32 | E149: 269.38 | F149: 267.07 | G149: 264.13 | H149: 274.63 | I149: 277.57 | J149: 279.88 | K149: 275.25 | L149: 270 | M149: 1.71426
A150: 141 | B150: OBEROIRLTY | C150: 857.6 | D150: 860.47 | E150: 830.43 | F150: 803.27 | G150: 773.23 | H150: 887.63 | I150: 917.67 | J150: 944.83 | K150: 890.5 | L150: 833.3 | M150: 34.99997
A151: 142 | B151: ONGC | C151: 127.8 | D151: 127.33 | E151: 126.47 | F151: 125.13 | G151: 124.27 | H151: 128.67 | I151: 129.53 | J151: 130.87 | K151: 128.2 | L151: 126 | M151: 93.2094
A152: 143 | B152: OIL | C152: 184.5 | D152: 184.60 | E152: 181.70 | F152: 178.90 | G152: 176.00 | H152: 187.40 | I152: 190.30 | J152: 193.10 | K152: 187.5 | L152: 181.8 | M152: 14.31016
A153: 144 | B153: PAYTM | C153: 672.55 | D153: 674.62 | E153: 668.43 | F153: 664.32 | G153: 658.13 | H153: 678.73 | I153: 684.92 | J153: 689.03 | K153: 680.8 | L153: 670.5 | M153: 5.16956
A154: 145 | B154: OFSS | C154: 2940.25 | D154: 2942.33 | E154: 2928.17 | F154: 2916.08 | G154: 2901.92 | H154: 2954.42 | I154: 2968.58 | J154: 2980.67 | K154: 2956.5 | L154: 2930.25 | M154: 0.58493
A155: 146 | B155: POLICYBZR | C155: 426.5 | D155: 431.28 | E155: 418.67 | F155: 410.83 | G155: 398.22 | H155: 439.12 | I155: 451.73 | J155: 459.57 | K155: 443.9 | L155: 423.45 | M155: 4.25365
A156: 147 | B156: PIIND | C156: 3058.8 | D156: 3054.72 | E156: 3010.83 | F156: 2962.87 | G156: 2918.98 | H156: 3102.68 | I156: 3146.57 | J156: 3194.53 | K156: 3098.6 | L156: 3006.75 | M156: 5.21182
A157: 148 | B157: PAGEIND | C157: 51339.95 | D157: 50979.52 | E157: 50465.43 | F157: 49590.92 | G157: 49076.83 | H157: 51854.03 | I157: 52368.12 | J157: 53242.63 | K157: 51493.6 | L157: 50105 | M157: 0.09429
A158: 149 | B158: PATANJALI | C158: 1418.9 | D158: 1403.30 | E158: 1385.60 | F158: 1352.30 | G158: 1334.60 | H158: 1436.60 | I158: 1454.30 | J158: 1487.60 | K158: 1421 | L158: 1370 | M158: 2.9623
A159: 150 | B159: PERSISTENT | C159: 3628.65 | D159: 3631.20 | E159: 3592.45 | F159: 3556.25 | G159: 3517.50 | H159: 3667.40 | I159: 3706.15 | J159: 3742.35 | K159: 3669.95 | L159: 3595 | M159: 2.13085
A160: 151 | B160: PETRONET | C160: 200.95 | D160: 200.75 | E160: 199.50 | F160: 198.05 | G160: 196.80 | H160: 202.20 | I160: 203.45 | J160: 204.90 | K160: 202 | L160: 199.3 | M160: 8.60178
A161: 152 | B161: PIDILITIND | C161: 2691.4 | D161: 2675.25 | E161: 2641.35 | F161: 2591.30 | G161: 2557.40 | H161: 2725.30 | I161: 2759.20 | J161: 2809.25 | K161: 2709.15 | L161: 2625.2 | M161: 8.17003
A162: 153 | B162: POLYCAB | C162: 2618.8 | D162: 2598.30 | E162: 2571.75 | F162: 2524.70 | G162: 2498.15 | H162: 2645.35 | I162: 2671.90 | J162: 2718.95 | K162: 2624.85 | L162: 2551.25 | M162: 2.23353
A163: 154 | B163: POONAWALLA | C163: 324.7 | D163: 324.48 | E163: 321.72 | F163: 318.73 | G163: 315.97 | H163: 327.47 | I163: 330.23 | J163: 333.22 | K163: 327.25 | L163: 321.5 | M163: 23.48001
A164: 155 | B164: PFC | C164: 101.8 | D164: 101.57 | E164: 101.08 | F164: 100.37 | G164: 99.88 | H164: 102.28 | I164: 102.77 | J164: 103.48 | K164: 102.05 | L164: 100.85 | M164: 41.40869
A165: 156 | B165: POWERGRID | C165: 211.85 | D165: 212.60 | E165: 210.25 | F165: 208.65 | G165: 206.30 | H165: 214.20 | I165: 216.55 | J165: 218.15 | K165: 214.95 | L165: 211 | M165: 71.40403
A166: 157 | B166: PRESTIGE | C166: 433.05 | D166: 431.88 | E166: 426.32 | F166: 419.58 | G166: 414.02 | H166: 438.62 | I166: 444.18 | J166: 450.92 | K166: 437.45 | L166: 425.15 | M166: 1.38555
A167: 158 | B167: PGHH | C167: 13846.7 | D167: 13835.23 | E167: 13787.47 | F167: 13728.23 | G167: 13680.47 | H167: 13894.47 | I167: 13942.23 | J167: 14001.47 | K167: 13883 | L167: 13776 | M167: 0.02841
A168: 159 | B168: PNB | C168: 36.9 | D168: 36.55 | E168: 35.85 | F168: 34.80 | G168: 34.10 | H168: 37.60 | I168: 38.30 | J168: 39.35 | K168: 37.25 | L168: 35.5 | M168: 424.48068
A169: 160 | B169: RECLTD | C169: 91.65 | D169: 91.60 | E169: 91.10 | F169: 90.55 | G169: 90.05 | H169: 92.15 | I169: 92.65 | J169: 93.20 | K169: 92.1 | L169: 91.05 | M169: 55.55192
A170: 161 | B170: RELIANCE | C170: 2408.75 | D170: 2388.78 | E170: 2363.57 | F170: 2318.38 | G170: 2293.17 | H170: 2433.97 | I170: 2459.18 | J170: 2504.37 | K170: 2414 | L170: 2343.6 | M170: 77.20595
A171: 162 | B171: SBICARD | C171: 858.5 | D171: 850.20 | E171: 839.40 | F171: 820.30 | G171: 809.50 | H171: 869.30 | I171: 880.10 | J171: 899.20 | K171: 861 | L171: 831.1 | M171: 11.14767
A172: 163 | B172: SBILIFE | C172: 1189.8 | D172: 1185.35 | E172: 1172.05 | F172: 1154.30 | G172: 1141.00 | H172: 1203.10 | I172: 1216.40 | J172: 1234.15 | K172: 1198.65 | L172: 1167.6 | M172: 16.15547
A173: 164 | B173: SRF | C173: 2550.95 | D173: 2534.17 | E173: 2496.83 | F173: 2442.72 | G173: 2405.38 | H173: 2588.28 | I173: 2625.62 | J173: 2679.73 | K173: 2571.5 | L173: 2480.05 | M173: 4.77988
A174: 165 | B174: MOTHERSON | C174: 69.2 | D174: 69.15 | E174: 68.65 | F174: 68.10 | G174: 67.60 | H174: 69.70 | I174: 70.20 | J174: 70.75 | K174: 69.65 | L174: 68.6 | M174: 46.50175
A175: 166 | B175: SHREECEM | C175: 20831.1 | D175: 20657.03 | E175: 20324.07 | F175: 19817.03 | G175: 19484.07 | H175: 21164.07 | I175: 21497.03 | J175: 22004.07 | K175: 20990 | L175: 20150 | M175: 1.79228
A176: 167 | B176: SRTRANSFIN | C176: 1192.4 | D176: 1187.25 | E176: 1177.15 | F176: 1161.90 | G176: 1151.80 | H176: 1202.50 | I176: 1212.60 | J176: 1227.85 | K176: 1197.35 | L176: 1172 | M176: 3.13435
A177: 168 | B177: SIEMENS | C177: 2745.45 | D177: 2743.37 | E177: 2722.13 | F177: 2698.82 | G177: 2677.58 | H177: 2766.68 | I177: 2787.92 | J177: 2811.23 | K177: 2764.6 | L177: 2720.05 | M177: 0.61974
A178: 169 | B178: SONACOMS | C178: 460.05 | D178: 460.08 | E178: 454.12 | F178: 448.18 | G178: 442.22 | H178: 466.02 | I178: 471.98 | J178: 477.92 | K178: 466.05 | L178: 454.15 | M178: 5.20984
A179: 170 | B179: SBIN | C179: 543.65 | D179: 537.52 | E179: 530.33 | F179: 517.02 | G179: 509.83 | H179: 550.83 | I179: 558.02 | J179: 571.33 | K179: 544.7 | L179: 524.2 | M179: 134.85349
A180: 171 | B180: SAIL | C180: 78.25 | D180: 77.65 | E180: 76.85 | F180: 75.45 | G180: 74.65 | H180: 79.05 | I180: 79.85 | J180: 81.25 | K180: 78.45 | L180: 76.25 | M180: 111.43044
A181: 172 | B181: SUNPHARMA | C181: 980 | D181: 979.43 | E181: 973.87 | F181: 967.73 | G181: 962.17 | H181: 985.57 | I181: 991.13 | J181: 997.27 | K181: 985 | L181: 973.3 | M181: 26.47369
A182: 173 | B182: SUNTV | C182: 530.25 | D182: 532.22 | E182: 526.28 | F182: 522.32 | G182: 516.38 | H182: 536.18 | I182: 542.12 | J182: 546.08 | K182: 538.15 | L182: 528.25 | M182: 6.38565
A183: 174 | B183: SYNGENE | C183: 538.2 | D183: 542.42 | E183: 532.03 | F183: 525.87 | G183: 515.48 | H183: 548.58 | I183: 558.97 | J183: 565.13 | K183: 552.8 | L183: 536.25 | M183: 5.76883
A184: 175 | B184: TVSMOTOR | C184: 1075.05 | D184: 1071.95 | E184: 1063.10 | F184: 1051.15 | G184: 1042.30 | H184: 1083.90 | I184: 1092.75 | J184: 1104.70 | K184: 1080.8 | L184: 1060 | M184: 9.66318
A185: 176 | B185: TATACHEM | C185: 1162 | D185: 1153.33 | E185: 1138.67 | F185: 1115.33 | G185: 1100.67 | H185: 1176.67 | I185: 1191.33 | J185: 1214.67 | K185: 1168 | L185: 1130 | M185: 16.58559
A186: 177 | B186: TATACOMM | C186: 1195.85 | D186: 1187.97 | E186: 1171.93 | F186: 1148.02 | G186: 1131.98 | H186: 1211.88 | I186: 1227.92 | J186: 1251.83 | K186: 1204 | L186: 1164.05 | M186: 4.41261
A187: 178 | B187: TCS | C187: 3111.75 | D187: 3103.87 | E187: 3079.33 | F187: 3046.92 | G187: 3022.38 | H187: 3136.28 | I187: 3160.82 | J187: 3193.23 | K187: 3128.4 | L187: 3071.45 | M187: 15.17005
A188: 179 | B188: TATACONSUM | C188: 763.15 | D188: 764.13 | E188: 756.32 | F188: 749.48 | G188: 741.67 | H188: 770.97 | I188: 778.78 | J188: 785.62 | K188: 771.95 | L188: 757.3 | M188: 9.40646
A189: 180 | B189: TATAELXSI | C189: 7782.8 | D189: 7839.27 | E189: 7678.53 | F189: 7574.27 | G189: 7413.53 | H189: 7943.53 | I189: 8104.27 | J189: 8208.53 | K189: 8000 | L189: 7735 | M189: 11.99165
A190: 181 | B190: TATAMOTORS | C190: 396.1 | D190: 395.83 | E190: 392.77 | F190: 389.43 | G190: 386.37 | H190: 399.17 | I190: 402.23 | J190: 405.57 | K190: 398.9 | L190: 392.5 | M190: 95.43556
A191: 182 | B191: TATAPOWER | C191: 217.95 | D191: 216.77 | E191: 215.03 | F191: 212.12 | G191: 210.38 | H191: 219.68 | I191: 221.42 | J191: 224.33 | K191: 218.5 | L191: 213.85 | M191: 94.20098
A192: 183 | B192: TATASTEEL | C192: 99.55 | D192: 99.35 | E192: 98.30 | F192: 97.05 | G192: 96.00 | H192: 100.60 | I192: 101.65 | J192: 102.90 | K192: 100.4 | L192: 98.1 | M192: 375.68783
A193: 184 | B193: TTML | C193: 108.65 | D193: 109.63 | E193: 105.27 | F193: 101.88 | G193: 97.52 | H193: 113.02 | I193: 117.38 | J193: 120.77 | K193: 114 | L193: 106.25 | M193: 22.41645
A194: 185 | B194: TECHM | C194: 1023.25 | D194: 1019.55 | E194: 1011.15 | F194: 999.05 | G194: 990.65 | H194: 1031.65 | I194: 1040.05 | J194: 1052.15 | K194: 1027.95 | L194: 1007.45 | M194: 14.26207
A195: 186 | B195: RAMCOCEM | C195: 707.2 | D195: 701.33 | E195: 692.67 | F195: 678.13 | G195: 669.47 | H195: 715.87 | I195: 724.53 | J195: 739.07 | K195: 710 | L195: 686.8 | M195: 2.05085
A196: 187 | B196: TITAN | C196: 2625 | D196: 2620.82 | E196: 2606.73 | F196: 2588.47 | G196: 2574.38 | H196: 2639.08 | I196: 2653.17 | J196: 2671.43 | K196: 2634.9 | L196: 2602.55 | M196: 11.11199
A197: 188 | B197: TORNTPHARM | C197: 1580.5 | D197: 1587.78 | E197: 1570.72 | F197: 1560.93 | G197: 1543.87 | H197: 1597.57 | I197: 1614.63 | J197: 1624.42 | K197: 1604.85 | L197: 1578 | M197: 2.13616
A198: 189 | B198: TORNTPOWER | C198: 482.3 | D198: 480.52 | E198: 477.33 | F198: 472.37 | G198: 469.18 | H198: 485.48 | I198: 488.67 | J198: 493.63 | K198: 483.7 | L198: 475.55 | M198: 1.88182
A199: 190 | B199: TRENT | C199: 1378.25 | D199: 1373.23 | E199: 1359.07 | F199: 1339.88 | G199: 1325.72 | H199: 1392.42 | I199: 1406.58 | J199: 1425.77 | K199: 1387.4 | L199: 1354.05 | M199: 4.18522
A200: 191 | B200: TRIDENT | C200: 35.85 | D200: 35.98 | E200: 35.67 | F200: 35.48 | G200: 35.17 | H200: 36.17 | I200: 36.48 | J200: 36.67 | K200: 36.3 | L200: 35.8 | M200: 37.79833
A201: 192 | B201: TIINDIA | C201: 2669.3 | D201: 2659.62 | E201: 2604.68 | F201: 2540.07 | G201: 2485.13 | H201: 2724.23 | I201: 2779.17 | J201: 2843.78 | K201: 2714.55 | L201: 2595 | M201: 3.64729
A202: 193 | B202: UPL | C202: 678.05 | D202: 677.95 | E202: 671.90 | F202: 665.75 | G202: 659.70 | H202: 684.10 | I202: 690.15 | J202: 696.30 | K202: 684 | L202: 671.8 | M202: 13.606
A203: 194 | B203: ULTRACEMCO | C203: 6271.5 | D203: 6211.83 | E203: 6141.87 | F203: 6012.23 | G203: 5942.27 | H203: 6341.47 | I203: 6411.43 | J203: 6541.07 | K203: 6281.8 | L203: 6082.2 | M203: 4.53912
A204: 195 | B204: UNIONBANK | C204: 43.95 | D204: 43.58 | E204: 42.97 | F204: 41.98 | G204: 41.37 | H204: 44.57 | I204: 45.18 | J204: 46.17 | K204: 44.2 | L204: 42.6 | M204: 53.8978
A205: 196 | B205: UBL | C205: 1668.85 | D205: 1664.05 | E205: 1653.45 | F205: 1638.05 | G205: 1627.45 | H205: 1679.45 | I205: 1690.05 | J205: 1705.45 | K205: 1674.65 | L205: 1648.65 | M205: 0.83942
... 29 more rows

Sheet MidCap Intra
L5: Back To Main Page
A6: FOR INTRA DAY TRADING | K6: =Main!B10 -> 2022-10-18
A9: Sr.no | B9: Scrip | C9: CLOSE RATE | D9: Pivot Point | E9: Supports | H9: Resistances
E10: S1 | F10: S2 | G10: S3 | H10: R1 | I10: R2 | J10: R3 | K10: HIGH | L10: LOW | M10: Total Trade Quanity in Lakhs
A11: 1 | B11: 3MINDIA | C11: 23414.1 | D11: 23452.38 | E11: 22704.77 | F11: 21995.43 | G11: 21247.82 | H11: 24161.72 | I11: 24909.33 | J11: 25618.67 | K11: 24200 | L11: 22743.05 | M11: 0.05166
A12: 2 | B12: ABB | C12: 3196.55 | D12: 3193.87 | E12: 3155.98 | F12: 3115.42 | G12: 3077.53 | H12: 3234.43 | I12: 3272.32 | J12: 3312.88 | K12: 3231.75 | L12: 3153.3 | M12: 3.03859
A13: 3 | B13: ACC | C13: 2270.1 | D13: 2253.48 | E13: 2221.92 | F13: 2173.73 | G13: 2142.17 | H13: 2301.67 | I13: 2333.23 | J13: 2381.42 | K13: 2285.05 | L13: 2205.3 | M13: 15.1237
A14: 4 | B14: AIAENG | C14: 2592.15 | D14: 2604.05 | E14: 2554.70 | F14: 2517.25 | G14: 2467.90 | H14: 2641.50 | I14: 2690.85 | J14: 2728.30 | K14: 2653.4 | L14: 2566.6 | M14: 0.67756
A15: 5 | B15: APLAPOLLO | C15: 1118.25 | D15: 1121.60 | E15: 1106.20 | F15: 1094.15 | G15: 1078.75 | H15: 1133.65 | I15: 1149.05 | J15: 1161.10 | K15: 1137 | L15: 1109.55 | M15: 2.17935
A16: 6 | B16: AUBANK | C16: 615.75 | D16: 609.87 | E16: 601.73 | F16: 587.72 | G16: 579.58 | H16: 623.88 | I16: 632.02 | J16: 646.03 | K16: 618 | L16: 595.85 | M16: 18.06133
A17: 7 | B17: AARTIDRUGS | C17: 459.75 | D17: 459.23 | E17: 456.52 | F17: 453.28 | G17: 450.57 | H17: 462.47 | I17: 465.18 | J17: 468.42 | K17: 461.95 | L17: 456 | M17: 0.46108
A18: 8 | B18: AAVAS | C18: 2052.9 | D18: 2064.68 | E18: 2030.72 | F18: 2008.53 | G18: 1974.57 | H18: 2086.87 | I18: 2120.83 | J18: 2143.02 | K18: 2098.65 | L18: 2042.5 | M18: 0.51479
A19: 9 | B19: ABBOTINDIA | C19: 18085.4 | D19: 18148.47 | E19: 17936.93 | F19: 17788.47 | G19: 17576.93 | H19: 18296.93 | I19: 18508.47 | J19: 18656.93 | K19: 18360 | L19: 18000 | M19: 0.08136
A20: 10 | B20: ADANIENT | C20: 3212.6 | D20: 3194.57 | E20: 3154.13 | F20: 3095.67 | G20: 3055.23 | H20: 3253.03 | I20: 3293.47 | J20: 3351.93 | K20: 3235 | L20: 3136.1 | M20: 19.85298
A21: 11 | B21: ADANIGREEN | C21: 2154.45 | D21: 2129.15 | E21: 2060.30 | F21: 1966.15 | G21: 1897.30 | H21: 2223.30 | I21: 2292.15 | J21: 2386.30 | K21: 2198 | L21: 2035 | M21: 29.10329
A22: 12 | B22: ADANIPORTS | C22: 786.2 | D22: 782.60 | E22: 775.25 | F22: 764.30 | G22: 756.95 | H22: 793.55 | I22: 800.90 | J22: 811.85 | K22: 789.95 | L22: 771.65 | M22: 46.0287
A23: 13 | B23: ATGL | C23: 3099.3 | D23: 3070.10 | E23: 3005.20 | F23: 2911.10 | G23: 2846.20 | H23: 3164.20 | I23: 3229.10 | J23: 3323.20 | K23: 3135 | L23: 2976 | M23: 1.93751
A24: 14 | B24: ADANITRANS | C24: 3074.35 | D24: 3047.80 | E24: 2998.90 | F24: 2923.45 | G24: 2874.55 | H24: 3123.25 | I24: 3172.15 | J24: 3247.60 | K24: 3096.7 | L24: 2972.35 | M24: 3.69563
A25: 15 | B25: AWL | C25: 661.25 | D25: 657.98 | E25: 639.47 | F25: 617.68 | G25: 599.17 | H25: 679.77 | I25: 698.28 | J25: 720.07 | K25: 676.5 | L25: 636.2 | M25: 52.69766
A26: 16 | B26: ABCAPITAL | C26: 110.4 | D26: 109.83 | E26: 108.67 | F26: 106.93 | G26: 105.77 | H26: 111.57 | I26: 112.73 | J26: 114.47 | K26: 111 | L26: 108.1 | M26: 15.1629
A27: 17 | B27: ABFRL | C27: 331.85 | D27: 330.48 | E27: 327.62 | F27: 323.38 | G27: 320.52 | H27: 334.72 | I27: 337.58 | J27: 341.82 | K27: 333.35 | L27: 326.25 | M27: 8.96203
A28: 18 | B28: ABSLAMC | C28: 435.1 | D28: 434.97 | E28: 430.78 | F28: 426.47 | G28: 422.28 | H28: 439.28 | I28: 443.47 | J28: 447.78 | K28: 439.15 | L28: 430.65 | M28: 0.28708
A29: 19 | B29: AEGISCHEM | C29: 272.4 | D29: 273.57 | E29: 267.93 | F29: 263.47 | G29: 257.83 | H29: 278.03 | I29: 283.67 | J29: 288.13 | K29: 279.2 | L29: 269.1 | M29: 3.0035
A30: 20 | B30: AETHER | C30: 947.8 | D30: 948.25 | E30: 941.50 | F30: 935.20 | G30: 928.45 | H30: 954.55 | I30: 961.30 | J30: 967.60 | K30: 955 | L30: 941.95 | M30: 0.33011
A31: 21 | B31: AFFLE | C31: 1157.75 | D31: 1159.77 | E31: 1143.98 | F31: 1130.22 | G31: 1114.43 | H31: 1173.53 | I31: 1189.32 | J31: 1203.08 | K31: 1175.55 | L31: 1146 | M31: 1.79295
A32: 22 | B32: AJANTPHARM | C32: 1257.45 | D32: 1262.98 | E32: 1244.47 | F32: 1231.48 | G32: 1212.97 | H32: 1275.97 | I32: 1294.48 | J32: 1307.47 | K32: 1281.5 | L32: 1250 | M32: 0.21283
A33: 23 | B33: APLLTD | C33: 571.05 | D33: 570.90 | E33: 566.75 | F33: 562.45 | G33: 558.30 | H33: 575.20 | I33: 579.35 | J33: 583.65 | K33: 575.05 | L33: 566.6 | M33: 0.53026
A34: 24 | B34: ALKEM | C34: 3122.4 | D34: 3119.77 | E34: 3086.23 | F34: 3050.07 | G34: 3016.53 | H34: 3155.93 | I34: 3189.47 | J34: 3225.63 | K34: 3153.3 | L34: 3083.6 | M34: 0.44816
A35: 25 | B35: ALKYLAMINE | C35: 2893.8 | D35: 2893.90 | E35: 2864.90 | F35: 2836.00 | G35: 2807.00 | H35: 2922.80 | I35: 2951.80 | J35: 2980.70 | K35: 2922.9 | L35: 2865 | M35: 1.17141
A36: 26 | B36: ALLCARGO | C36: 392.45 | D36: 390.00 | E36: 384.95 | F36: 377.45 | G36: 372.40 | H36: 397.50 | I36: 402.55 | J36: 410.05 | K36: 395.05 | L36: 382.5 | M36: 5.43441
A37: 27 | B37: ALOKINDS | C37: 16.1 | D37: 16.10 | E37: 16.10 | F37: 16.10 | G37: 16.10 | H37: 16.10 | I37: 16.10 | J37: 16.10 | K37: 16.1 | L37: 16.1 | M37: 16.53124
A38: 28 | B38: AMARAJABAT | C38: 489.85 | D38: 488.82 | E38: 485.63 | F38: 481.42 | G38: 478.23 | H38: 493.03 | I38: 496.22 | J38: 500.43 | K38: 492 | L38: 484.6 | M38: 2.33896
A39: 29 | B39: AMBER | C39: 2222.3 | D39: 2227.80 | E39: 2207.15 | F39: 2192.00 | G39: 2171.35 | H39: 2242.95 | I39: 2263.60 | J39: 2278.75 | K39: 2248.45 | L39: 2212.65 | M39: 0.75344
A40: 30 | B40: AMBUJACEM | C40: 520.55 | D40: 513.57 | E40: 504.43 | F40: 488.32 | G40: 479.18 | H40: 529.68 | I40: 538.82 | J40: 554.93 | K40: 522.7 | L40: 497.45 | M40: 96.2667
A41: 31 | B41: ANGELONE | C41: 1625.75 | D41: 1624.97 | E41: 1601.93 | F41: 1578.12 | G41: 1555.08 | H41: 1648.78 | I41: 1671.82 | J41: 1695.63 | K41: 1648 | L41: 1601.15 | M41: 7.46808
A42: 32 | B42: ANURAS | C42: 725.3 | D42: 732.03 | E42: 713.12 | F42: 700.93 | G42: 682.02 | H42: 744.22 | I42: 763.13 | J42: 775.32 | K42: 750.95 | L42: 719.85 | M42: 1.41399
A43: 33 | B43: APOLLOHOSP | C43: 4290.85 | D43: 4270.82 | E43: 4241.08 | F43: 4191.32 | G43: 4161.58 | H43: 4320.58 | I43: 4350.32 | J43: 4400.08 | K43: 4300.55 | L43: 4221.05 | M43: 2.54734
A44: 34 | B44: APOLLOTYRE | C44: 276.5 | D44: 273.98 | E44: 270.62 | F44: 264.73 | G44: 261.37 | H44: 279.87 | I44: 283.23 | J44: 289.12 | K44: 277.35 | L44: 268.1 | M44: 20.46926
A45: 35 | B45: APTUS | C45: 331.6 | D45: 324.12 | E45: 309.38 | F45: 287.17 | G45: 272.43 | H45: 346.33 | I45: 361.07 | J45: 383.28 | K45: 338.85 | L45: 301.9 | M45: 16.61447
A46: 36 | B46: ASAHIINDIA | C46: 611.1 | D46: 614.98 | E46: 600.37 | F46: 589.63 | G46: 575.02 | H46: 625.72 | I46: 640.33 | J46: 651.07 | K46: 629.6 | L46: 604.25 | M46: 2.08585
A47: 37 | B47: ASHOKLEY | C47: 148.05 | D47: 147.23 | E47: 145.87 | F47: 143.68 | G47: 142.32 | H47: 149.42 | I47: 150.78 | J47: 152.97 | K47: 148.6 | L47: 145.05 | M47: 87.44843
A48: 38 | B48: ASIANPAINT | C48: 3197.6 | D48: 3195.23 | E48: 3172.47 | F48: 3147.33 | G48: 3124.57 | H48: 3220.37 | I48: 3243.13 | J48: 3268.27 | K48: 3218 | L48: 3170.1 | M48: 10.67773
A49: 39 | B49: ASTERDM | C49: 242.65 | D49: 243.23 | E49: 238.52 | F49: 234.38 | G49: 229.67 | H49: 247.37 | I49: 252.08 | J49: 256.22 | K49: 247.95 | L49: 239.1 | M49: 4.44469
A50: 40 | B50: ASTRAZEN | C50: 3000.2 | D50: 2984.33 | E50: 2926.87 | F50: 2853.53 | G50: 2796.07 | H50: 3057.67 | I50: 3115.13 | J50: 3188.47 | K50: 3041.8 | L50: 2911 | M50: 0.09364
A51: 41 | B51: ASTRAL | C51: 2148.35 | D51: 2133.78 | E51: 2107.57 | F51: 2066.78 | G51: 2040.57 | H51: 2174.57 | I51: 2200.78 | J51: 2241.57 | K51: 2160 | L51: 2093 | M51: 2.73269
A52: 42 | B52: ATUL | C52: 8735.2 | D52: 8736.05 | E52: 8665.15 | F52: 8595.10 | G52: 8524.20 | H52: 8806.10 | I52: 8877.00 | J52: 8947.05 | K52: 8806.95 | L52: 8666 | M52: 0.87572
A53: 43 | B53: AUROPHARMA | C53: 519.85 | D53: 518.67 | E53: 511.43 | F53: 503.02 | G53: 495.78 | H53: 527.08 | I53: 534.32 | J53: 542.73 | K53: 525.9 | L53: 510.25 | M53: 11.15302
A54: 44 | B54: AVANTIFEED | C54: 485.1 | D54: 482.70 | E54: 475.40 | F54: 465.70 | G54: 458.40 | H54: 492.40 | I54: 499.70 | J54: 509.40 | K54: 490 | L54: 473 | M54: 0.76348
A55: 45 | B55: DMART | C55: 4153.45 | D55: 4200.48 | E55: 4093.02 | F55: 4032.58 | G55: 3925.12 | H55: 4260.92 | I55: 4368.38 | J55: 4428.82 | K55: 4307.95 | L55: 4140.05 | M55: 9.50223
A56: 46 | B56: AXISBANK | C56: 814.15 | D56: 809.42 | E56: 801.83 | F56: 789.52 | G56: 781.93 | H56: 821.73 | I56: 829.32 | J56: 841.63 | K56: 817 | L56: 797.1 | M56: 94.63827
A57: 47 | B57: BASF | C57: 2856.1 | D57: 2868.37 | E57: 2837.73 | F57: 2819.37 | G57: 2788.73 | H57: 2886.73 | I57: 2917.37 | J57: 2935.73 | K57: 2899 | L57: 2850 | M57: 0.15352
A58: 48 | B58: BSE | C58: 588.65 | D58: 589.23 | E58: 585.42 | F58: 582.18 | G58: 578.37 | H58: 592.47 | I58: 596.28 | J58: 599.52 | K58: 593.05 | L58: 586 | M58: 3.1824
A59: 49 | B59: BAJAJ-AUTO | C59: 3629 | D59: 3627.27 | E59: 3579.73 | F59: 3530.47 | G59: 3482.93 | H59: 3676.53 | I59: 3724.07 | J59: 3773.33 | K59: 3674.8 | L59: 3578 | M59: 9.21084
A60: 50 | B60: BAJAJELEC | C60: 1151.1 | D60: 1149.20 | E60: 1135.80 | F60: 1120.50 | G60: 1107.10 | H60: 1164.50 | I60: 1177.90 | J60: 1193.20 | K60: 1162.6 | L60: 1133.9 | M60: 0.80136
A61: 51 | B61: BAJFINANCE | C61: 7355.2 | D61: 7314.83 | E61: 7257.37 | F61: 7159.53 | G61: 7102.07 | H61: 7412.67 | I61: 7470.13 | J61: 7567.97 | K61: 7372.3 | L61: 7217 | M61: 6.17401
A62: 52 | B62: BAJAJFINSV | C62: 1719.25 | D62: 1706.08 | E62: 1687.17 | F62: 1655.08 | G62: 1636.17 | H62: 1738.17 | I62: 1757.08 | J62: 1789.17 | K62: 1725 | L62: 1674 | M62: 15.5141
A63: 53 | B63: BAJAJHLDNG | C63: 6611.65 | D63: 6622.73 | E63: 6560.47 | F63: 6509.28 | G63: 6447.02 | H63: 6673.92 | I63: 6736.18 | J63: 6787.37 | K63: 6685 | L63: 6571.55 | M63: 0.83643
A64: 54 | B64: BALAMINES | C64: 3024.3 | D64: 3031.78 | E64: 2998.57 | F64: 2972.83 | G64: 2939.62 | H64: 3057.52 | I64: 3090.73 | J64: 3116.47 | K64: 3065 | L64: 3006.05 | M64: 0.3697
A65: 55 | B65: BALKRISIND | C65: 1908.15 | D65: 1909.57 | E65: 1895.13 | F65: 1882.12 | G65: 1867.68 | H65: 1922.58 | I65: 1937.02 | J65: 1950.03 | K65: 1924 | L65: 1896.55 | M65: 0.93937
A66: 56 | B66: BALRAMCHIN | C66: 350.05 | D66: 349.45 | E66: 344.95 | F66: 339.85 | G66: 335.35 | H66: 354.55 | I66: 359.05 | J66: 364.15 | K66: 353.95 | L66: 344.35 | M66: 10.56757
A67: 57 | B67: BANDHANBNK | C67: 268.7 | D67: 267.67 | E67: 265.08 | F67: 261.47 | G67: 258.88 | H67: 271.28 | I67: 273.87 | J67: 277.48 | K67: 270.25 | L67: 264.05 | M67: 39.53612
A68: 58 | B68: BANKBARODA | C68: 136.15 | D68: 134.17 | E68: 131.58 | F68: 127.02 | G68: 124.43 | H68: 138.73 | I68: 141.32 | J68: 145.88 | K68: 136.75 | L68: 129.6 | M68: 294.22436
A69: 59 | B69: BANKINDIA | C69: 46.9 | D69: 46.77 | E69: 46.33 | F69: 45.77 | G69: 45.33 | H69: 47.33 | I69: 47.77 | J69: 48.33 | K69: 47.2 | L69: 46.2 | M69: 30.43504
A70: 60 | B70: MAHABANK | C70: 18.85 | D70: 18.60 | E70: 18.20 | F70: 17.55 | G70: 17.15 | H70: 19.25 | I70: 19.65 | J70: 20.30 | K70: 19 | L70: 17.95 | M70: 138.51123
A71: 61 | B71: BATAINDIA | C71: 1840.1 | D71: 1816.27 | E71: 1787.88 | F71: 1735.67 | G71: 1707.28 | H71: 1868.48 | I71: 1896.87 | J71: 1949.08 | K71: 1844.65 | L71: 1764.05 | M71: 3.91653
A72: 62 | B72: BAYERCROP | C72: 4626.95 | D72: 4655.37 | E72: 4563.73 | F72: 4500.52 | G72: 4408.88 | H72: 4718.58 | I72: 4810.22 | J72: 4873.43 | K72: 4747 | L72: 4592.15 | M72: 0.08582
A73: 63 | B73: BERGEPAINT | C73: 613.75 | D73: 610.75 | E73: 606.50 | F73: 599.25 | G73: 595.00 | H73: 618.00 | I73: 622.25 | J73: 629.50 | K73: 615 | L73: 603.5 | M73: 5.71176
A74: 64 | B74: BDL | C74: 879.85 | D74: 869.27 | E74: 846.53 | F74: 813.22 | G74: 790.48 | H74: 902.58 | I74: 925.32 | J74: 958.63 | K74: 892 | L74: 835.95 | M74: 6.64741
A75: 65 | B75: BEL | C75: 101.8 | D75: 101.50 | E75: 100.25 | F75: 98.70 | G75: 97.45 | H75: 103.05 | I75: 104.30 | J75: 105.85 | K75: 102.75 | L75: 99.95 | M75: 99.43468
A76: 66 | B76: BHARATFORG | C76: 772.8 | D76: 763.63 | E76: 751.27 | F76: 729.73 | G76: 717.37 | H76: 785.17 | I76: 797.53 | J76: 819.07 | K76: 776 | L76: 742.1 | M76: 17.68267
A77: 67 | B77: BHEL | C77: 62.95 | D77: 62.15 | E77: 61.15 | F77: 59.35 | G77: 58.35 | H77: 63.95 | I77: 64.95 | J77: 66.75 | K77: 63.15 | L77: 60.35 | M77: 205.35097
A78: 68 | B78: BPCL | C78: 296.55 | D78: 295.82 | E78: 292.28 | F78: 288.02 | G78: 284.48 | H78: 300.08 | I78: 303.62 | J78: 307.88 | K78: 299.35 | L78: 291.55 | M78: 26.72321
A79: 69 | B79: BHARATRAS | C79: 10703.85 | D79: 10703.95 | E79: 10602.90 | F79: 10501.95 | G79: 10400.90 | H79: 10804.90 | I79: 10905.95 | J79: 11006.90 | K79: 10805 | L79: 10603 | M79: 0.0126
A80: 70 | B80: BHARTIARTL | C80: 766 | D80: 765.62 | E80: 760.23 | F80: 754.47 | G80: 749.08 | H80: 771.38 | I80: 776.77 | J80: 782.53 | K80: 771 | L80: 759.85 | M80: 45.66333
A81: 71 | B81: BIOCON | C81: 263.7 | D81: 262.52 | E81: 259.43 | F81: 255.17 | G81: 252.08 | H81: 266.78 | I81: 269.87 | J81: 274.13 | K81: 265.6 | L81: 258.25 | M81: 26.32881
A82: 72 | B82: BIRLACORPN | C82: 902.15 | D82: 906.50 | E82: 890.65 | F82: 879.15 | G82: 863.30 | H82: 918.00 | I82: 933.85 | J82: 945.35 | K82: 922.35 | L82: 895 | M82: 1.47568
A83: 73 | B83: BSOFT | C83: 281.6 | D83: 281.47 | E83: 279.13 | F83: 276.67 | G83: 274.33 | H83: 283.93 | I83: 286.27 | J83: 288.73 | K83: 283.8 | L83: 279 | M83: 9.1507
A84: 74 | B84: BLUEDART | C84: 8651.75 | D84: 8729.92 | E84: 8529.83 | F84: 8407.92 | G84: 8207.83 | H84: 8851.83 | I84: 9051.92 | J84: 9173.83 | K84: 8930 | L84: 8608 | M84: 0.124
A85: 75 | B85: BLUESTARCO | C85: 1195.2 | D85: 1183.72 | E85: 1164.43 | F85: 1133.67 | G85: 1114.38 | H85: 1214.48 | I85: 1233.77 | J85: 1264.53 | K85: 1203 | L85: 1152.95 | M85: 1.21983
A86: 76 | B86: BBTC | C86: 897.1 | D86: 898.27 | E86: 889.93 | F86: 882.77 | G86: 874.43 | H86: 905.43 | I86: 913.77 | J86: 920.93 | K86: 906.6 | L86: 891.1 | M86: 0.48212
A87: 77 | B87: BORORENEW | C87: 552.8 | D87: 556.17 | E87: 547.63 | F87: 542.47 | G87: 533.93 | H87: 561.33 | I87: 569.87 | J87: 575.03 | K87: 564.7 | L87: 551 | M87: 2.04507
A88: 78 | B88: BOSCHLTD | C88: 15568.65 | D88: 15534.48 | E88: 15434.27 | F88: 15299.88 | G88: 15199.67 | H88: 15668.87 | I88: 15769.08 | J88: 15903.47 | K88: 15634.7 | L88: 15400.1 | M88: 0.16787
A89: 79 | B89: BRIGADE | C89: 489.95 | D89: 493.03 | E89: 482.47 | F89: 474.98 | G89: 464.42 | H89: 500.52 | I89: 511.08 | J89: 518.57 | K89: 503.6 | L89: 485.55 | M89: 1.50885
A90: 80 | B90: BCG | C90: 39.7 | D90: 39.32 | E90: 38.48 | F90: 37.27 | G90: 36.43 | H90: 40.53 | I90: 41.37 | J90: 42.58 | K90: 40.15 | L90: 38.1 | M90: 135.64737
A91: 81 | B91: BRITANNIA | C91: 3777.7 | D91: 3777.38 | E91: 3752.87 | F91: 3728.03 | G91: 3703.52 | H91: 3802.22 | I91: 3826.73 | J91: 3851.57 | K91: 3801.9 | L91: 3752.55 | M91: 0.93315
A92: 82 | B92: MAPMYINDIA | C92: 1317.15 | D92: 1322.00 | E92: 1299.75 | F92: 1282.35 | G92: 1260.10 | H92: 1339.40 | I92: 1361.65 | J92: 1379.05 | K92: 1344.25 | L92: 1304.6 | M92: 0.63752
A93: 83 | B93: CCL | C93: 485.2 | D93: 486.63 | E93: 480.57 | F93: 475.93 | G93: 469.87 | H93: 491.27 | I93: 497.33 | J93: 501.97 | K93: 492.7 | L93: 482 | M93: 0.45899
A94: 84 | B94: CESC | C94: 77.65 | D94: 77.97 | E94: 77.18 | F94: 76.72 | G94: 75.93 | H94: 78.43 | I94: 79.22 | J94: 79.68 | K94: 78.75 | L94: 77.5 | M94: 6.04856
A95: 85 | B95: CGPOWER | C95: 254.25 | D95: 254.88 | E95: 251.77 | F95: 249.28 | G95: 246.17 | H95: 257.37 | I95: 260.48 | J95: 262.97 | K95: 258 | L95: 252.4 | M95: 8.05344
A96: 86 | B96: CRISIL | C96: 3075.5 | D96: 3096.32 | E96: 3049.18 | F96: 3022.87 | G96: 2975.73 | H96: 3122.63 | I96: 3169.77 | J96: 3196.08 | K96: 3143.45 | L96: 3070 | M96: 0.31044
A97: 87 | B97: CSBBANK | C97: 247.1 | D97: 246.17 | E97: 243.23 | F97: 239.37 | G97: 236.43 | H97: 250.03 | I97: 252.97 | J97: 256.83 | K97: 249.1 | L97: 242.3 | M97: 2.06275
A98: 88 | B98: CAMPUS | C98: 590.55 | D98: 588.02 | E98: 578.13 | F98: 565.72 | G98: 555.83 | H98: 600.43 | I98: 610.32 | J98: 622.73 | K98: 597.9 | L98: 575.6 | M98: 4.86061
A99: 89 | B99: CANFINHOME | C99: 502.2 | D99: 507.80 | E99: 492.75 | F99: 483.30 | G99: 468.25 | H99: 517.25 | I99: 532.30 | J99: 541.75 | K99: 522.85 | L99: 498.35 | M99: 31.42466
A100: 90 | B100: CANBK | C100: 237.4 | D100: 232.92 | E100: 227.48 | F100: 217.57 | G100: 212.13 | H100: 242.83 | I100: 248.27 | J100: 258.18 | K100: 238.35 | L100: 223 | M100: 173.0404
A101: 91 | B101: CAPLIPOINT | C101: 708.8 | D101: 707.93 | E101: 700.87 | F101: 692.93 | G101: 685.87 | H101: 715.87 | I101: 722.93 | J101: 730.87 | K101: 715 | L101: 700 | M101: 0.18406
A102: 92 | B102: CGCL | C102: 731.1 | D102: 731.85 | E102: 725.40 | F102: 719.70 | G102: 713.25 | H102: 737.55 | I102: 744.00 | J102: 749.70 | K102: 738.3 | L102: 726.15 | M102: 1.77773
A103: 93 | B103: CARBORUNIV | C103: 879.45 | D103: 879.67 | E103: 873.78 | F103: 868.12 | G103: 862.23 | H103: 885.33 | I103: 891.22 | J103: 896.88 | K103: 885.55 | L103: 874 | M103: 0.4197
A104: 94 | B104: CASTROLIND | C104: 123.95 | D104: 123.32 | E104: 121.78 | F104: 119.62 | G104: 118.08 | H104: 125.48 | I104: 127.02 | J104: 129.18 | K104: 124.85 | L104: 121.15 | M104: 20.27499
A105: 95 | B105: CEATLTD | C105: 1495.45 | D105: 1499.92 | E105: 1478.83 | F105: 1462.22 | G105: 1441.13 | H105: 1516.53 | I105: 1537.62 | J105: 1554.23 | K105: 1521 | L105: 1483.3 | M105: 0.66705
A106: 96 | B106: CENTRALBK | C106: 19.45 | D106: 19.35 | E106: 19.05 | F106: 18.65 | G106: 18.35 | H106: 19.75 | I106: 20.05 | J106: 20.45 | K106: 19.65 | L106: 18.95 | M106: 27.47267
A107: 97 | B107: CDSL | C107: 1205.15 | D107: 1209.50 | E107: 1197.65 | F107: 1190.15 | G107: 1178.30 | H107: 1217.00 | I107: 1228.85 | J107: 1236.35 | K107: 1221.35 | L107: 1202 | M107: 2.65042
A108: 98 | B108: CENTURYPLY | C108: 616.2 | D108: 613.45 | E108: 606.90 | F108: 597.60 | G108: 591.05 | H108: 622.75 | I108: 629.30 | J108: 638.60 | K108: 620 | L108: 604.15 | M108: 0.80253
A109: 99 | B109: CENTURYTEX | C109: 819.75 | D109: 820.92 | E109: 810.83 | F109: 801.92 | G109: 791.83 | H109: 829.83 | I109: 839.92 | J109: 848.83 | K109: 831 | L109: 812 | M109: 0.66793
A110: 100 | B110: CERA | C110: 5521.6 | D110: 5507.13 | E110: 5463.47 | F110: 5405.33 | G110: 5361.67 | H110: 5565.27 | I110: 5608.93 | J110: 5667.07 | K110: 5550.8 | L110: 5449 | M110: 0.06079
A111: 101 | B111: CHALET | C111: 384.7 | D111: 385.60 | E111: 373.20 | F111: 361.70 | G111: 349.30 | H111: 397.10 | I111: 409.50 | J111: 421.00 | K111: 398 | L111: 374.1 | M111: 3.4931
A112: 102 | B112: CHAMBLFERT | C112: 327.65 | D112: 326.28 | E112: 322.62 | F112: 317.58 | G112: 313.92 | H112: 331.32 | I112: 334.98 | J112: 340.02 | K112: 329.95 | L112: 321.25 | M112: 15.4259
A113: 103 | B113: CHEMPLASTS | C113: 395.6 | D113: 396.90 | E113: 392.70 | F113: 389.80 | G113: 385.60 | H113: 399.80 | I113: 404.00 | J113: 406.90 | K113: 401.1 | L113: 394 | M113: 0.38645
A114: 104 | B114: CHOLAHLDNG | C114: 626.5 | D114: 624.93 | E114: 620.47 | F114: 614.43 | G114: 609.97 | H114: 630.97 | I114: 635.43 | J114: 641.47 | K114: 629.4 | L114: 618.9 | M114: 0.42278
A115: 105 | B115: CHOLAFIN | C115: 732.35 | D115: 727.10 | E115: 719.95 | F115: 707.55 | G115: 700.40 | H115: 739.50 | I115: 746.65 | J115: 759.05 | K115: 734.25 | L115: 714.7 | M115: 9.96499
A116: 106 | B116: CIPLA | C116: 1108.15 | D116: 1106.67 | E116: 1100.28 | F116: 1092.42 | G116: 1086.03 | H116: 1114.53 | I116: 1120.92 | J116: 1128.78 | K116: 1113.05 | L116: 1098.8 | M116: 10.76392
A117: 107 | B117: CUB | C117: 193.1 | D117: 190.70 | E117: 186.40 | F117: 179.70 | G117: 175.40 | H117: 197.40 | I117: 201.70 | J117: 208.40 | K117: 195 | L117: 184 | M117: 71.23465
A118: 108 | B118: CLEAN | C118: 1602.65 | D118: 1604.88 | E118: 1579.77 | F118: 1556.88 | G118: 1531.77 | H118: 1627.77 | I118: 1652.88 | J118: 1675.77 | K118: 1630 | L118: 1582 | M118: 0.82732
A119: 109 | B119: COALINDIA | C119: 238 | D119: 236.48 | E119: 234.42 | F119: 230.83 | G119: 228.77 | H119: 240.07 | I119: 242.13 | J119: 245.72 | K119: 238.55 | L119: 232.9 | M119: 56.23812
A120: 110 | B120: COCHINSHIP | C120: 525.55 | D120: 525.83 | E120: 516.97 | F120: 508.38 | G120: 499.52 | H120: 534.42 | I120: 543.28 | J120: 551.87 | K120: 534.7 | L120: 517.25 | M120: 15.55044
A121: 111 | B121: COFORGE | C121: 3763.1 | D121: 3743.72 | E121: 3703.43 | F121: 3643.77 | G121: 3603.48 | H121: 3803.38 | I121: 3843.67 | J121: 3903.33 | K121: 3784 | L121: 3684.05 | M121: 2.27894
A122: 112 | B122: COLPAL | C122: 1570.3 | D122: 1569.02 | E122: 1548.83 | F122: 1527.37 | G122: 1507.18 | H122: 1590.48 | I122: 1610.67 | J122: 1632.13 | K122: 1589.2 | L122: 1547.55 | M122: 1.28056
A123: 113 | B123: CAMS | C123: 2598.55 | D123: 2601.85 | E123: 2566.70 | F123: 2534.85 | G123: 2499.70 | H123: 2633.70 | I123: 2668.85 | J123: 2700.70 | K123: 2637 | L123: 2570 | M123: 1.48735
A124: 114 | B124: CONCOR | C124: 712.75 | D124: 704.70 | E124: 694.75 | F124: 676.75 | G124: 666.80 | H124: 722.70 | I124: 732.65 | J124: 750.65 | K124: 714.65 | L124: 686.7 | M124: 11.14583
A125: 115 | B125: COROMANDEL | C125: 967 | D125: 965.23 | E125: 959.97 | F125: 952.93 | G125: 947.67 | H125: 972.27 | I125: 977.53 | J125: 984.57 | K125: 970.5 | L125: 958.2 | M125: 4.39603
A126: 116 | B126: CREDITACC | C126: 935.4 | D126: 940.98 | E126: 900.52 | F126: 865.63 | G126: 825.17 | H126: 975.87 | I126: 1016.33 | J126: 1051.22 | K126: 981.45 | L126: 906.1 | M126: 3.13321
A127: 117 | B127: CROMPTON | C127: 382.45 | D127: 381.45 | E127: 377.90 | F127: 373.35 | G127: 369.80 | H127: 386.00 | I127: 389.55 | J127: 394.10 | K127: 385 | L127: 376.9 | M127: 9.25984
A128: 118 | B128: CUMMINSIND | C128: 1185.9 | D128: 1188.68 | E128: 1175.02 | F128: 1164.13 | G128: 1150.47 | H128: 1199.57 | I128: 1213.23 | J128: 1224.12 | K128: 1202.35 | L128: 1177.8 | M128: 2.06062
A129: 119 | B129: CYIENT | C129: 762.1 | D129: 759.87 | E129: 746.23 | F129: 730.37 | G129: 716.73 | H129: 775.73 | I129: 789.37 | J129: 805.23 | K129: 773.5 | L129: 744 | M129: 2.56417
A130: 120 | B130: DCMSHRIRAM | C130: 1080.5 | D130: 1068.48 | E130: 1049.47 | F130: 1018.43 | G130: 999.42 | H130: 1099.52 | I130: 1118.53 | J130: 1149.57 | K130: 1087.5 | L130: 1037.45 | M130: 0.85674
A131: 121 | B131: DLF | C131: 359.4 | D131: 357.57 | E131: 353.33 | F131: 347.27 | G131: 343.03 | H131: 363.63 | I131: 367.87 | J131: 373.93 | K131: 361.8 | L131: 351.5 | M131: 43.11369
A132: 122 | B132: DABUR | C132: 529.95 | D132: 530.48 | E132: 526.47 | F132: 522.98 | G132: 518.97 | H132: 533.97 | I132: 537.98 | J132: 541.47 | K132: 534.5 | L132: 527 | M132: 7.57924
A133: 123 | B133: DALBHARAT | C133: 1509.1 | D133: 1505.05 | E133: 1480.10 | F133: 1451.10 | G133: 1426.15 | H133: 1534.05 | I133: 1559.00 | J133: 1588.00 | K133: 1530 | L133: 1476.05 | M133: 1.3727
A134: 124 | B134: DEEPAKFERT | C134: 966.15 | D134: 942.85 | E134: 904.80 | F134: 843.45 | G134: 805.40 | H134: 1004.20 | I134: 1042.25 | J134: 1103.60 | K134: 980.9 | L134: 881.5 | M134: 21.0135
A135: 125 | B135: DEEPAKNTR | C135: 2255.75 | D135: 2241.77 | E135: 2219.53 | F135: 2183.32 | G135: 2161.08 | H135: 2277.98 | I135: 2300.22 | J135: 2336.43 | K135: 2264 | L135: 2205.55 | M135: 6.02882
A136: 126 | B136: DELHIVERY | C136: 548.95 | D136: 548.82 | E136: 533.23 | F136: 517.52 | G136: 501.93 | H136: 564.53 | I136: 580.12 | J136: 595.83 | K136: 564.4 | L136: 533.1 | M136: 12.16159
A137: 127 | B137: DELTACORP | C137: 215.9 | D137: 213.93 | E137: 210.52 | F137: 205.13 | G137: 201.72 | H137: 219.32 | I137: 222.73 | J137: 228.12 | K137: 217.35 | L137: 208.55 | M137: 32.56562
A138: 128 | B138: DEVYANI | C138: 189.65 | D138: 188.13 | E138: 185.87 | F138: 182.08 | G138: 179.82 | H138: 191.92 | I138: 194.18 | J138: 197.97 | K138: 190.4 | L138: 184.35 | M138: 14.61977
A139: 129 | B139: DHANI | C139: 42.8 | D139: 43.22 | E139: 42.18 | F139: 41.57 | G139: 40.53 | H139: 43.83 | I139: 44.87 | J139: 45.48 | K139: 44.25 | L139: 42.6 | M139: 5.3837
A140: 130 | B140: DBL | C140: 220.5 | D140: 221.60 | E140: 217.95 | F140: 215.40 | G140: 211.75 | H140: 224.15 | I140: 227.80 | J140: 230.35 | K140: 225.25 | L140: 219.05 | M140: 8.05083
A141: 131 | B141: DIVISLAB | C141: 3578.55 | D141: 3577.12 | E141: 3551.43 | F141: 3524.32 | G141: 3498.63 | H141: 3604.23 | I141: 3629.92 | J141: 3657.03 | K141: 3602.8 | L141: 3550 | M141: 2.11512
A142: 132 | B142: DIXON | C142: 4280.55 | D142: 4250.42 | E142: 4215.68 | F142: 4150.82 | G142: 4116.08 | H142: 4315.28 | I142: 4350.02 | J142: 4414.88 | K142: 4285.15 | L142: 4185.55 | M142: 1.12819
A143: 133 | B143: LALPATHLAB | C143: 2397.6 | D143: 2382.52 | E143: 2356.08 | F143: 2314.57 | G143: 2288.13 | H143: 2424.03 | I143: 2450.47 | J143: 2491.98 | K143: 2408.95 | L143: 2341 | M143: 1.25306
A144: 134 | B144: DRREDDY | C144: 4335.2 | D144: 4330.57 | E144: 4287.13 | F144: 4239.07 | G144: 4195.63 | H144: 4378.63 | I144: 4422.07 | J144: 4470.13 | K144: 4374 | L144: 4282.5 | M144: 2.1014
A145: 135 | B145: EIDPARRY | C145: 615.6 | D145: 615.13 | E145: 610.77 | F145: 605.93 | G145: 601.57 | H145: 619.97 | I145: 624.33 | J145: 629.17 | K145: 619.5 | L145: 610.3 | M145: 3.68786
A146: 136 | B146: EIHOTEL | C146: 184.5 | D146: 183.20 | E146: 180.95 | F146: 177.40 | G146: 175.15 | H146: 186.75 | I146: 189.00 | J146: 192.55 | K146: 185.45 | L146: 179.65 | M146: 2.20963
A147: 137 | B147: EPL | C147: 157.1 | D147: 156.67 | E147: 155.63 | F147: 154.17 | G147: 153.13 | H147: 158.13 | I147: 159.17 | J147: 160.63 | K147: 157.7 | L147: 155.2 | M147: 0.67253
A148: 138 | B148: EASEMYTRIP | C148: 398.05 | D148: 394.55 | E148: 386.50 | F148: 374.95 | G148: 366.90 | H148: 406.10 | I148: 414.15 | J148: 425.70 | K148: 402.6 | L148: 383 | M148: 13.79935
A149: 139 | B149: EDELWEISS | C149: 60.75 | D149: 61.15 | E149: 60.10 | F149: 59.45 | G149: 58.40 | H149: 61.80 | I149: 62.85 | J149: 63.50 | K149: 62.2 | L149: 60.5 | M149: 6.08276
A150: 140 | B150: EICHERMOT | C150: 3514.7 | D150: 3501.67 | E150: 3478.33 | F150: 3441.97 | G150: 3418.63 | H150: 3538.03 | I150: 3561.37 | J150: 3597.73 | K150: 3525 | L150: 3465.3 | M150: 4.92114
A151: 141 | B151: ELGIEQUIP | C151: 428.9 | D151: 432.13 | E151: 412.77 | F151: 396.63 | G151: 377.27 | H151: 448.27 | I151: 467.63 | J151: 483.77 | K151: 451.5 | L151: 416 | M151: 15.48066
A152: 142 | B152: EMAMILTD | C152: 462.55 | D152: 465.13 | E152: 458.42 | F152: 454.28 | G152: 447.57 | H152: 469.27 | I152: 475.98 | J152: 480.12 | K152: 471.85 | L152: 461 | M152: 0.82943
A153: 143 | B153: ENDURANCE | C153: 1357.95 | D153: 1349.65 | E153: 1333.30 | F153: 1308.65 | G153: 1292.30 | H153: 1374.30 | I153: 1390.65 | J153: 1415.30 | K153: 1366 | L153: 1325 | M153: 0.33047
A154: 144 | B154: ENGINERSIN | C154: 62.9 | D154: 63.00 | E154: 62.65 | F154: 62.40 | G154: 62.05 | H154: 63.25 | I154: 63.60 | J154: 63.85 | K154: 63.35 | L154: 62.75 | M154: 2.57606
A155: 145 | B155: EQUITASBNK | C155: 47.8 | D155: 47.82 | E155: 47.18 | F155: 46.57 | G155: 45.93 | H155: 48.43 | I155: 49.07 | J155: 49.68 | K155: 48.45 | L155: 47.2 | M155: 4.58064
A156: 146 | B156: ESCORTS | C156: 1968.6 | D156: 1964.75 | E156: 1949.60 | F156: 1930.60 | G156: 1915.45 | H156: 1983.75 | I156: 1998.90 | J156: 2017.90 | K156: 1979.9 | L156: 1945.75 | M156: 2.55346
A157: 147 | B157: EXIDEIND | C157: 154.7 | D157: 154.48 | E157: 153.32 | F157: 151.93 | G157: 150.77 | H157: 155.87 | I157: 157.03 | J157: 158.42 | K157: 155.65 | L157: 153.1 | M157: 10.60022
A158: 148 | B158: FDC | C158: 299.85 | D158: 294.60 | E158: 284.30 | F158: 268.75 | G158: 258.45 | H158: 310.15 | I158: 320.45 | J158: 336.00 | K158: 304.9 | L158: 279.05 | M158: 14.12845
A159: 149 | B159: NYKAA | C159: 1160.5 | D159: 1173.07 | E159: 1138.43 | F159: 1116.37 | G159: 1081.73 | H159: 1195.13 | I159: 1229.77 | J159: 1251.83 | K159: 1207.7 | L159: 1151 | M159: 7.23829
A160: 150 | B160: FEDERALBNK | C160: 131.5 | D160: 131.10 | E160: 129.50 | F160: 127.50 | G160: 125.90 | H160: 133.10 | I160: 134.70 | J160: 136.70 | K160: 132.7 | L160: 129.1 | M160: 348.12065
A161: 151 | B161: FACT | C161: 114.55 | D161: 114.83 | E161: 113.47 | F161: 112.38 | G161: 111.02 | H161: 115.92 | I161: 117.28 | J161: 118.37 | K161: 116.2 | L161: 113.75 | M161: 0.66943
A162: 152 | B162: FINEORG | C162: 7046.3 | D162: 7099.50 | E162: 6877.85 | F162: 6709.40 | G162: 6487.75 | H162: 7267.95 | I162: 7489.60 | J162: 7658.05 | K162: 7321.15 | L162: 6931.05 | M162: 0.77005
A163: 153 | B163: FINCABLES | C163: 464.6 | D163: 462.88 | E163: 457.77 | F163: 450.93 | G163: 445.82 | H163: 469.72 | I163: 474.83 | J163: 481.67 | K163: 468 | L163: 456.05 | M163: 0.63223
A164: 154 | B164: FINPIPE | C164: 137.35 | D164: 137.55 | E164: 135.85 | F164: 134.35 | G164: 132.65 | H164: 139.05 | I164: 140.75 | J164: 142.25 | K164: 139.25 | L164: 136.05 | M164: 3.32388
A165: 155 | B165: FSL | C165: 104.85 | D165: 104.27 | E165: 102.98 | F165: 101.12 | G165: 99.83 | H165: 106.13 | I165: 107.42 | J165: 109.28 | K165: 105.55 | L165: 102.4 | M165: 14.67951
A166: 156 | B166: FORTIS | C166: 272.1 | D166: 272.72 | E166: 269.88 | F166: 267.67 | G166: 264.83 | H166: 274.93 | I166: 277.77 | J166: 279.98 | K166: 275.55 | L166: 270.5 | M166: 2.7917
A167: 157 | B167: GRINFRA | C167: 1222.6 | D167: 1216.53 | E167: 1201.07 | F167: 1179.53 | G167: 1164.07 | H167: 1238.07 | I167: 1253.53 | J167: 1275.07 | K167: 1232 | L167: 1195 | M167: 0.11801
A168: 158 | B168: GAIL | C168: 85.05 | D168: 85.02 | E168: 84.38 | F168: 83.72 | G168: 83.08 | H168: 85.68 | I168: 86.32 | J168: 86.98 | K168: 85.65 | L168: 84.35 | M168: 93.73705
A169: 159 | B169: GMMPFAUDLR | C169: 1839.95 | D169: 1838.12 | E169: 1818.38 | F169: 1796.82 | G169: 1777.08 | H169: 1859.68 | I169: 1879.42 | J169: 1900.98 | K169: 1857.85 | L169: 1816.55 | M169: 0.48673
A170: 160 | B170: GMRINFRA | C170: 34.85 | D170: 34.68 | E170: 34.27 | F170: 33.68 | G170: 33.27 | H170: 35.27 | I170: 35.68 | J170: 36.27 | K170: 35.1 | L170: 34.1 | M170: 43.46349
A171: 161 | B171: GALAXYSURF | C171: 2851.15 | D171: 2855.38 | E171: 2837.82 | F171: 2824.48 | G171: 2806.92 | H171: 2868.72 | I171: 2886.28 | J171: 2899.62 | K171: 2872.95 | L171: 2842.05 | M171: 0.21877
A172: 162 | B172: GARFIBRES | C172: 3483.5 | D172: 3495.73 | E172: 3441.47 | F172: 3399.43 | G172: 3345.17 | H172: 3537.77 | I172: 3592.03 | J172: 3634.07 | K172: 3550 | L172: 3453.7 | M172: 0.23754
A173: 163 | B173: GICRE | C173: 122.75 | D173: 122.97 | E173: 121.93 | F173: 121.12 | G173: 120.08 | H173: 123.78 | I173: 124.82 | J173: 125.63 | K173: 124 | L173: 122.15 | M173: 0.87733
A174: 164 | B174: GLAND | C174: 2157 | D174: 2154.02 | E174: 2133.03 | F174: 2109.07 | G174: 2088.08 | H174: 2177.98 | I174: 2198.97 | J174: 2222.93 | K174: 2175 | L174: 2130.05 | M174: 5.33622
A175: 165 | B175: GLAXO | C175: 1374.85 | D175: 1376.98 | E175: 1366.02 | F175: 1357.18 | G175: 1346.22 | H175: 1385.82 | I175: 1396.78 | J175: 1405.62 | K175: 1387.95 | L175: 1368.15 | M175: 0.42239
A176: 166 | B176: GLENMARK | C176: 394.35 | D176: 391.95 | E176: 388.45 | F176: 382.55 | G176: 379.05 | H176: 397.85 | I176: 401.35 | J176: 407.25 | K176: 395.45 | L176: 386.05 | M176: 4.90228
A177: 167 | B177: GOCOLORS | C177: 1369.55 | D177: 1361.70 | E177: 1329.80 | F177: 1290.05 | G177: 1258.15 | H177: 1401.45 | I177: 1433.35 | J177: 1473.10 | K177: 1393.6 | L177: 1321.95 | M177: 0.87602
A178: 168 | B178: GODFRYPHLP | C178: 1410.5 | D178: 1382.50 | E178: 1338.00 | F178: 1265.50 | G178: 1221.00 | H178: 1455.00 | I178: 1499.50 | J178: 1572.00 | K178: 1427 | L178: 1310 | M178: 6.52157
A179: 169 | B179: GODREJAGRO | C179: 509 | D179: 508.68 | E179: 502.47 | F179: 495.93 | G179: 489.72 | H179: 515.22 | I179: 521.43 | J179: 527.97 | K179: 514.9 | L179: 502.15 | M179: 0.62309
A180: 170 | B180: GODREJCP | C180: 833.6 | D180: 831.97 | E180: 825.93 | F180: 818.27 | G180: 812.23 | H180: 839.63 | I180: 845.67 | J180: 853.33 | K180: 838 | L180: 824.3 | M180: 4.65893
A181: 171 | B181: GODREJIND | C181: 425.2 | D181: 425.30 | E181: 420.90 | F181: 416.60 | G181: 412.20 | H181: 429.60 | I181: 434.00 | J181: 438.30 | K181: 429.7 | L181: 421 | M181: 0.54416
A182: 172 | B182: GODREJPROP | C182: 1186.95 | D182: 1176.45 | E182: 1162.00 | F182: 1137.05 | G182: 1122.60 | H182: 1201.40 | I182: 1215.85 | J182: 1240.80 | K182: 1190.9 | L182: 1151.5 | M182: 4.79423
A183: 173 | B183: GRANULES | C183: 350.1 | D183: 346.90 | E183: 342.30 | F183: 334.50 | G183: 329.90 | H183: 354.70 | I183: 359.30 | J183: 367.10 | K183: 351.5 | L183: 339.1 | M183: 13.47644
A184: 174 | B184: GRAPHITE | C184: 355.55 | D184: 356.88 | E184: 353.67 | F184: 351.78 | G184: 348.57 | H184: 358.77 | I184: 361.98 | J184: 363.87 | K184: 360.1 | L184: 355 | M184: 1.80047
A185: 175 | B185: GRASIM | C185: 1691.15 | D185: 1691.80 | E185: 1674.60 | F185: 1658.05 | G185: 1640.85 | H185: 1708.35 | I185: 1725.55 | J185: 1742.10 | K185: 1709 | L185: 1675.25 | M185: 7.08434
A186: 176 | B186: GESHIP | C186: 521.3 | D186: 517.80 | E186: 509.60 | F186: 497.90 | G186: 489.70 | H186: 529.50 | I186: 537.70 | J186: 549.40 | K186: 526 | L186: 506.1 | M186: 1.5128
A187: 177 | B187: GREENPANEL | C187: 373.4 | D187: 375.80 | E187: 369.60 | F187: 365.80 | G187: 359.60 | H187: 379.60 | I187: 385.80 | J187: 389.60 | K187: 382 | L187: 372 | M187: 2.28715
A188: 178 | B188: GRINDWELL | C188: 2028.35 | D188: 2031.77 | E188: 2008.53 | F188: 1988.72 | G188: 1965.48 | H188: 2051.58 | I188: 2074.82 | J188: 2094.63 | K188: 2055 | L188: 2011.95 | M188: 6.65875
A189: 179 | B189: GUJALKALI | C189: 874.35 | D189: 871.27 | E189: 862.58 | F189: 850.82 | G189: 842.13 | H189: 883.03 | I189: 891.72 | J189: 903.48 | K189: 879.95 | L189: 859.5 | M189: 2.46355
A190: 180 | B190: GAEL | C190: 256.35 | D190: 258.92 | E190: 252.48 | F190: 248.62 | G190: 242.18 | H190: 262.78 | I190: 269.22 | J190: 273.08 | K190: 265.35 | L190: 255.05 | M190: 2.88668
A191: 181 | B191: FLUOROCHEM | C191: 3950.3 | D191: 3940.37 | E191: 3912.48 | F191: 3874.67 | G191: 3846.78 | H191: 3978.18 | I191: 4006.07 | J191: 4043.88 | K191: 3968.25 | L191: 3902.55 | M191: 0.83771
A192: 182 | B192: GUJGASLTD | C192: 469.45 | D192: 469.45 | E192: 463.90 | F192: 458.35 | G192: 452.80 | H192: 475.00 | I192: 480.55 | J192: 486.10 | K192: 475 | L192: 463.9 | M192: 5.7332
A193: 183 | B193: GNFC | C193: 710.5 | D193: 707.88 | E193: 698.77 | F193: 687.03 | G193: 677.92 | H193: 719.62 | I193: 728.73 | J193: 740.47 | K193: 717 | L193: 696.15 | M193: 45.13226
A194: 184 | B194: GPPL | C194: 85.2 | D194: 85.33 | E194: 84.67 | F194: 84.13 | G194: 83.47 | H194: 85.87 | I194: 86.53 | J194: 87.07 | K194: 86 | L194: 84.8 | M194: 3.06702
A195: 185 | B195: GSFC | C195: 130.55 | D195: 130.35 | E195: 129.30 | F195: 128.05 | G195: 127.00 | H195: 131.60 | I195: 132.65 | J195: 133.90 | K195: 131.4 | L195: 129.1 | M195: 11.17077
A196: 186 | B196: GSPL | C196: 220.35 | D196: 220.68 | E196: 218.37 | F196: 216.38 | G196: 214.07 | H196: 222.67 | I196: 224.98 | J196: 226.97 | K196: 223 | L196: 218.7 | M196: 5.52652
A197: 187 | B197: HEG | C197: 1085.25 | D197: 1086.70 | E197: 1073.55 | F197: 1061.85 | G197: 1048.70 | H197: 1098.40 | I197: 1111.55 | J197: 1123.25 | K197: 1099.85 | L197: 1075 | M197: 0.80554
A198: 188 | B198: HCLTECH | C198: 994.6 | D198: 997.50 | E198: 988.20 | F198: 981.80 | G198: 972.50 | H198: 1003.90 | I198: 1013.20 | J198: 1019.60 | K198: 1006.8 | L198: 991.1 | M198: 21.3617
A199: 189 | B199: HDFCAMC | C199: 1914.35 | D199: 1909.05 | E199: 1895.50 | F199: 1876.65 | G199: 1863.10 | H199: 1927.90 | I199: 1941.45 | J199: 1960.30 | K199: 1922.6 | L199: 1890.2 | M199: 1.28076
A200: 190 | B200: HDFCBANK | C200: 1446.55 | D200: 1443.72 | E200: 1429.83 | F200: 1413.12 | G200: 1399.23 | H200: 1460.43 | I200: 1474.32 | J200: 1491.03 | K200: 1457.6 | L200: 1427 | M200: 92.0525
A201: 191 | B201: HDFCLIFE | C201: 523.75 | D201: 522.75 | E201: 519.60 | F201: 515.45 | G201: 512.30 | H201: 526.90 | I201: 530.05 | J201: 534.20 | K201: 525.9 | L201: 518.6 | M201: 14.86039
A202: 192 | B202: HFCL | C202: 75 | D202: 75.13 | E202: 74.07 | F202: 73.13 | G202: 72.07 | H202: 76.07 | I202: 77.13 | J202: 78.07 | K202: 76.2 | L202: 74.2 | M202: 46.58638
A203: 193 | B203: HLEGLAS | C203: 3717.95 | D203: 3689.33 | E203: 3608.67 | F203: 3499.38 | G203: 3418.72 | H203: 3798.62 | I203: 3879.28 | J203: 3988.57 | K203: 3770 | L203: 3580.05 | M203: 0.58562
A204: 194 | B204: HAPPSTMNDS | C204: 991.45 | D204: 991.17 | E204: 983.63 | F204: 975.82 | G204: 968.28 | H204: 998.98 | I204: 1006.52 | J204: 1014.33 | K204: 998.7 | L204: 983.35 | M204: 1.46505
A205: 195 | B205: HATSUN | C205: 1017.6 | D205: 1008.48 | E205: 985.02 | F205: 952.43 | G205: 928.97 | H205: 1041.07 | I205: 1064.53 | J205: 1097.12 | K205: 1031.95 | L205: 975.9 | M205: 0.73307
A206: 196 | B206: HAVELLS | C206: 1232 | D206: 1240.72 | E206: 1214.43 | F206: 1196.87 | G206: 1170.58 | H206: 1258.28 | I206: 1284.57 | J206: 1302.13 | K206: 1267 | L206: 1223.15 | M206: 8.68754
... 320 more rows

Sheet Bulk Deals
E6: Back To Main Page
A7: Subject : | B7: BULK DEAL | D7: =Main!B10 -> 2022-10-18
A9: Date | B9: Scrip code | C9: Scrip Name | D9: Client Name | E9: Buy / Sell | F9: Quantity Traded | G9: Trade Price / Wt.Avg.trade price | H9: Exchange
A10: 2022-10-17 | B10: 539115 | C10: ALAN SCOTT | D10: NEXT ORBIT VENTURES FUND | E10: SELL | F10: 10,000 | G10: 33.62 | H10: BSE
A11: 2022-10-17 | B11: 543621 | C11: CARGOSOL | D11: VINEY EQUITY MARKET LLP | E11: SELL | F11: 72,000 | G11: 52.92 | H11: BSE
A12: 2022-10-17 | B12: 543621 | C12: CARGOSOL | D12: SANJAY POPATLAL JAIN | E12: BUY | F12: 72,000 | G12: 52.56 | H12: BSE
A13: 2022-10-17 | B13: 540403 | C13: CLEDUCATE | D13: MATHEW CYRIAC | E13: SELL | F13: 140,000 | G13: 142.7 | H13: BSE
A14: 2022-10-17 | B14: 540403 | C14: CLEDUCATE | D14: ELIZABETH MATHEW | E14: BUY | F14: 140,000 | G14: 142.7 | H14: BSE
A15: 2022-10-17 | B15: 540023 | C15: COLORCHIPS | D15: PREETI JAIN | E15: BUY | F15: 625,000 | G15: 20.16 | H15: BSE
A16: 2022-10-17 | B16: 540023 | C16: COLORCHIPS | D16: PREETI JAIN | E16: SELL | F16: 14,785 | G16: 18.45 | H16: BSE
A17: 2022-10-17 | B17: 543606 | C17: CONTAINE | D17: SRALA AJIT GOLECHHA | E17: BUY | F17: 48,000 | G17: 24.46 | H17: BSE
A18: 2022-10-17 | B18: 522001 | C18: CRANEX | D18: GOVINDBHAI LALJIBHAI KAKADIA | E18: SELL | F18: 25,141 | G18: 31.92 | H18: BSE
A19: 2022-10-17 | B19: 537707 | C19: ETT | D19: DAIVIK JATIN SHAH | E19: BUY | F19: 100,000 | G19: 30.9 | H19: BSE
A20: 2022-10-17 | B20: 537707 | C20: ETT | D20: MULTIPLIER SHARE & STOCK ADVISORS PRIVATE LIMITED | E20: BUY | F20: 100,000 | G20: 30.9 | H20: BSE
A21: 2022-10-17 | B21: 537707 | C21: ETT | D21: MULTIPLIER SHARE & STOCK ADVISORS PRIVATE LIMITED | E21: SELL | F21: 22,404 | G21: 30.92 | H21: BSE
A22: 2022-10-17 | B22: 537707 | C22: ETT | D22: ANSHU MISHRA | E22: SELL | F22: 219,413 | G22: 30.9 | H22: BSE
A23: 2022-10-17 | B23: 542802 | C23: GALACTICO | D23: JIGNESH AMRUTLAL THOBHANI | E23: SELL | F23: 108,948 | G23: 26.26 | H23: BSE
A24: 2022-10-17 | B24: 542802 | C24: GALACTICO | D24: VARSHABEN JIGNESHKUMAR THOBHANI | E24: SELL | F24: 490,000 | G24: 27.3 | H24: BSE
A25: 2022-10-17 | B25: 542802 | C25: GALACTICO | D25: JIGNESH AMRUTLAL THOBHANI | E25: BUY | F25: 800,000 | G25: 27.89 | H25: BSE
A26: 2022-10-17 | B26: 542802 | C26: GALACTICO | D26: VARSHABEN JIGNESHKUMAR THOBHANI | E26: BUY | F26: 960,000 | G26: 26.92 | H26: BSE
A27: 2022-10-17 | B27: 542802 | C27: GALACTICO | D27: CHETAN RASIKLAL SHAH | E27: BUY | F27: 929,905 | G27: 27.19 | H27: BSE
A28: 2022-10-17 | B28: 542802 | C28: GALACTICO | D28: CHETAN RASIKLAL SHAH | E28: SELL | F28: 929,905 | G28: 27.89 | H28: BSE
A29: 2022-10-17 | B29: 540614 | C29: GGENG | D29: RAJAN GUPTA | E29: SELL | F29: 200,000 | G29: 1.95 | H29: BSE
A30: 2022-10-17 | B30: 540614 | C30: GGENG | D30: RAJAN GUPTA | E30: BUY | F30: 2,000,000 | G30: 2.14 | H30: BSE
A31: 2022-10-17 | B31: 543538 | C31: GOEL | D31: AKRITI AGARWAL | E31: BUY | F31: 19,200 | G31: 178 | H31: BSE
A32: 2022-10-17 | B32: 543538 | C32: GOEL | D32: DINESH KUMAR AGARWAL | E32: SELL | F32: 19,200 | G32: 178 | H32: BSE
A33: 2022-10-17 | B33: 531737 | C33: GREENCREST | D33: RAVI GOYAL (HUF) | E33: BUY | F33: 250,000 | G33: 1.85 | H33: BSE
A34: 2022-10-17 | B34: 539224 | C34: HCKKVENTURE | D34: BHUPENDRA D PATEL HUF | E34: BUY | F34: 50,000 | G34: 43.79 | H34: BSE
A35: 2022-10-17 | B35: 539224 | C35: HCKKVENTURE | D35: MANJULA VINOD KOTHARI | E35: SELL | F35: 20,000 | G35: 43.9 | H35: BSE
A36: 2022-10-17 | B36: 539224 | C36: HCKKVENTURE | D36: NEERAJAGGARWAL | E36: BUY | F36: 24,992 | G36: 40.04 | H36: BSE
A37: 2022-10-17 | B37: 542924 | C37: JANUSCORP | D37: LEMON MANAGEMENT CONSULTANCY PRIVATE LIMITED | E37: SELL | F37: 105,000 | G37: 8.86 | H37: BSE
A38: 2022-10-17 | B38: 543286 | C38: JETMALL | D38: NIRMALSH | E38: BUY | F38: 90,000 | G38: 18.9 | H38: BSE
A39: 2022-10-17 | B39: 543286 | C39: JETMALL | D39: RAM KUMAR SHEOKAND | E39: BUY | F39: 192,000 | G39: 17.38 | H39: BSE
A40: 2022-10-17 | B40: 543286 | C40: JETMALL | D40: TARUNA PANKAJ TATED | E40: SELL | F40: 42,000 | G40: 19 | H40: BSE
A41: 2022-10-17 | B41: 543286 | C41: JETMALL | D41: PADMAWATI REALCON PRIVATE LIMITED | E41: BUY | F41: 18,000 | G41: 19.07 | H41: BSE
A42: 2022-10-17 | B42: 543286 | C42: JETMALL | D42: PADMAWATI REALCON PRIVATE LIMITED | E42: SELL | F42: 222,000 | G42: 17.32 | H42: BSE
A43: 2022-10-17 | B43: 543289 | C43: KGES | D43: RIKHAV SECURITIES LIMITED | E43: SELL | F43: 6,000 | G43: 19.4 | H43: BSE
A44: 2022-10-17 | B44: 543289 | C44: KGES | D44: RIKHAV SECURITIES LIMITED | E44: BUY | F44: 12,000 | G44: 19.4 | H44: BSE
A45: 2022-10-17 | B45: 539910 | C45: KOCL | D45: SEEMA YADAV | E45: SELL | F45: 100,000 | G45: 2.47 | H45: BSE
A46: 2022-10-17 | B46: 539814 | C46: LELAVOIR | D46: SANJAY BAGARIA (HUF) | E46: SELL | F46: 23,000 | G46: 29.84 | H46: BSE
A47: 2022-10-17 | B47: 539814 | C47: LELAVOIR | D47: IMAGE FINVEST & LEASING PRIVATE LIMITED | E47: BUY | F47: 23,000 | G47: 29.84 | H47: BSE
A48: 2022-10-17 | B48: 511000 | C48: MADHUSE | D48: PURUSHOTTAM MATRUMAL CHAMEDIA | E48: SELL | F48: 100,000 | G48: 17.46 | H48: BSE
A49: 2022-10-17 | B49: 543613 | C49: MAFIA | D49: MULTIPLIER SHARE & STOCK ADVISORS PRIVATE LIMITED | E49: SELL | F49: 24,000 | G49: 32.15 | H49: BSE
A50: 2022-10-17 | B50: 543613 | C50: MAFIA | D50: PRABHAT VISHNUSOMANI SOMANI | E50: BUY | F50: 28,000 | G50: 32.14 | H50: BSE
A51: 2022-10-17 | B51: 543207 | C51: NATURAL | D51: SANJEEV MAHESWARIPRASAD PATEL | E51: BUY | F51: 100,000 | G51: 7 | H51: BSE
A52: 2022-10-17 | B52: 543207 | C52: NATURAL | D52: VIJAYKUMAR JAYANTILAL THAKKAR | E52: SELL | F52: 90,558 | G52: 7 | H52: BSE
A53: 2022-10-17 | B53: 542628 | C53: NSL | D53: SABAH SAHNI | E53: BUY | F53: 390,000 | G53: 204.35 | H53: BSE
A54: 2022-10-17 | B54: 542628 | C54: NSL | D54: SUMEET SINGH SAHNI | E54: BUY | F54: 567,000 | G54: 204.35 | H54: BSE
A55: 2022-10-17 | B55: 542628 | C55: NSL | D55: VIPUL MOHAN PATEL | E55: SELL | F55: 150,000 | G55: 204.35 | H55: BSE
A56: 2022-10-17 | B56: 542628 | C56: NSL | D56: HITESH MOHANBHAI PATEL | E56: SELL | F56: 390,000 | G56: 204.35 | H56: BSE
A57: 2022-10-17 | B57: 542628 | C57: NSL | D57: HITESH MOHANLAL PATEL | E57: SELL | F57: 174,000 | G57: 204.35 | H57: BSE
A58: 2022-10-17 | B58: 540727 | C58: POOJA | D58: NAIYN TARA KEWLANI | E58: BUY | F58: 100,000 | G58: 62.3 | H58: BSE
A59: 2022-10-17 | B59: 540727 | C59: POOJA | D59: EPITOME TRADING AND INVESTMENTS | E59: SELL | F59: 100,000 | G59: 62.3 | H59: BSE
A60: 2022-10-17 | B60: 512624 | C60: REGENTRP | D60: RAJENDRA KUMAR AGARWAL | E60: SELL | F60: 461,558 | G60: 2.49 | H60: BSE
A61: 2022-10-17 | B61: 512624 | C61: REGENTRP | D61: BHARATHDHANEKULA | E61: BUY | F61: 400,999 | G61: 2.49 | H61: BSE
A62: 2022-10-17 | B62: 543065 | C62: SMAUTO | D62: SUNITA VIJAY KULKARNI | E62: SELL | F62: 112,000 | G62: 47.45 | H62: BSE
A63: 2022-10-17 | B63: 538923 | C63: SOFCOM | D63: NARENDRAKUMAR MAGANLAL PATEL | E63: BUY | F63: 50,000 | G63: 49 | H63: BSE
A64: 2022-10-17 | B64: 538923 | C64: SOFCOM | D64: PRITESH CHANDRAKANT PARAKH | E64: BUY | F64: 40,400 | G64: 49.5 | H64: BSE
A65: 2022-10-17 | B65: 539278 | C65: SYMBIOX | D65: SKSE SECURITIES LIMITED CORP CM/TM PROP A/C | E65: SELL | F65: 178,323 | G65: 8.3 | H65: BSE
A66: 2022-10-17 | B66: 539278 | C66: SYMBIOX | D66: SHANTABEN DAYASAKAR DAVE | E66: BUY | F66: 421,377 | G66: 8.29 | H66: BSE
A67: 2022-10-17 | B67: 539278 | C67: SYMBIOX | D67: SHANTABEN DAYASAKAR DAVE | E67: SELL | F67: 461,432 | G67: 8.3 | H67: BSE
A68: 2022-10-17 | B68: ALKALI | C68: Alkali Metals Limited | D68: SWATI GUPTA | E68: BUY | F68: 57,800 | G68: 122.24 | H68: NSE
A69: 2022-10-17 | B69: BCP | C69: B.C. Power Controls Ltd | D69: AMIT KUMAR JAIN HUF | E69: BUY | F69: 302,000 | G69: 5.57 | H69: NSE
A70: 2022-10-17 | B70: BLS | C70: BLS Intl Servs Ltd | D70: SW CAPITAL PRIVATE LIMITED | E70: BUY | F70: 1,033,669 | G70: 315.01 | H70: NSE
A71: 2022-10-17 | B71: CLEDUCATE | C71: CL Educate Limited | D71: MATHEW ELIZABETH | E71: BUY | F71: 140,000 | G71: 141.4 | H71: NSE
A72: 2022-10-17 | B72: EMIL | C72: Electronics Mart Ind Ltd | D72: TWO ROADS TRADING PRIVATE LIMITED | E72: BUY | F72: 3,283,319 | G72: 86.59 | H72: NSE
A73: 2022-10-17 | B73: EMIL | C73: Electronics Mart Ind Ltd | D73: NIPPON INDIA MUTUAL FUND | E73: BUY | F73: 2,400,000 | G73: 89.42 | H73: NSE
A74: 2022-10-17 | B74: EMIL | C74: Electronics Mart Ind Ltd | D74: NK SECURITIES RESEARCH PRIVATE LIMITED | E74: BUY | F74: 2,693,328 | G74: 87.1 | H74: NSE
A75: 2022-10-17 | B75: EMIL | C75: Electronics Mart Ind Ltd | D75: BNP PARIBAS ARBITRAGE | E75: BUY | F75: 3,331,326 | G75: 88.58 | H75: NSE
A76: 2022-10-17 | B76: ESSENTIA | C76: Integra Essentia Limited | D76: G G ENGINEERING LIMITED | E76: BUY | F76: 4,040,638 | G76: 6.11 | H76: NSE
A77: 2022-10-17 | B77: HINDCON | C77: Hindcon Chemicals Limited | D77: MULTIPLIER SHARE & STOCK ADVISORS PRIVATE LIMITED | E77: BUY | F77: 175,795 | G77: 124.4 | H77: NSE
A78: 2022-10-17 | B78: JTLINFRA | C78: JTL Infra Ltd | D78: CHETAN RASIKLAL SHAH | E78: BUY | F78: 339,407 | G78: 250.67 | H78: NSE
A79: 2022-10-17 | B79: KANDARP | C79: Kandarp Dg Smart Bpo Ltd | D79: SUNFLOWER BROKING PRIVATE LIMITED | E79: BUY | F79: 4,000 | G79: 16.1 | H79: NSE
A80: 2022-10-17 | B80: KSHITIJPOL | C80: Kshitij Polyline Limited | D80: ZENAB AIYUB YACOOBALI | E80: BUY | F80: 51,920 | G80: 197.52 | H80: NSE
A81: 2022-10-17 | B81: MAKS | C81: Maks Energy Sol India Ltd | D81: ARHAM SHARE PRIVATE LIMITED | E81: BUY | F81: 42,000 | G81: 31.55 | H81: NSE
A82: 2022-10-17 | B82: MAKS | C82: Maks Energy Sol India Ltd | D82: NNM SECURITIES PVT LTD | E82: BUY | F82: 18,000 | G82: 29.1 | H82: NSE
A83: 2022-10-17 | B83: MAKS | C83: Maks Energy Sol India Ltd | D83: JAIN SANJAY POPATLAL | E83: BUY | F83: 60,000 | G83: 30.96 | H83: NSE
A84: 2022-10-17 | B84: PARTYCRUS | C84: Party Cruisers Limited | D84: SAHNI SABAH | E84: BUY | F84: 156,000 | G84: 317 | H84: NSE
A85: 2022-10-17 | B85: SECL | C85: Salasar Exterior Cont Ltd | D85: SAHNI SABAH | E85: BUY | F85: 200,000 | G85: 420 | H85: NSE
A86: 2022-10-17 | B86: SECL | C86: Salasar Exterior Cont Ltd | D86: SAHNI SUMEET SINGH | E86: BUY | F86: 200,000 | G86: 419.96 | H86: NSE
A87: 2022-10-17 | B87: SECL | C87: Salasar Exterior Cont Ltd | D87: DIPAKMATHURBHAISALVI | E87: BUY | F87: 1,250 | G87: 427 | H87: NSE
A88: 2022-10-17 | B88: SHEMAROO | C88: Shemaroo Enter. Ltd. | D88: GRAVITON RESEARCH CAPITAL LLP | E88: BUY | F88: 191,984 | G88: 195.04 | H88: NSE
A89: 2022-10-17 | B89: SPRL | C89: SP Refractories Limited | D89: VENKATESHWARA INDUSTRIAL PROMOTION CO.LIMITED | E89: BUY | F89: 35,200 | G89: 88.34 | H89: NSE
A90: 2022-10-17 | B90: TRF | C90: TRF Limited | D90: CHETAN RASIKLAL SHAH | E90: BUY | F90: 103,843 | G90: 165.9 | H90: NSE
A91: 2022-10-17 | B91: TRF | C91: TRF Limited | D91: MANSI SHARES & STOCK ADVISORS PVT LTD | E91: BUY | F91: 114,590 | G91: 165.51 | H91: NSE
A92: 2022-10-17 | B92: TVSELECT | C92: TVS Electronics Limited | D92: GRAVITON RESEARCH CAPITAL LLP | E92: BUY | F92: 112,798 | G92: 303.26 | H92: NSE
A93: 2022-10-17 | B93: ALKALI | C93: Alkali Metals Limited | D93: SWATI GUPTA | E93: SELL | F93: 57,800 | G93: 125.31 | H93: NSE
A94: 2022-10-17 | B94: BCP | C94: B.C. Power Controls Ltd | D94: AMIT KUMAR JAIN HUF | E94: SELL | F94: 252,000 | G94: 5.57 | H94: NSE
A95: 2022-10-17 | B95: BLS | C95: BLS Intl Servs Ltd | D95: SW CAPITAL PRIVATE LIMITED | E95: SELL | F95: 1,034,669 | G95: 315.67 | H95: NSE
A96: 2022-10-17 | B96: CLEDUCATE | C96: CL Educate Limited | D96: MATHEW CYRIAC | E96: SELL | F96: 140,000 | G96: 141.4 | H96: NSE
A97: 2022-10-17 | B97: DIL | C97: Debock Industries Limited | D97: GAURAV JAIN | E97: SELL | F97: 435,833 | G97: 21.5 | H97: NSE
A98: 2022-10-17 | B98: EMIL | C98: Electronics Mart Ind Ltd | D98: NK SECURITIES RESEARCH PRIVATE LIMITED | E98: SELL | F98: 2,693,328 | G98: 87.18 | H98: NSE
A99: 2022-10-17 | B99: EMIL | C99: Electronics Mart Ind Ltd | D99: BNP PARIBAS ARBITRAGE | E99: SELL | F99: 9,340 | G99: 85.94 | H99: NSE
A100: 2022-10-17 | B100: EMIL | C100: Electronics Mart Ind Ltd | D100: TWO ROADS TRADING PRIVATE LIMITED | E100: SELL | F100: 3,283,319 | G100: 86.66 | H100: NSE
A101: 2022-10-17 | B101: EXCEL | C101: Excel Realty N Infra Ltd | D101: DHARMESH MALDEVBHAI GODHANIA | E101: SELL | F101: 8,133,506 | G101: 0.55 | H101: NSE
A102: 2022-10-17 | B102: FOCUS | C102: Focus Lightg | D102: KANISHKA JAIN | E102: SELL | F102: 93,900 | G102: 189.35 | H102: NSE
A103: 2022-10-17 | B103: HINDCON | C103: Hindcon Chemicals Limited | D103: MULTIPLIER SHARE & STOCK ADVISORS PRIVATE LIMITED | E103: SELL | F103: 42,872 | G103: 124.72 | H103: NSE
A104: 2022-10-17 | B104: JTLINFRA | C104: JTL Infra Ltd | D104: CHETAN RASIKLAL SHAH | E104: SELL | F104: 337,907 | G104: 249.86 | H104: NSE
A105: 2022-10-17 | B105: JTLINFRA | C105: JTL Infra Ltd | D105: RENU SWAMI | E105: SELL | F105: 610,000 | G105: 253.21 | H105: NSE
A106: 2022-10-17 | B106: JTLINFRA | C106: JTL Infra Ltd | D106: MITHAN LAL SINGLA | E106: SELL | F106: 1,981,000 | G106: 248.1 | H106: NSE
A107: 2022-10-17 | B107: KANDARP | C107: Kandarp Dg Smart Bpo Ltd | D107: SUNFLOWER BROKING PRIVATE LIMITED | E107: SELL | F107: 92,000 | G107: 16.61 | H107: NSE
A108: 2022-10-17 | B108: KSHITIJPOL | C108: Kshitij Polyline Limited | D108: ZENAB AIYUB YACOOBALI | E108: SELL | F108: 63,320 | G108: 197.6 | H108: NSE
A109: 2022-10-17 | B109: MAKS | C109: Maks Energy Sol India Ltd | D109: NNM SECURITIES PVT LTD | E109: SELL | F109: 48,000 | G109: 29.77 | H109: NSE
A110: 2022-10-17 | B110: MAKS | C110: Maks Energy Sol India Ltd | D110: ARHAM SHARE PRIVATE LIMITED | E110: SELL | F110: 30,000 | G110: 31.42 | H110: NSE
A111: 2022-10-17 | B111: MEDICO | C111: Medico Remedies Limited | D111: EMRALD COMMERCIAL LIMITED | E111: SELL | F111: 130,000 | G111: 139.13 | H111: NSE
A112: 2022-10-17 | B112: PARTYCRUS | C112: Party Cruisers Limited | D112: DIPAKMATHURBHAISALVI | E112: SELL | F112: 40,000 | G112: 317 | H112: NSE
A113: 2022-10-17 | B113: PARTYCRUS | C113: Party Cruisers Limited | D113: DEEPTHI BALAGIRI | E113: SELL | F113: 72,000 | G113: 317 | H113: NSE
A114: 2022-10-17 | B114: PARTYCRUS | C114: Party Cruisers Limited | D114: MEGHKUMAR MAHENDRAKUMAR SHAH | E114: SELL | F114: 34,000 | G114: 317 | H114: NSE
A115: 2022-10-17 | B115: SECL | C115: Salasar Exterior Cont Ltd | D115: DHIMAN BHAVYA | E115: SELL | F115: 100,000 | G115: 420 | H115: NSE
A116: 2022-10-17 | B116: SECL | C116: Salasar Exterior Cont Ltd | D116: DIPAKMATHURBHAISALVI | E116: SELL | F116: 118,750 | G116: 420 | H116: NSE
A117: 2022-10-17 | B117: SECL | C117: Salasar Exterior Cont Ltd | D117: BHAVYADHIMAN | E117: SELL | F117: 48,750 | G117: 420 | H117: NSE
A118: 2022-10-17 | B118: SECL | C118: Salasar Exterior Cont Ltd | D118: DIPAK MATHURBHAI SALVI | E118: SELL | F118: 60,000 | G118: 420 | H118: NSE
A119: 2022-10-17 | B119: SECL | C119: Salasar Exterior Cont Ltd | D119: NNM SECURITIES PVT LTD | E119: SELL | F119: 66,250 | G119: 419.96 | H119: NSE
A120: 2022-10-17 | B120: SHEMAROO | C120: Shemaroo Enter. Ltd. | D120: GRAVITON RESEARCH CAPITAL LLP | E120: SELL | F120: 191,984 | G120: 195.31 | H120: NSE
A121: 2022-10-17 | B121: SPRL | C121: SP Refractories Limited | D121: JATIN NAGINDAS MEHTA HUF | E121: SELL | F121: 11,200 | G121: 89 | H121: NSE
A122: 2022-10-17 | B122: SPRL | C122: SP Refractories Limited | D122: RISHABH J MEHTA HUF | E122: SELL | F122: 16,000 | G122: 87.25 | H122: NSE
A123: 2022-10-17 | B123: TRF | C123: TRF Limited | D123: TOPGAIN FINANCE PRIVATE LIMITED | E123: SELL | F123: 65,428 | G123: 166.49 | H123: NSE
A124: 2022-10-17 | B124: TRF | C124: TRF Limited | D124: CHETAN RASIKLAL SHAH | E124: SELL | F124: 82,600 | G124: 165.81 | H124: NSE
A125: 2022-10-17 | B125: TRF | C125: TRF Limited | D125: MANSI SHARES & STOCK ADVISORS PVT LTD | E125: SELL | F125: 2,824 | G125: 166.54 | H125: NSE
A126: 2022-10-17 | B126: TVSELECT | C126: TVS Electronics Limited | D126: GRAVITON RESEARCH CAPITAL LLP | E126: SELL | F126: 112,798 | G126: 303.44 | H126: NSE

Sheet Call Tracker (Equity & F&O)
M5: Back To Main Page
A6: Retail Research Technical Calls & Fundamental Performance Report for the month of Oct-2022
M7: =Main!B10 -> 2022-10-18
B8: Positional Call
A9: Sr.no | B9: Date | D9: Company | E9: Rec | F9: Rec Price | G9: Stop Loss*** | H9: Call Closed At | I9: Target | J9: Remark | K9: Profit / Loss per Share | L9: All charges | M9: Net Gain / Loss % | N9: Status | O9: Closed Date | P9: Market Closing Price
A10: 1 | B10: 2022-09-06 | D10: COLPAL | E10: Buy | F10: 1610-1640 | G10: 1535 | I10: 1750-1800 | J10: Open | R10: H
A11: 2 | B11: 2022-09-12 | D11: GMMPFAUDLR | E11: Buy | F11: 1915 | G11: 1800 | H11: 1995 | I11: 2050-2150 | J11: Part profit of Rs.80/- | K11: =H11-F11 -> 80 | L11: =(F11*-0.7)/100 -> -13.41 | M11: =(K11+L11)/F11 -> 3.48% | N11: Successful | O11: 2022-09-13 | R11: N
A12: 3 | B12: 2022-09-19 | D12: BALKRISIND | E12: Buy | F12: 1900-1930 | G12: 1780 | I12: 2100-2200 | J12: Open | R12: H
A13: 4 | B13: 2022-09-20 | D13: MINDTREE | E13: Buy | F13: 3170 | G13: 2940 | H13: 3380 | I13: 3400-3600 | J13: Profit of Rs.210/- | K13: =H13-F13 -> 210 | L13: =(F13*-0.7)/100 -> -22.19 | M13: =(K13+L13)/F13 -> 5.92% | N13: Successful | O13: 2022-10-11 | R13: H
A14: 5 | B14: 2022-09-26 | D14: PIIND | E14: Buy | F14: 2980-3010 | G14: 2740 | I14: 3300-3500 | J14: Open | R14: H
A15: 6 | B15: 2022-09-26 | D15: REDINGTON | E15: Buy | F15: 138 | G15: 129 | H15: 145 | I15: 150-160 | J15: Profit of Rs.7/- | K15: =H15-F15 -> 7 | L15: =(F15*-0.7)/100 -> -0.97 | M15: =(K15+L15)/F15 -> 4.37% | N15: Successful | O15: 2022-10-04 | R15: H
A16: 7 | B16: 2022-09-27 | D16: IGL | E16: Buy | F16: 406 | G16: 379 | H16: 399 | I16: 440-460 | J16: Loss of Rs.7 | K16: =H16-F16 -> -7 | L16: =(F16*-0.07)/100 -> -0.28 | M16: =(K16+L16)/F16 -> -1.79% | N16: Unsuccessful | O16: 2022-10-10 | R16: H
A17: 8 | B17: 2022-09-30 | D17: VTL | E17: Buy | F17: 325 | G17: 298 | H17: 346 | I17: 360-390 | J17: Profit of Rs.21/- | K17: =H17-F17 -> 21 | L17: =(F17*-0.4)/100 -> -1.30 | M17: =(K17+L17)/F17 -> 6.06% | N17: Successful | O17: 2022-10-06 | R17: H
A18: 9 | B18: 2022-10-06 | D18: ICICIGI | E18: Buy | F18: 1145-1165 | G18: 1075 | I18: 1250-1300 | J18: Open | R18: H
A19: 10 | B19: 2022-10-06 | D19: BATAINDIA | E19: Buy | F19: 1795-1815 | G19: 1690 | I19: 1920-2000 | J19: Open | R19: H
A20: 11 | B20: 2022-10-10 | D20: KPITTECH | E20: Buy | F20: 655 | G20: 615 | H20: 686 | I20: 700-720 | J20: Part profit of Rs.31/- | K20: =H20-F20 -> 31 | L20: =(F20*-0.7)/100 -> -4.59 | M20: =(K20+L20)/F20 -> 4.03% | N20: Successful | O20: 2022-10-14 | R20: H
A21: 12 | B21: 2022-10-11 | D21: REDINGTON | E21: Buy | F21: 137-139 | G21: 127 | I21: 150-160 | J21: Open | R21: H
A22: 13 | B22: 2022-10-12 | D22: BEL | E22: Buy | F22: 100-102 | G22: 94 | I22: 110-115 | J22: Open | R22: H
A23: 14 | B23: 2022-10-14 | D23: BALAMINES | E23: Buy | F23: 3040-3070 | G23: 2795 | I23: 3400-3600 | J23: Open
A27: CLBS = Closing Basis ***
A28: Dividend adjusted <> | F28: Reinitiated $
A29: Part book {} | D29: s | F29: Revised stoploss #
B31: Momentum Call
A32: Sr.no | B32: Date | D32: Company | E32: Rec | F32: Rec Price | G32: Stop Loss | H32: Call Closed At | I32: Target | J32: Remark | K32: Profit / Loss per Share/Lot | L32: All charges | M32: Net Gain / Loss % | N32: Status | O32: Closed Date
A33: 1 | B33: 2022-09-27 | D33: TCS | E33: Buy | F33: 3005 | G33: 2890 | H33: 3095 | I33: 3120-3200 | J33: Profit of Rs.90/- | K33: =H33-F33 -> 90 | L33: =(F33*-0.7)/100 -> -21.04 | M33: =(K33+L33)/F33 -> 2.30% | N33: Successful | O33: 2022-10-04 | R33: H
A34: 2 | B34: 2022-09-29 | D34: LTI | E34: Buy | F34: 4520 | G34: 4395 | H34: 4650 | I34: 4650-4750 | J34: Profit of Rs.130/- | K34: =H34-F34 -> 130 | L34: =(F34*-0.7)/100 -> -31.64 | M34: =(K34+L34)/F34 -> 2.18% | N34: Successful | O34: 2022-10-06 | R34: H
A35: 3 | B35: 2022-09-29 | D35: ICICIBANK | E35: Buy | F35: 849 | G35: 825 | H35: 871.5 | I35: 880-900 | J35: Profit of Rs.22.5/- | K35: =H35-F35 -> 22.5 | L35: =(F35*-0.7)/100 -> -5.94 | M35: =(K35+L35)/F35 -> 1.95% | N35: Successful | O35: 2022-10-04 | R35: H
A36: 4 | B36: 2022-09-30 | D36: COALINDIA | E36: Buy | F36: 214.5 | G36: 207 | H36: 220 | I36: 224-230 | J36: Profit of Rs.5.5/- | K36: 5.5 | L36: =(F36*-0.7)/100 -> -1.50 | M36: 1.86% | N36: Successful | O36: 2022-10-04 | R36: H
A37: 5 | B37: 2022-09-30 | D37: BIRLACORPN | E37: Buy | F37: 962 | G37: 927 | H37: 927 | I37: 1010-1030 | J37: Loss of Rs.35/- | K37: =H37-F37 -> -35 | L37: =(F37*-0.7)/100 -> -6.73 | M37: =(K37+L37)/F37 -> -4.34% | N37: Unsuccessful | O37: 2022-10-10 | R37: N
A38: 6 | B38: 2022-10-07 | D38: JUBLINGREA | E38: Buy | F38: 548 | G38: 530 | H38: 559 | I38: 570-590 | J38: Profit of Rs.11/- | K38: =H38-F38 -> 11 | L38: =(F38*-0.07)/100 -> -0.38 | M38: =(K38+L38)/F38 -> 1.94% | N38: Successful | O38: 2022-10-07 | R38: H
A39: 7 | B39: 2022-10-07 | D39: JUBLINGREA | E39: Buy | F39: 546 | G39: 529 | H39: 555 | I39: 570-590 | J39: Profit of Rs.9/- | K39: =H39-F39 -> 9 | L39: =(F39*-0.7)/100 -> -3.82 | M39: =(K39+L39)/F39 -> 0.95% | N39: Successful | O39: 2022-10-10 | R39: H
A40: 8 | B40: 2022-10-07 | D40: ASTRAL | E40: Buy | F40: 2250 | G40: 2185 | H40: 2185 | I40: 2350-2400 | J40: Loss of Rs.65/- | K40: -65 | L40: =(F40*-0.7)/100 -> -15.75 | M40: -3.59% | N40: Unsuccessful | O40: 2022-10-11 | R40: H
A41: 9 | B41: 2022-10-12 | D41: BHARTIARTL | E41: Buy | F41: 774-777 | G41: 750 | I41: 810-830 | J41: Open | R41: H
A42: 10 | B42: 2022-10-12 | D42: ICICIBANK | E42: Buy | F42: 862.5 | G42: 837 | H42: 886.5 | I42: 890-910 | J42: Profit of Rs.90/- | K42: =H42-F42 -> 24 | L42: =(F42*-0.7)/100 -> -6.04 | M42: =(K42+L42)/F42 -> 2.08% | N42: Successful | O42: 2022-10-17 | R42: H
A43: 11 | B43: 2022-10-13 | D43: JUBLINGREA | E43: Buy | F43: 538 | G43: 523 | H43: 523 | I43: 560-580 | J43: Loss of Rs.15/- | K43: -15 | L43: =(F43*-0.7)/100 -> -3.77 | M43: -3.49% | N43: Unsuccessful | O43: 2022-10-17
A47: CLBS = Closing Basis *** | H47: *
A48: Dividend adjusted <> | F48: Reinitiated $
F49: Revised stoploss #
A51: Master Trade High Risk
A52: Sr.no | B52: Date | D52: Company | E52: Rec | F52: Rec Price | G52: Stop Loss | H52: Call Closed At | I52: Target | J52: Remark | K52: Profit / Loss per share | L52: All charges | M52: Gain / Loss per Lot | N52: Lot | O52: Status | P52: Closed Date
A53: 1 | B53: 2022-09-30 | D53: VOLTAS OCT FUT | E53: Sell | F53: 911 | G53: 936 | H53: 895 | I53: 880-870 | J53: Profit of Rs 16/- | K53: =F53-H53 -> 16 | L53: =(H53*N53)*0.07% -> 313.25 | M53: =(K53*N53)-L53 -> 7686.8 | N53: 500 | O53: Successful | P53: 2022-10-03 | R53: N
A54: 2 | B54: 2022-09-30 | D54: SBILIFE OCT FUT | E54: Sell | F54: 1258 | G54: 1276 | H54: 1245 | I54: 1235-1220 | J54: Profit of Rs 13/- | K54: =F54-H54 -> 13 | L54: 653.63 | M54: 9096.4 | N54: 750 | O54: Successful | P54: 2022-10-03 | R54: H
A55: 3 | B55: 2022-09-30 | D55: HCLTECH OCT FUT | E55: Buy | F55: 925 | G55: 905 | H55: 937.5 | I55: 950-970 | J55: Profit of Rs.12.50/- | K55: =H55-F55 -> 12.5 | L55: 459.38 | M55: 8290.6 | N55: 700 | O55: Successful | P55: 2022-10-04 | R55: H
A56: 4 | B56: 2022-09-30 | D56: RELIANCE OCT FUT | E56: Buy | F56: 2400 | G56: 2345 | H56: 2435 | I56: 2460-2500 | J56: Profit of Rs.35/- | K56: =H56-F56 -> 35 | L56: =(H56*N56)*0.07% -> 426.13 | M56: =(K56*N56)-L56 -> 8323.9 | N56: 250 | O56: Successful | P56: 2022-10-06 | R56: H
A57: 5 | B57: 2022-10-03 | D57: TECHM OCT FUT | E57: Buy | F57: 1006.5 | G57: 987 | H57: 1019.5 | I57: 1030-1050 | J57: Profit of Rs.13/- | K57: =H57-F57 -> 13 | L57: =(H57*N57)*0.07% -> 428.19 | M57: =(K57*N57)-L57 -> 7371.8 | N57: 600 | O57: Successful | P57: 2022-10-03 | R57: H
A58: 6 | B58: 2022-10-03 | D58: SUNPHARMA OCT FUT | E58: Buy | F58: 948 | G58: 928 | H58: 957.5 | I58: 970-980 | J58: Profit of Rs.9.5/- | K58: =H58-F58 -> 9.5 | L58: =(H58*N58)*0.07% -> 469.18 | M58: =(K58*N58)-L58 -> 6180.8 | N58: 700 | O58: Successful | P58: 2022-10-06 | R58: H
A59: 7 | B59: 2022-10-04 | D59: GSPL OCT FUT | E59: Buy | F59: 229.5 | G59: 224.5 | H59: 224.5 | I59: 236-242 | J59: Loss of Rs.5/- | K59: =H59-F59 -> -5 | L59: =(H59*N59)*0.07% -> 392.88 | M59: =(K59*N59)-L59 -> -12892.9 | N59: 2500 | O59: Unsuccessful | P59: 2022-10-04 | R59: N
A60: 8 | B60: 2022-10-04 | D60: VOLTAS OCT FUT | E60: Sell | F60: 926 | G60: 954 | H60: 926 | I60: 900-880 | J60: No profit no loss | K60: =F60-H60 -> 0 | L60: 324.10 | M60: -324.1 | N60: 500 | O60: Neutral | P60: 2022-10-06 | R60: N
A61: 9 | B61: 2022-10-04 | D61: SBILIFE OCT FUT | E61: Sell | F61: 1266.5 | G61: 1286 | H61: 1266.5 | I61: 1245-1230 | J61: No profit no loss | K61: =F61-H61 -> 0 | L61: 664.91 | M61: -664.9 | N61: 750 | O61: Neutral | P61: 2022-10-06 | R61: H
A62: 10 | B62: 2022-10-04 | D62: APOLLOHOSP OCT FUT | E62: Buy | F62: 4420 | G62: 4310 | H62: 4310 | I62: 4530-4600 | J62: Loss of Rs.110/- | K62: =H62-F62 -> -110 | L62: =(H62*N62)*0.07% -> 377.13 | M62: =(K62*N62)-L62 -> -14127.1 | N62: 125 | O62: Unsuccessful | P62: 2022-10-10 | R62: N
A63: 11 | B63: 2022-10-06 | D63: ACC OCT FUT | E63: Buy | F63: 2290 | G63: 2340 | H63: 2340 | I63: 2440-2470 | J63: Loss of Rs.50/- | K63: 50 | L63: 409.50 | M63: 12090.5 | N63: 250 | O63: Unsuccessful | P63: 2022-10-11 | R63: N
A64: 12 | B64: 2022-10-06 | D64: HDFCLIFE OCT FUT | E64: Buy | F64: 534 | G64: 523 | H64: 523 | I64: 550-560 | J64: Loss of Rs.11/- | K64: =H64-F64 -> -11 | L64: =(H64*N64)*0.07% -> 402.71 | M64: =(K64*N64)-L64 -> -12502.7 | N64: 1100 | O64: Unsuccessful | P64: 2022-10-10 | R64: H
A65: 13 | B65: 2022-10-07 | D65: NIFTY OCT FUT | E65: Buy | F65: 17250 | G65: 17140 | H65: 17350 | I65: 17400-17500 | J65: Profit of Rs.100/- | K65: =H65-F65 -> 100 | L65: =(H65*N65)*0.07% -> 607.25 | M65: =(K65*N65)-L65 -> 4392.8 | N65: 50 | O65: Successful | P65: 2022-10-07 | R65: H
A66: 14 | B66: 2022-10-07 | D66: UPL OCT FUT | E66: Buy | F66: 695 | G66: 684 | H66: 684 | I66: 710-720 | J66: Loss of Rs.11/- | K66: -11 | L66: 574.56 | M66: -13774.6 | N66: 1200 | O66: Unsuccessful | P66: 2022-10-10 | R66: H
A67: 15 | B67: 2022-10-07 | D67: LUPIN OCT FUT | E67: Buy | F67: 724 | G67: 710 | H67: 710 | I67: 740-750 | J67: Loss of Rs.14/- | K67: =H67-F67 -> -14 | L67: =(H67*N67)*0.07% -> 422.45 | M67: =(K67*N67)-L67 -> -12322.5 | N67: 850 | O67: Unsuccessful | P67: 2022-10-10 | R67: N
A68: 16 | B68: 2022-10-10 | D68: SIEMENS OCT FUT | E68: Buy | F68: 2792.5 | G68: 2745 | H68: 2750 | I68: 2850-2870 | J68: Loss of Rs.42.5/- | K68: -42.5 | L68: 529.38 | M68: -12216.9 | N68: 275 | O68: Unsuccessful | P68: 2022-10-11 | R68: N
A69: 17 | B69: 2022-10-10 | D69: RELIANCE OCT FUT | E69: Buy | F69: 2390-2395 | G69: 2340 | I69: 2460-2500 | J69: Open | R69: H
A70: 18 | B70: 2022-10-10 | D70: COLPAL OCT FUT | E70: Buy | F70: 1575-1580 | G70: 1540 | I70: 1620-1640 | J70: Open | R70: H
A80: Master Trade Medium Risk
A81: Sr.no | B81: Date | D81: Company | E81: Rec | F81: Rec Price | G81: Stop Loss | H81: Call Closed At | I81: Target | J81: Remark | K81: Profit/ Loss per lot | L81: All charges | M81: Gain / Loss per Lot | N81: Lot | O81: Status | P81: Closed Date
A82: 1 | B82: 2022-10-10 | D82: INFY 1460 CE OCT | E82: Buy | F82: 30.5 | G82: 13 | H82: 36 | I82: 50-60 | J82: Profit of Rs.5.5/- | K82: =H82-F82 -> 5.5 | L82: 100.00 | M82: =(K82*N82)-L82 -> 1550.0 | N82: 300 | O82: Successful | P82: 2022-10-10 | R82: H
A83: 2 | B83: 2022-10-10 | D83: TATACONSUM OCT 780 CE | E83: Buy | F83: 14.5 | G83: 9 | H83: 9 | I83: 20-23 | J83: Loss of Rs.5.5/- | K83: =H83-F83 -> -5.5 | L83: 100.00 | M83: =(K83*N83)-L83 -> -5050.0 | N83: 900 | O83: Unsuccessful | P83: 2022-10-11 | R83: H
A84: 3 | B84: 2022-10-10 | D84: AMARAJABAT OCT 500 CE | E84: Buy | F84: 12.5 | G84: 7.5 | H84: 7.75 | I84: 18-22.0 | J84: Loss of Rs.4.75/- | K84: =H84-F84 -> -4.75 | L84: 100.00 | M84: =(K84*N84)-L84 -> -4850.0 | N84: 1000 | O84: Unsuccessful | P84: 2022-10-12 | R84: N
A85: 4 | B85: 2022-10-11 | D85: ICICIGI OCT 1160 CE | E85: Buy | F85: 27-29 | G85: 15 | I85: 40-50 | J85: Open | R85: H
A86: 5 | B86: 2022-10-11 | D86: INFY 1460 CE 29-SEP | E86: Buy | F86: 30.5 | G86: 13 | H86: 42.5 | I86: 55-65 | J86: Profit of Rs.12/- | K86: =H86-F86 -> 12 | L86: 100.00 | M86: =(K86*N86)-L86 -> 3500.0 | N86: 300 | O86: Successful | P86: 2022-10-14 | R86: H
A87: 6 | B87: 2022-10-11 | D87: NIFTY 17200 CE 13-OCT | E87: Buy | F87: 72 | G87: 30 | H87: 30 | I87: 120-150 | J87: Loss of Rs.42/- | K87: =H87-F87 -> -42 | L87: 100.00 | M87: =(K87*N87)-L87 -> -2200.0 | N87: 50 | O87: Unsuccessful | P87: 2022-10-12 | R87: N
A88: 7 | B88: 2022-10-11 | D88: LUPIN 700 CE OCT | E88: Buy | F88: 16 | G88: 10.5 | H88: 10.5 | I88: 22-26 | J88: Loss of Rs.5.5/- | K88: =H88-F88 -> -5.5 | L88: 100.00 | M88: =(K88*N88)-L88 -> -4775.0 | N88: 850 | O88: Unsuccessful | P88: 2022-10-12 | R88: N
A89: 8 | B89: 2022-10-13 | D89: NIFTY 17300 CE 27-OCT | E89: Buy | F89: 125 | G89: 60 | H89: 145 | I89: 200-280 | J89: Profit of Rs.20/- | K89: 20 | L89: 100.00 | M89: 900.0 | N89: 50 | O89: Successful | P89: 2022-10-13
A90: 9 | B90: 2022-10-14 | D90: NIFTY 17500 CE 27-OCT | E90: Buy | F90: 127 | G90: 60 | H90: 156 | I90: 200-280 | J90: Profit of Rs.29/- | K90: =H90-F90 -> 29 | L90: 100.00 | M90: =(K90*N90)-L90 -> 1350.0 | N90: 50 | O90: Successful | P90: 2022-10-14
A93: Techno -Funda (positional)
A94: Sr.no | B94: Date | D94: Company | E94: Rec | F94: Rec Price | G94: Stop Loss*** | H94: Call Closed At | I94: Target | J94: Remark | K94: Profit / Loss per Share/Lot | L94: All charges | M94: Net Gain / Loss % | N94: Status | O94: Closed Date | P94: Market Closing Price
A95: 1 | B95: 2022-10-06 | D95: HDFCBANK | E95: Buy | F95: 1360-1450 | G95: 1240 | I95: 1700-1800 | J95: Open
A96: 2 | B96: 2022-10-06 | D96: AMBIKCO | E96: Buy | F96: 1420-1620 | G96: 1220 | I96: 2000-2300 | J96: Open
A98: CLBS = Closing Basis *** | F98: Reinitiated $
A99: Dividend adjusted <> | F99: Revised stoploss # | H99: .................
B103: Investment Idea
A104: Sr.no | B104: Date | D104: Company | E104: Rec | F104: Rec Price | G104: Point of Review | H104: Close Rate | I104: Target | J104: Remark | K104: Profit / Loss per Share | L104: Gain / Loss % | M104: Status | N104: Closed Date
A105: 1 | B105: 2013-11-01 | D105: L&T Finance Holding | E105: Accu | F105: 82.00 | G105: - | H105: 100 | I105: 100.00 | J105: Target Achieved | K105: =H105-F105 -> 18.00 | L105: =K105/F105 -> 21.95% | M105: Successful | N105: 2016-10-14
A106: 2 | B106: 2014-06-04 | D106: Finolex Inds | E106: Buy | F106: 257.00 | G106: - | H106: 300 | I106: 300.00 | J106: Target Achieved | K106: 43.00 | L106: 16.73% | M106: Successful | N106: 2014-07-02
A107: 3 | B107: 2014-07-08 | D107: JK Cement | E107: Buy | F107: 393.00 | G107: - | H107: 468 | I107: 468.00 | J107: Target Achieved | K107: 75.00 | L107: 19.08% | M107: Successful | N107: 2014-08-12
A108: 4 | B108: 2014-08-06 | D108: Finolex Cables | E108: Buy | F108: 205.00 | G108: - | H108: 275 | I108: 250.00 | J108: Target Achieved | K108: 70.00 | L108: 34.15% | M108: Successful | N108: 2014-11-19
A109: 5 | B109: 2014-09-04 | D109: Exide Inds | E109: Buy | F109: 162.00 | G109: - | H109: 190 | I109: 190.00 | J109: Target Achieved | K109: 28.00 | L109: 17.28% | M109: Successful | N109: 2015-01-02
A110: 6 | B110: 2014-09-04 | D110: Deepak Nitrite | E110: Buy | F110: 75.00 | G110: - | H110: 91.5 | I110: 95-100 | J110: Profit of Rs.16.50/- | K110: 16.50 | L110: 22.00% | M110: Successful | N110: 2014-11-11
A111: 7 | B111: 2014-10-01 | D111: Mercks | E111: Buy | F111: 850.00 | G111: - | H111: 982.5 | I111: 1050.00 | J111: Profit of Rs.132.50/- | K111: 132.50 | L111: 15.59% | M111: Successful | N111: 2015-02-04
A112: 8 | B112: 2014-10-01 | D112: Grindwell Norton | E112: Buy | F112: 475.00 | G112: - | H112: 515 | I112: 600.00 | J112: Profit of Rs.40/- | K112: 40.00 | L112: 8.42% | M112: Successful | N112: 2014-10-27
A113: 9 | B113: 2014-10-01 | D113: Snowman Logistics | E113: Buy | F113: 86.00 | G113: - | H113: 99 | I113: 140.00 | J113: Profit of Rs.13.00/- | K113: 13.00 | L113: 15.12% | M113: Successful | N113: 2014-10-27
A114: 10 | B114: 2014-10-14 | D114: Birla Corp | E114: Buy | F114: 496.60 | G114: - | H114: 621 | I114: 580.00 | J114: Target Achieved | K114: 124.40 | L114: 25.05% | M114: Successful | N114: 2016-08-23
A115: 11 | B115: 2014-10-14 | D115: Ultratech Cem | E115: Buy | F115: 2481.90 | G115: - | H115: 2840 | I115: 2870.00 | J115: Profit of Rs.358.10/- | K115: 358.10 | L115: 14.43% | M115: Successful | N115: 2015-01-13
A116: 12 | B116: 2014-10-16 | D116: Sintex Inds | E116: Buy | F116: 84.50 | G116: - | H116: 93 | I116: 110.00 | J116: Profit of Rs.8.50/- | K116: 8.50 | L116: 10.06% | M116: Successful | N116: 2014-10-27
A117: 13 | B117: 2014-10-16 | D117: HSIL | E117: Buy | F117: 401.00 | G117: - | H117: 428 | I117: 450.00 | J117: Profit of Rs.27.00/- | K117: 27.00 | L117: 6.73% | M117: Successful | N117: 2015-01-16
A118: 14 | B118: 2014-10-16 | D118: Eveready Inds | E118: Buy | F118: 101.00 | G118: - | H118: 112 | I118: 120.00 | J118: Profit of Rs.11.00/- | K118: 11.00 | L118: 10.89% | M118: Successful | N118: 2014-10-27
A119: 15 | B119: 2014-11-11 | D119: Pennar Inds | E119: Buy | F119: 59.00 | G119: - | H119: 76 | I119: 76.00 | J119: Target Achieved | K119: 17.00 | L119: 28.81% | M119: Successful | N119: 2017-10-24
A120: 16 | B120: 2014-11-11 | D120: Snowman Logistics | E120: Buy | F120: 99.00 | G120: - | H120: 120 | I120: 120.00 | J120: Profit of Rs.21/- | K120: 21.00 | L120: 21.21% | M120: Successful | N120: 2014-11-17
A121: 17 | B121: 2014-11-13 | D121: Dharamsi Morarji Chem | E121: Buy | F121: 22.00 | G121: - | H121: 33.55 | I121: 32.00 | J121: Profit of Rs 11.55/- | K121: 11.55 | L121: 52.50% | M121: Successful | N121: 2015-07-03
A122: 18 | B122: 2014-12-03 | D122: Tatachem | E122: Buy | F122: 440.00 | G122: - | H122: 520 | I122: 520.00 | J122: Profit of Rs 80.00/- | K122: 80.00 | L122: 18.18% | M122: Successful | N122: 2015-07-23
A123: 19 | B123: 2014-12-03 | D123: Advanta | E123: Buy | F123: 360.00 | G123: - | H123: 427 | I123: 425.00 | J123: Profit of Rs.67.00/- | K123: 67.00 | L123: 18.61% | M123: Successful | N123: 2015-02-23
A124: 20 | B124: 2015-01-08 | D124: GDL | E124: Buy | F124: 360.00 | G124: - | H124: 455 | I124: 420.00 | J124: Profit of Rs.95.00/- | K124: 95.00 | L124: 26.39% | M124: Successful | N124: 2015-01-20
A125: 21 | B125: 2015-01-08 | D125: NRB Bearing | E125: Buy | F125: 130.00 | H125: 175.5 | I125: 165.00 | J125: Profit of Rs 45.50/- | K125: 45.50 | L125: 35.00% | M125: Successful | N125: 2017-12-19
A126: 22 | B126: 2015-02-05 | D126: GSFC | E126: Accu | F126: 98.00 | H126: 120 | I126: 120.00 | J126: Target Achieved | K126: 22.00 | L126: 22.45% | M126: Successful | N126: 2017-01-18
A127: 23 | B127: 2015-02-05 | D127: Sundrmfast | E127: Accu | F127: 196.00 | H127: 262 | I127: 255.00 | J127: Target Achieved | K127: 66.00 | L127: 33.67% | M127: Successful | N127: 2016-08-17
A128: 24 | B128: 2015-03-04 | D128: GPPL | E128: Accu | F128: 235 | H128: 77.00 | I128: 280-285 | J128: Loss of Rs.158/- | K128: -158.00 | L128: -67.23% | M128: Unsuccessful | N128: 2019-02-26
A129: 25 | B129: 2015-03-04 | D129: ORIENTCEM | E129: Accu | F129: 185.00 | H129: 224 | I129: 220-225 | J129: Target Achieved | K129: 39.00 | L129: 21.08% | M129: Successful | N129: 2016-10-04
A130: 26 | B130: 2015-03-27 | D130: PFS | E130: Accu | F130: 49.5 | H130: 15.85 | I130: 67.00 | J130: Loss of Rs.33.65/- | K130: -33.65 | L130: -68% | M130: Unsuccessful | N130: 2019-06-11
A131: 27 | B131: 2015-03-30 | D131: Walchandnagar Ind Ltd | E131: Accu | F131: 183.50 | H131: 219 | I131: 218.00 | J131: Profit of Rs.35.50/- | K131: 35.50 | L131: 19.35% | M131: Successful | N131: 2015-04-09
A132: 28 | B132: 2015-04-20 | D132: Kalpataru Power Transmission Ltd | E132: Accu | F132: =(227+237)/2 -> 232.00 | H132: 298 | I132: 298.00 | J132: Target Achieved | K132: 66.00 | L132: 28.45% | M132: Successful | N132: 2017-03-29
A133: 29 | B133: 2015-05-04 | D133: Mastek Ltd | E133: Buy | F133: 385.00 | H133: =212.5+331 -> 543.5 | I133: 510.00 | J133: Profit of Rs 158.50/- | K133: 158.50 | L133: 41.17% | M133: Successful | N133: 2015-08-19
A134: 30 | B134: 2015-05-04 | D134: Suprajit Eng | E134: Buy | F134: 115.50 | H134: 146 | I134: 142.00 | J134: Profit of Rs 30.50/- | K134: 30.50 | L134: 26.41% | M134: Successful | N134: 2015-07-17
A135: 31 | B135: 2015-05-27 | D135: TCI | E135: Buy | F135: 237.50 | H135: 279.5 | I135: 278.00 | J135: Target Achieved | K135: 42.00 | L135: 17.68% | M135: Successful | N135: 2015-08-06
A136: 32 | B136: 2015-06-19 | D136: HSIL | E136: Accu | F136: 340.00 | H136: 448 | I136: 448.00 | J136: Target Achieved | K136: 108.00 | L136: 31.76% | M136: Successful | N136: 2017-10-10
A137: 33 | B137: 2015-07-06 | D137: Capital First | E137: Accu | F137: 390.00 | H137: 460 | I137: 460.00 | J137: Target Achieved | K137: 70.00 | L137: 17.95% | M137: Successful | N137: 2016-04-18
A138: 34 | B138: 2015-07-10 | D138: Dolphin OffShore | E138: Accu | F138: 122.5 | H138: 61.00 | I138: 172.00 | J138: Loss of Rs.61.50/- | K138: -61.50 | L138: -50.20% | M138: Unsuccessful | N138: 2018-08-21
A139: 35 | B139: 2015-08-03 | D139: Allcargo logistics | E139: Accu | F139: 297.50 | H139: 350 | I139: 360.00 | J139: Profit of Rs 52.50/- | K139: 52.50 | L139: 17.65% | M139: Successful | N139: 2015-08-16
A140: 36 | B140: 2015-08-03 | D140: Camline Fine | E140: Accu | F140: 115.50 | H140: 149 | I140: 140.00 | J140: Profit of Rs 33.50/- | K140: 33.50 | L140: 29.00% | M140: Successful | N140: 2017-01-05
A141: 37 | B141: 2015-09-04 | D141: TCI | E141: Accu | F141: 226.00 | H141: 292 | I141: 292.00 | J141: Target Achieved | K141: 66.00 | L141: 29.20% | M141: Successful | N141: 2015-10-09
A142: 38 | B142: 2015-09-07 | D142: Kalpataru Power Transmission Ltd | E142: Accu | F142: 232.50 | H142: 312.5 | I142: 310.00 | J142: Target Achieved | K142: 80.00 | L142: 34.41% | M142: Successful | N142: 2017-03-29
A143: 39 | B143: 2015-09-21 | D143: LLOYD ELECTRIC & ENG LTD | E143: Accu | F143: 196.50 | H143: 238 | I143: 238.00 | J143: Target Achieved | K143: 41.50 | L143: 21.12% | M143: Successful | N143: 2015-10-14
A144: 40 | B144: 2015-09-24 | D144: L&T Finance Holding | E144: Accu | F144: 65.00 | H144: 82 | I144: 82.00 | J144: Target Achieved | K144: 17.00 | L144: 26.15% | M144: Successful | N144: 2016-07-27
A145: 41 | B145: 2015-10-14 | D145: KEC International ltd | E145: Accu | F145: 144.00 | H145: 182.5 | I145: 181.00 | J145: Target Achieved | K145: 38.50 | L145: 26.74% | M145: Successful | N145: 2017-03-23
A146: 42 | B146: 2015-10-14 | D146: Gruh Finance | E146: Accu | F146: 264.00 | H146: 311 | I146: 311.00 | J146: Target Achieved | K146: 47.00 | L146: 17.80% | M146: Successful | N146: 2016-08-22
A147: 43 | B147: 2015-11-10 | D147: Pidilitind | E147: Buy | F147: 549.50 | H147: 630 | I147: 630.00 | J147: Target Achieved | K147: 80.50 | L147: 14.65% | M147: Successful | N147: 2016-02-19
A148: 44 | B148: 2015-12-04 | D148: Zensar Technology | E148: Accu | F148: 1027.50 | H148: 1315 | I148: 1250.00 | J148: Target Achieved | K148: 287.50 | L148: 27.98% | M148: Successful | N148: 2018-05-24
A149: 45 | B149: 2015-12-29 | D149: Vinati Organics Ltd | E149: Accu | F149: 465.00 | H149: 540 | I149: 540.00 | J149: Target Achieved | K149: 75.00 | L149: 16.13% | M149: Successful | N149: 2016-06-09
A150: 46 | B150: 2016-01-11 | D150: GSFC | E150: Buy | F150: 81.00 | H150: 110 | I150: 110.00 | J150: Target Achieved | K150: 29.00 | L150: 35.80% | M150: Successful | N150: 2017-01-10
A151: 47 | B151: 2016-01-13 | D151: SSWL | E151: Buy | F151: 417.50 | H151: 547 | I151: 535.00 | J151: Target Achieved | K151: 129.50 | L151: 31.02% | M151: Successful | N151: 2016-07-27
A152: 48 | B152: 2016-02-08 | D152: Persistent System Ltd | E152: Accu | F152: 650.00 | H152: 800 | I152: 800.00 | J152: Target Achieved | K152: 150.00 | L152: 23.08% | M152: Successful | N152: 2018-02-23
A153: 49 | B153: 2016-03-04 | D153: UPL | E153: Accu | F153: 437.50 | H153: 504.5 | I153: 522.00 | J153: Profit of Rs.67/- | K153: 67.00 | L153: 15.31% | M153: Successful | N153: 2016-04-20
A154: 50 | B154: 2016-03-09 | D154: Ashoka Buildcon Ltd | E154: Accu | F154: 189.50 | H154: 218 | I154: 218.00 | J154: Target Achieved | K154: 28.50 | L154: 15.04% | M154: Successful | N154: 2017-10-26
A155: 51 | B155: 2016-04-11 | D155: PTC INDIA FIN SERV LTD | E155: Accu | F155: 36.5 | H155: 15.85 | I155: 60.00 | J155: Loss of Rs.20.65/- | K155: -20.65 | L155: -56.58% | M155: Unsuccessful | N155: 2019-06-11
A156: 52 | B156: 2016-04-12 | D156: CAMLINFINE $ | E156: Accu | F156: 93.00 | H156: 149 | I156: 140.00 | J156: Profit of Rs 56/- | K156: 56.00 | L156: 60.22% | M156: Successful | N156: 2017-01-05
A157: 53 | B157: 2016-04-12 | D157: Greaves Cotton Ltd. | E157: Accu | F157: 130.00 | H157: 150 | I157: 150-155 | J157: Target Achieved | K157: 20.00 | L157: 15.38% | M157: Successful | N157: 2016-07-13
A158: 54 | B158: 2016-04-13 | D158: DHFL | E158: Accu | F158: 196.00 | H158: 299 | I158: 299.00 | J158: Target Achieved | K158: 103.00 | L158: 52.55% | M158: Successful | N158: 2016-09-07
A159: 55 | B159: 2016-04-13 | D159: Magma | E159: Accu | F159: 88.00 | H159: 103 | I159: 103.00 | J159: Target Achieved | K159: 15.00 | L159: 17.05% | M159: Successful | N159: 2016-06-09
A160: 56 | B160: 2016-05-02 | D160: KEC International ltd $ | E160: Accu | F160: 127.50 | H160: 148 | I160: 148-150 | J160: Target Achieved | K160: =H160-F160 -> 20.50 | L160: =K160/F160 -> 16.08% | M160: Successful | N160: 2016-07-13
A161: 57 | B161: 2016-05-03 | D161: Mindtree | E161: Accu | F161: 675.00 | H161: 815 | I161: 790-800 | J161: Target Achieved | K161: =H161-F161 -> 140.00 | L161: =K161/F161 -> 20.74% | M161: Successful | N161: 2018-02-23
A162: 58 | B162: 2016-06-01 | D162: Atulauto | E162: Accu | F162: 500 | H162: 232.50 | I162: 565-570 | J162: Loss of Rs.267.50 /- | K162: =H162-F162 -> -267.50 | L162: =K162/F162 -> -53.50% | M162: Unsuccessful | N162: 2019-09-27
A163: 59 | B163: 2016-06-06 | D163: TRITURBINE | E163: Accu | F163: 110.00 | H163: 126.5 | I163: 125.00 | J163: Profit of Rs.16.50/- | K163: =H163-F163 -> 16.50 | L163: =K163/F163 -> 15.00% | M163: Successful | N163: 2016-07-01
A164: 60 | B164: 2016-06-17 | D164: Pennar Industries Ltd | E164: Accu | F164: 44.00 | H164: 69.5 | I164: 69.50 | J164: Profit of Rs.25.50/- | K164: =H164-F164 -> 25.50 | L164: =K164/F164 -> 57.95% | M164: Successful | N164: 2017-08-30
A165: 61 | B165: 2016-06-28 | D165: EVEREADY | E165: Accu | F165: 262.50 | H165: 340 | I165: 333.00 | J165: Profit of Rs.77.50/- | K165: 77.50 | L165: 29.52% | M165: Successful | N165: 2017-10-09
A166: 62 | B166: 2016-06-28 | D166: FIEMIND | E166: Accu | F166: 840.00 | H166: 1230 | I166: 1230.00 | J166: Target Achieved | K166: 390.00 | L166: 46.43% | M166: Successful | N166: 2016-10-06
A167: 63 | B167: 2016-07-05 | D167: Bajaj Corp Ltd | E167: Accu | F167: 395 | H167: =(468.5+342.5)/2 -> 405.50 | I167: 510.00 | J167: Profit of Rs.10.50/- | K167: =H167-F167 -> 10.50 | L167: =K167/F167 -> 3% | M167: Neutral | N167: 2019-05-21
A168: 64 | B168: 2016-08-02 | D168: GPPL $ | E168: Buy | F168: =169.5-12.8 -> 156.7 | H168: 77.00 | I168: 198-200 | J168: Loss of Rs.79.7/- | K168: -79.70 | L168: -50.86% | M168: Unsuccessful | N168: 2019-02-26
A169: 65 | B169: 2016-08-04 | D169: WONDERLA HOLIDAYS LTD | E169: Accu | F169: 400 | H169: 305.00 | I169: 475.00 | J169: Loss of Rs.95/- | K169: -95.00 | L169: -23.75% | M169: Unsuccessful | N169: 2019-05-21
A170: 66 | B170: 2016-08-11 | D170: CAMLINFINE | E170: Accu | F170: 86.50 | H170: 130 | I170: 130.00 | J170: Profit of Rs.43.50/- | K170: 43.50 | L170: 50.29% | M170: Successful | N170: 2017-12-22
A171: 67 | B171: 2016-08-18 | D171: GRANULES | E171: Accu | F171: 133.5 | H171: 126.50 | I171: 178.00 | J171: Exit | K171: -7.00 | L171: -5.24% | M171: Unsuccessful | N171: 2016-09-02
A172: 68 | B172: 2016-08-31 | D172: VA TECH WABAG | E172: Accu | F172: 560.00 | H172: 725 | I172: 725.00 | J172: Target Achieved | K172: 165.00 | L172: 29.46% | M172: Successful | N172: 2016-03-27
A173: 69 | B173: 2016-09-01 | D173: SKIPPER LIMITED | E173: Accu | F173: 160.50 | H173: 210 | I173: 210.00 | J173: Target Achieved | K173: 49.50 | L173: 30.84% | M173: Successful | N173: 2017-05-16
A174: 70 | B174: 2016-10-03 | D174: IFBIND | E174: Accu | F174: 430.00 | H174: 596 | I174: 575.00 | J174: Profit of Rs.166/- | K174: 166.00 | L174: 38.60% | M174: Successful | N174: 2017-02-03
A175: 71 | B175: 2016-10-14 | D175: ASIANTILES | E175: Accu | F175: 280.00 | H175: 345 | I175: 345.00 | J175: Target Achieved | K175: =H175-F175 -> 65.00 | L175: =K175/F175 -> 23.21% | M175: Successful | N175: 2017-03-20
A176: 72 | B176: 2016-10-14 | D176: DEEPIND | E176: Accu | F176: 245.00 | H176: 325.5 | I176: 330.00 | J176: Profit of Rs.80.5/- | K176: 80.50 | L176: =K176/F176 -> 32.86% | M176: Successful | N176: 2017-02-03
A177: 73 | B177: 2016-10-17 | D177: DCBBANK | E177: Accu | F177: 125.00 | H177: 160 | I177: 160.00 | J177: Target Achieved | K177: 35.00 | L177: 28.00% | M177: Successful | N177: 2017-03-09
A178: 74 | B178: 2016-10-17 | D178: ORIENTREF | E178: Accu | F178: 114.00 | H178: 145 | I178: 145.00 | J178: Target Achieved | K178: 31.00 | L178: =K178/F178 -> 27.19% | M178: Successful | N178: 2017-05-04
A179: 75 | B179: 2016-10-17 | D179: GANECOS | E179: Accu | F179: 212.00 | H179: 280 | I179: 276.00 | J179: Profit of Rs.68/- | K179: 68.00 | L179: =K179/F179 -> 32.08% | M179: Successful | N179: 2017-05-03
A180: 76 | B180: 2016-11-04 | D180: NBCC | E180: Accu | F180: 155.00 | H180: 210 | I180: 210.00 | J180: Profit of Rs.55/- | K180: 55.00 | L180: =K180/F180 -> 35.48% | M180: Successful | N180: 2017-07-28
A181: 77 | B181: 2016-12-06 | D181: PRECAM | E181: Accu | F181: 150.5 | H181: 72.50 | I181: 174.00 | J181: Loss of Rs.78/- | K181: -78.00 | L181: -51.83% | M181: Unsuccessful | N181: 2018-08-21
A182: 78 | B182: 2016-12-08 | D182: INFRATEL | E182: Accu | F182: 380.00 | H182: 478 | I182: 468.00 | J182: Target Achieved | K182: =H182-F182 -> 98.00 | L182: =K182/F182 -> 25.79% | M182: Successful | N182: 2017-10-17
A183: 79 | B183: 2016-12-30 | D183: GODREJPROP | E183: Accu | F183: 305.00 | H183: 375 | I183: 375.00 | J183: Target Achieved | K183: =H183-F183 -> 70.00 | L183: =K183/F183 -> 22.95% | M183: Successful | N183: 2017-02-02
A184: 80 | B184: 2017-01-04 | D184: DEEPAKNTR | E184: Accu | F184: 99.50 | H184: 158 | I184: 158.00 | J184: Target Achieved | K184: =H184-F184 -> 58.50 | L184: =K184/F184 -> 58.79% | M184: Successful | N184: 2017-06-12
A185: 81 | B185: 2017-01-04 | D185: DEEPAKNTR | E185: Accu | F185: 99.50 | H185: 158 | I185: 158.00 | J185: Target Achieved | K185: 58.50 | L185: 58.79% | M185: Successful | N185: 2017-06-12
A186: 82 | B186: 2017-02-20 | D186: RECLTD | E186: Accu | F186: 140.50 | H186: 220 | I186: 220.00 | J186: Target Achieved | K186: =H186-F186 -> 79.50 | L186: =K186/F186 -> 56.58% | M186: Successful | N186: 2017-05-09
A187: 83 | B187: 2017-02-20 | D187: SUBROS | E187: Accu | F187: 202.50 | H187: 234 | I187: 234.00 | J187: Target Achieved | K187: 31.50 | L187: 15.56% | M187: Successful | N187: 2017-04-11
A188: 84 | B188: 2017-03-24 | D188: VRLLOG | E188: Accu | F188: 300.50 | H188: 417.5 | I188: 420.00 | J188: Profit of Rs.117/- | K188: =H188-F188 -> 117.00 | L188: =K188/F188 -> 38.94% | M188: Successful | N188: 2017-12-01
A189: 85 | B189: 2017-03-24 | D189: FIEMIND | E189: Accu | F189: 850.00 | H189: 1042.5 | I189: 1023.00 | J189: Profit of Rs 192.50/- | K189: 192.50 | L189: 22.65% | M189: Successful | N189: 2017-04-05
A190: 86 | B190: 2017-04-05 | D190: RATNAMANI | E190: Accu | F190: 785.00 | H190: 930 | I190: 920.00 | J190: Profit of Rs.145/- | K190: =H190-F190 -> 145.00 | L190: =K190/F190 -> 18.47% | M190: Successful | N190: 2017-08-29
A191: 87 | B191: 2017-04-06 | D191: ZEEMEDIA | E191: Accu | F191: 40 | H191: 13.10 | I191: 60.00 | J191: Loss of Rs.26.9/- | K191: -26.90 | L191: -67.25% | M191: Unsuccessful | N191: 2018-02-07
A192: 88 | B192: 2017-04-12 | D192: DABUR | E192: Accu | F192: 289.50 | H192: 354 | I192: 360.00 | J192: Profit of Rs.64.5/- | K192: =H192-F192 -> 64.50 | L192: =K192/F192 -> 22.28% | M192: Successful | N192: 2017-11-01
A193: 89 | B193: 2017-04-20 | D193: KPRMILL | E193: Accu | F193: 700.00 | H193: 840 | I193: 840.00 | J193: Profit of Rs.140/- | K193: 140.00 | L193: 20.00% | M193: Successful | N193: 2017-06-07
A194: 90 | B194: 2017-06-01 | D194: ESSELPACK | E194: Accu | F194: 130.00 | H194: 144.25 | I194: 170.00 | J194: Profit of Rs.14.25/- | K194: 14.25 | L194: 10.96% | M194: Successful | N194: 2019-07-29
A195: 91 | B195: 2017-06-15 | D195: KEI | E195: Accu | F195: 214.50 | H195: 262 | I195: 262.00 | J195: Profit of Rs.47.5/- | K195: 47.50 | L195: 22.14% | M195: Successful | N195: 2017-08-30
A196: 92 | B196: 2017-07-17 | D196: MAYURUNIQ | E196: Accu | F196: 370.00 | H196: 447.5 | I196: 450.00 | J196: Target Achieved | K196: 77.50 | L196: 20.95% | M196: Successful | N196: 2017-10-27
A197: 93 | B197: 2017-07-27 | D197: RAMCOCEM | E197: Accu | F197: 657.50 | H197: 825 | I197: 820.00 | J197: Target Achieved | K197: 167.50 | L197: 25.48% | M197: Successful | N197: 2017-12-21
A198: 94 | B198: 2017-08-17 | D198: FINPIPE | E198: Accu | F198: 605.00 | H198: 750 | I198: 750.00 | J198: Profit of Rs.145/- | K198: 145.00 | L198: 23.97% | M198: Successful | N198: 2017-10-19
A199: 95 | B199: 2017-09-01 | D199: SHK | E199: Accu | F199: 255 | H199: 217.25 | I199: 320.00 | J199: Loss of Rs.37.75/- | K199: -37.75 | L199: -15% | M199: Unsuccessful | N199: 2019-07-15
A200: 96 | B200: 2017-09-19 | D200: SKIPPER | E200: Accu | F200: 215.00 | H200: 258 | I200: 258.00 | J200: Target Achieved | K200: 43.00 | L200: 20.00% | M200: Successful | N200: 2017-11-01
A201: 97 | B201: 2017-09-19 | D201: SKIPPER | E201: Accu | F201: 215.00 | H201: 258 | I201: 258.00 | J201: Target Achieved | K201: 43.00 | L201: 20.00% | M201: Successful | N201: 2017-11-01
A202: 98 | B202: 2017-09-20 | D202: CAMLINFINE$ | E202: Accu | F202: 75.00 | H202: 90 | I202: 90.00 | J202: Profit of Rs.15.00/- | K202: =H202-F202 -> 15.00 | L202: =K202/F202 -> 20.00% | M202: Successful | N202: 2017-10-11
A203: 99 | B203: 2017-10-03 | D203: GNA | E203: Accu | F203: 315.00 | H203: 392 | I203: 384.00 | J203: Profit of Rs.77/- | K203: 77.00 | L203: 24.44% | M203: Successful | N203: 2017-10-09
A204: 100 | B204: 2017-10-05 | D204: NOCIL | E204: Accu | F204: 145.00 | H204: 179 | I204: 180.00 | J204: Profit of Rs.34/- | K204: 34.00 | L204: 23.45% | M204: Successful | N204: 2017-10-17
A205: 101 | B205: 2017-10-06 | D205: CENTURYPLY | E205: Accu | F205: 256.00 | H205: 323 | I205: 320.00 | J205: Target Achieved | K205: 67.00 | L205: 26.17% | M205: Successful | N205: 2017-11-28
A206: 102 | B206: 2017-10-09 | D206: EIHOTEL | E206: Accu | F206: 137.50 | H206: 184 | I206: 183.00 | J206: Profit of Rs.46.5/- | K206: 46.50 | L206: 33.82% | M206: Successful | N206: 2018-01-08
A207: 103 | B207: 2017-10-10 | D207: NRBBEARING | E207: Accu | F207: 125.50 | H207: 158 | I207: 155.00 | J207: Profit of Rs.32.5/- | K207: 32.50 | L207: 25.90% | M207: Successful | N207: 2017-11-28
A208: 104 | B208: 2017-10-10 | D208: BOROSIL | E208: Accu | F208: 895.00 | H208: 1122.5 | I208: 1078.00 | J208: Profit of Rs.227.5/- | K208: 227.50 | L208: 25.42% | M208: Successful | N208: 2018-01-17
A209: 105 | B209: 2017-10-12 | D209: CYIENT | E209: Accu | F209: 525.00 | H209: 629 | I209: 629.00 | J209: Target Achieved | K209: 104.00 | L209: 19.81% | M209: Successful | N209: 2018-01-19
A210: 106 | B210: 2017-11-07 | D210: HATSUN | E210: Accu | F210: 740.00 | H210: 892.5 | I210: 900.00 | J210: Profit of Rs.152.5/- | K210: =H210-F210 -> 152.50 | L210: =K210/F210 -> 20.61% | M210: Successful | N210: 2017-11-13
A211: 107 | B211: 2017-12-04 | D211: SANGHIIND | E211: Accu | F211: 118.50 | H211: 143.5 | I211: 145.00 | J211: Profit of Rs.25/- | K211: =H211-F211 -> 25.00 | L211: =K211/F211 -> 21.10% | M211: Successful | N211: 2017-12-28
A212: 108 | B212: 2017-12-21 | D212: KAJARIACER | E212: Accu | F212: 715 | H212: 500.00 | I212: 872.00 | J212: Loss of Rs.215/- | K212: =H212-F212 -> -215.00 | L212: =K212/F212 -> -30.07% | M212: Unsuccessful | N212: 2019-07-24
A213: 109 | B213: 2017-12-29 | D213: GNA | E213: Accu | F213: 435.00 | H213: 542.5 | I213: 539.00 | J213: Target Achieved | K213: 107.50 | L213: 24.71% | M213: Successful | N213: 2018-04-16
A214: 110 | B214: 2017-12-29 | D214: ZENSARTECH | E214: Accu | F214: 885.00 | H214: 1090 | I214: 1084.00 | J214: Target Achieved | K214: 205.00 | L214: 23.16% | M214: Successful | N214: 2018-04-23
A215: 111 | B215: 2018-04-02 | D215: EVERESTIND | E215: Accu | F215: 478.50 | H215: 442 | I215: 613.00 | J215: Loss of Rs.36.50 /- | K215: =H215-F215 -> -36.50 | L215: =K215/F215 -> -7.63% | M215: Unsuccessful | N215: 2019-10-24
A216: 112 | B216: 2018-04-04 | D216: GPPL$ | E216: Accu | F216: =141.5-7.3 -> 134.2 | H216: 77.00 | I216: 180.00 | J216: Loss of Rs.57.2/- | K216: =H216-F216 -> -57.20 | L216: =K216/F216 -> -42.62% | M216: Unsuccessful | N216: 2019-02-26
A217: 113 | B217: 2018-04-19 | D217: MANPASAND | E217: Accu | F217: 430 | H217: 220.00 | I217: 537.00 | J217: Loss of Rs.210/- | K217: =H217-F217 -> -210.00 | L217: =K217/F217 -> -48.84% | M217: Unsuccessful | N217: 2018-06-01
A218: 114 | B218: 2018-04-30 | D218: HEIDELBERG | E218: Accu | F218: 153.5 | H218: 196 | I218: 196.00 | J218: Profit of Rs.42.50/- | K218: =H218-F218 -> 42.50 | L218: =K218/F218 -> 27.69% | M218: Successful | N218: 2019-05-20
A219: 115 | B219: 2018-07-25 | D219: ZEEMEDIA | E219: Accu | F219: 27.5 | H219: 13.10 | I219: 60.00 | J219: Loss of Rs.14.40/- | K219: -14.40 | L219: -52.36% | M219: Unsuccessful | N219: 2018-02-07
A220: 116 | B220: 2018-08-06 | D220: GABRIEL | E220: Accu | F220: 148.5 | H220: 102 | I220: 182.00 | J220: Loss of Rs.46.50/- | K220: =H220-F220 -> -46.50 | L220: =K220/F220 -> -31.31% | M220: Unsuccessful | N220: 2019-07-15
A221: 117 | B221: 2018-08-23 | D221: INDIANHUME | E221: Accu | F221: 285 | H221: 355 | I221: 364.00 | J221: Profit of Rs.70/- | K221: 70.00 | L221: 24.56% | M221: Successful | N221: 2018-12-21
A222: 118 | B222: 2018-08-29 | D222: GRINDWELL | E222: Accu | F222: 525 | H222: 585 | I222: 635.00 | J222: Profit of Rs.60- | K222: =H222-F222 -> 60.00 | L222: =K222/F222 -> 11.43% | M222: Successful | N222: 2019-07-16
A223: 119 | B223: 2018-10-22 | D223: FINPIPE | E223: Accu | F223: 475 | H223: 574 | I223: 570.00 | J223: Target Achieved | K223: 99.00 | L223: 20.84% | M223: Successful | N223: 2018-10-30
A224: 120 | B224: 2018-10-24 | D224: GULFOILLUB | E224: Accu | F224: 707.5 | H224: 872 | I224: 872.00 | J224: Target Achieved | K224: 164.50 | L224: 23.25% | M224: Successful | N224: 2019-01-17
A225: 121 | B225: 2018-10-25 | D225: DBCORP | E225: Accu | F225: 162 | H225: 204 | I225: 209.00 | J225: Profit of Rs.42/- | K225: 42.00 | L225: 25.93% | M225: Successful | N225: 2019-03-15
A226: 122 | B226: 2018-10-26 | D226: RITES | E226: Accu | F226: 240 | H226: 297 | I226: 297.00 | J226: Target Achieved | K226: 57.00 | L226: 23.75% | M226: Successful | N226: 2018-11-13
A227: 123 | B227: 2018-12-05 | D227: BRIGADE | E227: Accu | F227: 202.5 | H227: 255 | I227: 252.00 | J227: Target Achieved | K227: 52.50 | L227: 25.93% | M227: Successful | N227: 2019-03-18 | R227: V
... 59 more rows
